Workbook

Sheet COST OF ABSTRACT
A1: DETAILED ESTIMATE REPORT FOR P.H.C. CENTER, SUMAN NAGAR, HARIDWAR
A2: ABSTRACT OF COST
A4: Sl.No. | B4: Description | C4: Amount (DSR/SOR-2023)
A6: 1 | B6: GROUND FLOOR | C6: ='WORK COST'!C11 -> 0.00
A8: 2 | B8: ELECTRICAL WORK TOTAL (A) 08 % | C8: ='WORK COST'!C12 -> 0.00
A10: 3 | B10: BOUNDARY WALL | C10: ='WORK COST'!C15 -> 0.00
A11: 4 | B11: WATER SUPPLY | C11: ='WORK COST'!C13 -> 0.00
A13: 5 | B13: SANITARY WORKS | C13: ='WORK COST'!C14 -> 0.00
A14: TOTAL | C14: =SUM(C6:C13) -> 0.00
A16: PHHF Contribution (85%) | C16: =C14*85% -> 0.00 | E16: ITC Part 85% | G16: ITC Part 85% | I16: ITC Part 85% | K16: ITC Part 85% | M16: ITC Part 85% | O16: ITC Part 85% | Q16: ITC Part 85% | S16: ITC Part 85% | U16: ITC Part 85% | W16: ITC Part 85% | Y16: ITC Part 85% | AA16: ITC Part 85% | AC16: ITC Part 85% | AE16: ITC Part 85% | AG16: ITC Part 85% | AI16: ITC Part 85% | AK16: ITC Part 85% | AM16: ITC Part 85% | AO16: ITC Part 85% | AQ16: ITC Part 85% | AS16: ITC Part 85% | AU16: ITC Part 85% | AW16: ITC Part 85% | AY16: ITC Part 85% | BA16: ITC Part 85% | BC16: ITC Part 85% | BE16: ITC Part 85% | BG16: ITC Part 85% | BI16: ITC Part 85% | BK16: ITC Part 85% | BM16: ITC Part 85% | BO16: ITC Part 85% | BQ16: ITC Part 85% | BS16: ITC Part 85% | BU16: ITC Part 85% | BW16: ITC Part 85% | BY16: ITC Part 85% | CA16: ITC Part 85% | CC16: ITC Part 85% | CE16: ITC Part 85% | CG16: ITC Part 85% | CI16: ITC Part 85% | CK16: ITC Part 85% | CM16: ITC Part 85% | CO16: ITC Part 85% | CQ16: ITC Part 85% | CS16: ITC Part 85% | CU16: ITC Part 85% | CW16: ITC Part 85% | CY16: ITC Part 85% | DA16: ITC Part 85% | DC16: ITC Part 85% | DE16: ITC Part 85% | DG16: ITC Part 85% | DI16: ITC Part 85% | DK16: ITC Part 85% | DM16: ITC Part 85% | DO16: ITC Part 85% | DQ16: ITC Part 85% | DS16: ITC Part 85% | DU16: ITC Part 85% | DW16: ITC Part 85% | DY16: ITC Part 85% | EA16: ITC Part 85% | EC16: ITC Part 85% | EE16: ITC Part 85% | EG16: ITC Part 85% | EI16: ITC Part 85% | EK16: ITC Part 85% | EM16: ITC Part 85% | EO16: ITC Part 85% | EQ16: ITC Part 85% | ES16: ITC Part 85% | EU16: ITC Part 85% | EW16: ITC Part 85% | EY16: ITC Part 85% | FA16: ITC Part 85% | FC16: ITC Part 85% | FE16: ITC Part 85% | FG16: ITC Part 85% | FI16: ITC Part 85% | FK16: ITC Part 85% | FM16: ITC Part 85% | FO16: ITC Part 85% | FQ16: ITC Part 85% | FS16: ITC Part 85% | FU16: ITC Part 85% | FW16: ITC Part 85% | FY16: ITC Part 85% | GA16: ITC Part 85% | GC16: ITC Part 85% | GE16: ITC Part 85% | GG16: ITC Part 85% | GI16: ITC Part 85% | GK16: ITC Part 85% | GM16: ITC Part 85% | GO16: ITC Part 85% | GQ16: ITC Part 85% | GS16: ITC Part 85% | GU16: ITC Part 85% | GW16: ITC Part 85% | GY16: ITC Part 85% | HA16: ITC Part 85% | HC16: ITC Part 85% | HE16: ITC Part 85% | HG16: ITC Part 85% | HI16: ITC Part 85% | HK16: ITC Part 85% | HM16: ITC Part 85% | HO16: ITC Part 85% | HQ16: ITC Part 85% | HS16: ITC Part 85% | HU16: ITC Part 85% | HW16: ITC Part 85% | HY16: ITC Part 85% | IA16: ITC Part 85% | IC16: ITC Part 85% | IE16: ITC Part 85% | IG16: ITC Part 85% | II16: ITC Part 85% | IK16: ITC Part 85% | IM16: ITC Part 85% | IO16: ITC Part 85% | IQ16: ITC Part 85% | IS16: ITC Part 85% | IU16: ITC Part 85% | IW16: ITC Part 85% | IY16: ITC Part 85% | JA16: ITC Part 85% | JC16: ITC Part 85% | JE16: ITC Part 85% | JG16: ITC Part 85% | JI16: ITC Part 85% | JK16: ITC Part 85% | JM16: ITC Part 85% | JO16: ITC Part 85% | JQ16: ITC Part 85% | JS16: ITC Part 85% | JU16: ITC Part 85% | JW16: ITC Part 85% | JY16: ITC Part 85% | KA16: ITC Part 85% | KC16: ITC Part 85% | KE16: ITC Part 85% | KG16: ITC Part 85% | KI16: ITC Part 85% | KK16: ITC Part 85% | KM16: ITC Part 85% | KO16: ITC Part 85% | KQ16: ITC Part 85% | KS16: ITC Part 85% | KU16: ITC Part 85% | KW16: ITC Part 85% | KY16: ITC Part 85% | LA16: ITC Part 85% | LC16: ITC Part 85% | LE16: ITC Part 85% | LG16: ITC Part 85% | LI16: ITC Part 85% | LK16: ITC Part 85% | LM16: ITC Part 85% | LO16: ITC Part 85% | LQ16: ITC Part 85% | LS16: ITC Part 85% | LU16: ITC Part 85% | LW16: ITC Part 85% | LY16: ITC Part 85% | MA16: ITC Part 85% | MC16: ITC Part 85% | ME16: ITC Part 85% | MG16: ITC Part 85% | MI16: ITC Part 85% | MK16: ITC Part 85% | MM16: ITC Part 85% | MO16: ITC Part 85% | MQ16: ITC Part 85% | MS16: ITC Part 85% | MU16: ITC Part 85% | MW16: ITC Part 85% | MY16: ITC Part 85% | NA16: ITC Part 85% | NC16: ITC Part 85% | NE16: ITC Part 85% | NG16: ITC Part 85% | NI16: ITC Part 85% | NK16: ITC Part 85% | NM16: ITC Part 85% | NO16: ITC Part 85% | NQ16: ITC Part 85% | NS16: ITC Part 85% | NU16: ITC Part 85% | NW16: ITC Part 85% | NY16: ITC Part 85% | OA16: ITC Part 85% | OC16: ITC Part 85% | OE16: ITC Part 85% | OG16: ITC Part 85% | OI16: ITC Part 85% | OK16: ITC Part 85% | OM16: ITC Part 85% | OO16: ITC Part 85% | OQ16: ITC Part 85% | OS16: ITC Part 85% | OU16: ITC Part 85% | OW16: ITC Part 85% | OY16: ITC Part 85% | PA16: ITC Part 85% | PC16: ITC Part 85% | PE16: ITC Part 85% | PG16: ITC Part 85% | PI16: ITC Part 85% | PK16: ITC Part 85% | PM16: ITC Part 85% | PO16: ITC Part 85% | PQ16: ITC Part 85% | PS16: ITC Part 85% | PU16: ITC Part 85% | PW16: ITC Part 85% | PY16: ITC Part 85% | QA16: ITC Part 85% | QC16: ITC Part 85% | QE16: ITC Part 85% | QG16: ITC Part 85% | QI16: ITC Part 85% | QK16: ITC Part 85% | QM16: ITC Part 85% | QO16: ITC Part 85% | QQ16: ITC Part 85% | QS16: ITC Part 85% | QU16: ITC Part 85% | QW16: ITC Part 85% | QY16: ITC Part 85% | RA16: ITC Part 85% | RC16: ITC Part 85% | RE16: ITC Part 85% | RG16: ITC Part 85% | RI16: ITC Part 85% | RK16: ITC Part 85% | RM16: ITC Part 85% | RO16: ITC Part 85% | RQ16: ITC Part 85% | RS16: ITC Part 85% | RU16: ITC Part 85% | RW16: ITC Part 85% | RY16: ITC Part 85% | SA16: ITC Part 85% | SC16: ITC Part 85% | SE16: ITC Part 85% | SG16: ITC Part 85% | SI16: ITC Part 85% | SK16: ITC Part 85% | SM16: ITC Part 85% | SO16: ITC Part 85% | SQ16: ITC Part 85% | SS16: ITC Part 85% | SU16: ITC Part 85% | SW16: ITC Part 85% | SY16: ITC Part 85% | TA16: ITC Part 85% | TC16: ITC Part 85% | TE16: ITC Part 85% | TG16: ITC Part 85% | TI16: ITC Part 85% | TK16: ITC Part 85% | TM16: ITC Part 85% | TO16: ITC Part 85% | TQ16: ITC Part 85% | TS16: ITC Part 85% | TU16: ITC Part 85% | TW16: ITC Part 85% | TY16: ITC Part 85% | UA16: ITC Part 85% | UC16: ITC Part 85% | UE16: ITC Part 85% | UG16: ITC Part 85% | UI16: ITC Part 85% | UK16: ITC Part 85% | UM16: ITC Part 85% | UO16: ITC Part 85% | UQ16: ITC Part 85% | US16: ITC Part 85% | UU16: ITC Part 85% | UW16: ITC Part 85% | UY16: ITC Part 85% | VA16: ITC Part 85% | VC16: ITC Part 85% | VE16: ITC Part 85% | VG16: ITC Part 85% | VI16: ITC Part 85% | VK16: ITC Part 85% | VM16: ITC Part 85% | VO16: ITC Part 85% | VQ16: ITC Part 85% | VS16: ITC Part 85% | VU16: ITC Part 85% | VW16: ITC Part 85% | VY16: ITC Part 85% | WA16: ITC Part 85% | WC16: ITC Part 85% | WE16: ITC Part 85% | WG16: ITC Part 85% | WI16: ITC Part 85% | WK16: ITC Part 85% | WM16: ITC Part 85% | WO16: ITC Part 85% | WQ16: ITC Part 85% | WS16: ITC Part 85% | WU16: ITC Part 85% | WW16: ITC Part 85% | WY16: ITC Part 85% | XA16: ITC Part 85% | XC16: ITC Part 85% | XE16: ITC Part 85% | XG16: ITC Part 85% | XI16: ITC Part 85% | XK16: ITC Part 85% | XM16: ITC Part 85% | XO16: ITC Part 85% | XQ16: ITC Part 85% | XS16: ITC Part 85% | XU16: ITC Part 85% | XW16: ITC Part 85% | XY16: ITC Part 85% | YA16: ITC Part 85% | YC16: ITC Part 85% | YE16: ITC Part 85% | YG16: ITC Part 85% | YI16: ITC Part 85% | YK16: ITC Part 85% | YM16: ITC Part 85% | YO16: ITC Part 85% | YQ16: ITC Part 85% | YS16: ITC Part 85% | YU16: ITC Part 85% | YW16: ITC Part 85% | YY16: ITC Part 85% | ZA16: ITC Part 85% | ZC16: ITC Part 85% | ZE16: ITC Part 85% | ZG16: ITC Part 85% | ZI16: ITC Part 85% | ZK16: ITC Part 85% | ZM16: ITC Part 85% | ZO16: ITC Part 85% | ZQ16: ITC Part 85% | ZS16: ITC Part 85% | ZU16: ITC Part 85% | ZW16: ITC Part 85% | ZY16: ITC Part 85% | AAA16: ITC Part 85% | AAC16: ITC Part 85% | AAE16: ITC Part 85% | AAG16: ITC Part 85% | AAI16: ITC Part 85% | AAK16: ITC Part 85% | AAM16: ITC Part 85% | AAO16: ITC Part 85% | AAQ16: ITC Part 85% | AAS16: ITC Part 85% | AAU16: ITC Part 85% | AAW16: ITC Part 85% | AAY16: ITC Part 85% | ABA16: ITC Part 85% | ABC16: ITC Part 85% | ABE16: ITC Part 85% | ABG16: ITC Part 85% | ABI16: ITC Part 85% | ABK16: ITC Part 85% | ABM16: ITC Part 85% | ABO16: ITC Part 85% | ABQ16: ITC Part 85% | ABS16: ITC Part 85% | ABU16: ITC Part 85% | ABW16: ITC Part 85% | ABY16: ITC Part 85% | ACA16: ITC Part 85% | ACC16: ITC Part 85% | ACE16: ITC Part 85% | ACG16: ITC Part 85% | ACI16: ITC Part 85% | ACK16: ITC Part 85% | ACM16: ITC Part 85% | ACO16: ITC Part 85% | ACQ16: ITC Part 85% | ACS16: ITC Part 85% | ACU16: ITC Part 85% | ACW16: ITC Part 85% | ACY16: ITC Part 85% | ADA16: ITC Part 85% | ADC16: ITC Part 85% | ADE16: ITC Part 85% | ADG16: ITC Part 85% | ADI16: ITC Part 85% | ADK16: ITC Part 85% | ADM16: ITC Part 85% | ADO16: ITC Part 85% | ADQ16: ITC Part 85% | ADS16: ITC Part 85% | ADU16: ITC Part 85% | ADW16: ITC Part 85% | ADY16: ITC Part 85% | AEA16: ITC Part 85% | AEC16: ITC Part 85% | AEE16: ITC Part 85% | AEG16: ITC Part 85% | AEI16: ITC Part 85% | AEK16: ITC Part 85% | AEM16: ITC Part 85% | AEO16: ITC Part 85% | AEQ16: ITC Part 85% | AES16: ITC Part 85% | AEU16: ITC Part 85% | AEW16: ITC Part 85% | AEY16: ITC Part 85% | AFA16: ITC Part 85% | AFC16: ITC Part 85% | AFE16: ITC Part 85% | AFG16: ITC Part 85% | AFI16: ITC Part 85% | AFK16: ITC Part 85% | AFM16: ITC Part 85% | AFO16: ITC Part 85% | AFQ16: ITC Part 85% | AFS16: ITC Part 85% | AFU16: ITC Part 85% | AFW16: ITC Part 85% | AFY16: ITC Part 85% | AGA16: ITC Part 85% | AGC16: ITC Part 85% | AGE16: ITC Part 85% | AGG16: ITC Part 85% | AGI16: ITC Part 85% | AGK16: ITC Part 85% | AGM16: ITC Part 85% | AGO16: ITC Part 85% | AGQ16: ITC Part 85% | AGS16: ITC Part 85% | AGU16: ITC Part 85% | AGW16: ITC Part 85% | AGY16: ITC Part 85% | AHA16: ITC Part 85% | AHC16: ITC Part 85% | AHE16: ITC Part 85% | AHG16: ITC Part 85% | AHI16: ITC Part 85% | AHK16: ITC Part 85% | AHM16: ITC Part 85% | AHO16: ITC Part 85% | AHQ16: ITC Part 85% | AHS16: ITC Part 85% | AHU16: ITC Part 85% | AHW16: ITC Part 85% | AHY16: ITC Part 85% | AIA16: ITC Part 85% | AIC16: ITC Part 85% | AIE16: ITC Part 85% | AIG16: ITC Part 85% | AII16: ITC Part 85% | AIK16: ITC Part 85% | AIM16: ITC Part 85% | AIO16: ITC Part 85% | AIQ16: ITC Part 85% | AIS16: ITC Part 85% | AIU16: ITC Part 85% | AIW16: ITC Part 85% | AIY16: ITC Part 85% | AJA16: ITC Part 85% | AJC16: ITC Part 85% | AJE16: ITC Part 85% | AJG16: ITC Part 85% | AJI16: ITC Part 85% | AJK16: ITC Part 85% | AJM16: ITC Part 85% | AJO16: ITC Part 85% | AJQ16: ITC Part 85% | AJS16: ITC Part 85% | AJU16: ITC Part 85% | AJW16: ITC Part 85% | AJY16: ITC Part 85% | AKA16: ITC Part 85% | AKC16: ITC Part 85% | AKE16: ITC Part 85% | AKG16: ITC Part 85% | AKI16: ITC Part 85% | AKK16: ITC Part 85% | AKM16: ITC Part 85% | AKO16: ITC Part 85% | AKQ16: ITC Part 85% | AKS16: ITC Part 85% | AKU16: ITC Part 85% | AKW16: ITC Part 85% | AKY16: ITC Part 85% | ALA16: ITC Part 85% | ALC16: ITC Part 85% | ALE16: ITC Part 85% | ALG16: ITC Part 85% | ALI16: ITC Part 85% | ALK16: ITC Part 85% | ALM16: ITC Part 85% | ALO16: ITC Part 85% | ALQ16: ITC Part 85% | ALS16: ITC Part 85% | ALU16: ITC Part 85% | ALW16: ITC Part 85% | ALY16: ITC Part 85% | AMA16: ITC Part 85% | AMC16: ITC Part 85% | AME16: ITC Part 85% | AMG16: ITC Part 85% | AMI16: ITC Part 85% | AMK16: ITC Part 85% | AMM16: ITC Part 85% | AMO16: ITC Part 85% | AMQ16: ITC Part 85% | AMS16: ITC Part 85% | AMU16: ITC Part 85% | AMW16: ITC Part 85% | AMY16: ITC Part 85% | ANA16: ITC Part 85% | ANC16: ITC Part 85% | ANE16: ITC Part 85% | ANG16: ITC Part 85% | ANI16: ITC Part 85% | ANK16: ITC Part 85% | ANM16: ITC Part 85% | ANO16: ITC Part 85% | ANQ16: ITC Part 85% | ANS16: ITC Part 85% | ANU16: ITC Part 85% | ANW16: ITC Part 85% | ANY16: ITC Part 85% | AOA16: ITC Part 85% | AOC16: ITC Part 85% | AOE16: ITC Part 85% | AOG16: ITC Part 85% | AOI16: ITC Part 85% | AOK16: ITC Part 85% | AOM16: ITC Part 85% | AOO16: ITC Part 85% | AOQ16: ITC Part 85% | AOS16: ITC Part 85% | AOU16: ITC Part 85% | AOW16: ITC Part 85% | AOY16: ITC Part 85% | APA16: ITC Part 85% | APC16: ITC Part 85% | APE16: ITC Part 85% | APG16: ITC Part 85% | API16: ITC Part 85% | APK16: ITC Part 85% | APM16: ITC Part 85% | APO16: ITC Part 85% | APQ16: ITC Part 85% | APS16: ITC Part 85% | APU16: ITC Part 85% | APW16: ITC Part 85% | APY16: ITC Part 85% | AQA16: ITC Part 85% | AQC16: ITC Part 85% | AQE16: ITC Part 85% | AQG16: ITC Part 85% | AQI16: ITC Part 85% | AQK16: ITC Part 85% | AQM16: ITC Part 85% | AQO16: ITC Part 85% | AQQ16: ITC Part 85% | AQS16: ITC Part 85% | AQU16: ITC Part 85% | AQW16: ITC Part 85% | AQY16: ITC Part 85% | ARA16: ITC Part 85% | ARC16: ITC Part 85% | ARE16: ITC Part 85% | ARG16: ITC Part 85% | ARI16: ITC Part 85% | ARK16: ITC Part 85% | ARM16: ITC Part 85% | ARO16: ITC Part 85% | ARQ16: ITC Part 85% | ARS16: ITC Part 85% | ARU16: ITC Part 85% | ARW16: ITC Part 85% | ARY16: ITC Part 85% | ASA16: ITC Part 85% | ASC16: ITC Part 85% | ASE16: ITC Part 85% | ASG16: ITC Part 85% | ASI16: ITC Part 85% | ASK16: ITC Part 85% | ASM16: ITC Part 85% | ASO16: ITC Part 85% | ASQ16: ITC Part 85% | ASS16: ITC Part 85% | ASU16: ITC Part 85% | ASW16: ITC Part 85% | ASY16: ITC Part 85% | ATA16: ITC Part 85% | ATC16: ITC Part 85% | ATE16: ITC Part 85% | ATG16: ITC Part 85% | ATI16: ITC Part 85% | ATK16: ITC Part 85% | ATM16: ITC Part 85% | ATO16: ITC Part 85% | ATQ16: ITC Part 85% | ATS16: ITC Part 85% | ATU16: ITC Part 85% | ATW16: ITC Part 85% | ATY16: ITC Part 85% | AUA16: ITC Part 85% | AUC16: ITC Part 85% | AUE16: ITC Part 85% | AUG16: ITC Part 85% | AUI16: ITC Part 85% | AUK16: ITC Part 85% | AUM16: ITC Part 85% | AUO16: ITC Part 85% | AUQ16: ITC Part 85% | AUS16: ITC Part 85% | AUU16: ITC Part 85% | AUW16: ITC Part 85% | AUY16: ITC Part 85% | AVA16: ITC Part 85% | AVC16: ITC Part 85% | AVE16: ITC Part 85% | AVG16: ITC Part 85% | AVI16: ITC Part 85% | AVK16: ITC Part 85% | AVM16: ITC Part 85% | AVO16: ITC Part 85% | AVQ16: ITC Part 85% | AVS16: ITC Part 85% | AVU16: ITC Part 85% | AVW16: ITC Part 85% | AVY16: ITC Part 85% | AWA16: ITC Part 85% | AWC16: ITC Part 85% | AWE16: ITC Part 85% | AWG16: ITC Part 85% | AWI16: ITC Part 85% | AWK16: ITC Part 85% | AWM16: ITC Part 85% | AWO16: ITC Part 85% | AWQ16: ITC Part 85% | AWS16: ITC Part 85% | AWU16: ITC Part 85% | AWW16: ITC Part 85% | AWY16: ITC Part 85% | AXA16: ITC Part 85% | AXC16: ITC Part 85% | AXE16: ITC Part 85% | AXG16: ITC Part 85% | AXI16: ITC Part 85% | AXK16: ITC Part 85% | AXM16: ITC Part 85% | AXO16: ITC Part 85% | AXQ16: ITC Part 85% | AXS16: ITC Part 85% | AXU16: ITC Part 85% | AXW16: ITC Part 85% | AXY16: ITC Part 85% | AYA16: ITC Part 85% | AYC16: ITC Part 85% | AYE16: ITC Part 85% | AYG16: ITC Part 85% | AYI16: ITC Part 85% | AYK16: ITC Part 85% | AYM16: ITC Part 85% | AYO16: ITC Part 85% | AYQ16: ITC Part 85% | AYS16: ITC Part 85% | AYU16: ITC Part 85% | AYW16: ITC Part 85% | AYY16: ITC Part 85% | AZA16: ITC Part 85% | AZC16: ITC Part 85% | AZE16: ITC Part 85% | AZG16: ITC Part 85% | AZI16: ITC Part 85% | AZK16: ITC Part 85% | AZM16: ITC Part 85% | AZO16: ITC Part 85% | AZQ16: ITC Part 85% | AZS16: ITC Part 85% | AZU16: ITC Part 85% | AZW16: ITC Part 85% | AZY16: ITC Part 85% | BAA16: ITC Part 85% | BAC16: ITC Part 85% | BAE16: ITC Part 85% | BAG16: ITC Part 85% | BAI16: ITC Part 85% | BAK16: ITC Part 85% | BAM16: ITC Part 85% | BAO16: ITC Part 85% | BAQ16: ITC Part 85% | BAS16: ITC Part 85% | BAU16: ITC Part 85% | BAW16: ITC Part 85% | BAY16: ITC Part 85% | BBA16: ITC Part 85% | BBC16: ITC Part 85% | BBE16: ITC Part 85% | BBG16: ITC Part 85% | BBI16: ITC Part 85% | BBK16: ITC Part 85% | BBM16: ITC Part 85% | BBO16: ITC Part 85% | BBQ16: ITC Part 85% | BBS16: ITC Part 85% | BBU16: ITC Part 85% | BBW16: ITC Part 85% | BBY16: ITC Part 85% | BCA16: ITC Part 85% | BCC16: ITC Part 85% | BCE16: ITC Part 85% | BCG16: ITC Part 85% | BCI16: ITC Part 85% | BCK16: ITC Part 85% | BCM16: ITC Part 85% | BCO16: ITC Part 85% | BCQ16: ITC Part 85% | BCS16: ITC Part 85% | BCU16: ITC Part 85% | BCW16: ITC Part 85% | BCY16: ITC Part 85% | BDA16: ITC Part 85% | BDC16: ITC Part 85% | BDE16: ITC Part 85% | BDG16: ITC Part 85% | BDI16: ITC Part 85% | BDK16: ITC Part 85% | BDM16: ITC Part 85% | BDO16: ITC Part 85% | BDQ16: ITC Part 85% | BDS16: ITC Part 85% | BDU16: ITC Part 85% | BDW16: ITC Part 85% | BDY16: ITC Part 85% | BEA16: ITC Part 85% | BEC16: ITC Part 85% | BEE16: ITC Part 85% | BEG16: ITC Part 85% | BEI16: ITC Part 85% | BEK16: ITC Part 85% | BEM16: ITC Part 85% | BEO16: ITC Part 85% | BEQ16: ITC Part 85% | BES16: ITC Part 85% | BEU16: ITC Part 85% | BEW16: ITC Part 85% | BEY16: ITC Part 85% | BFA16: ITC Part 85% | BFC16: ITC Part 85% | BFE16: ITC Part 85% | BFG16: ITC Part 85% | BFI16: ITC Part 85% | BFK16: ITC Part 85% | BFM16: ITC Part 85% | BFO16: ITC Part 85% | BFQ16: ITC Part 85% | BFS16: ITC Part 85% | BFU16: ITC Part 85% | BFW16: ITC Part 85% | BFY16: ITC Part 85% | BGA16: ITC Part 85% | BGC16: ITC Part 85% | BGE16: ITC Part 85% | BGG16: ITC Part 85% | BGI16: ITC Part 85% | BGK16: ITC Part 85% | BGM16: ITC Part 85% | BGO16: ITC Part 85% | BGQ16: ITC Part 85% | BGS16: ITC Part 85% | BGU16: ITC Part 85% | BGW16: ITC Part 85% | BGY16: ITC Part 85% | BHA16: ITC Part 85% | BHC16: ITC Part 85% | BHE16: ITC Part 85% | BHG16: ITC Part 85% | BHI16: ITC Part 85% | BHK16: ITC Part 85% | BHM16: ITC Part 85% | BHO16: ITC Part 85% | BHQ16: ITC Part 85% | BHS16: ITC Part 85% | BHU16: ITC Part 85% | BHW16: ITC Part 85% | BHY16: ITC Part 85% | BIA16: ITC Part 85% | BIC16: ITC Part 85% | BIE16: ITC Part 85% | BIG16: ITC Part 85% | BII16: ITC Part 85% | BIK16: ITC Part 85% | BIM16: ITC Part 85% | BIO16: ITC Part 85% | BIQ16: ITC Part 85% | BIS16: ITC Part 85% | BIU16: ITC Part 85% | BIW16: ITC Part 85% | BIY16: ITC Part 85% | BJA16: ITC Part 85% | BJC16: ITC Part 85% | BJE16: ITC Part 85% | BJG16: ITC Part 85% | BJI16: ITC Part 85% | BJK16: ITC Part 85% | BJM16: ITC Part 85% | BJO16: ITC Part 85% | BJQ16: ITC Part 85% | BJS16: ITC Part 85% | BJU16: ITC Part 85% | BJW16: ITC Part 85% | BJY16: ITC Part 85% | BKA16: ITC Part 85% | BKC16: ITC Part 85% | BKE16: ITC Part 85% | BKG16: ITC Part 85% | BKI16: ITC Part 85% | BKK16: ITC Part 85% | BKM16: ITC Part 85% | BKO16: ITC Part 85% | BKQ16: ITC Part 85% | BKS16: ITC Part 85% | BKU16: ITC Part 85% | BKW16: ITC Part 85% | BKY16: ITC Part 85% | BLA16: ITC Part 85% | BLC16: ITC Part 85% | BLE16: ITC Part 85% | BLG16: ITC Part 85% | BLI16: ITC Part 85% | BLK16: ITC Part 85% | BLM16: ITC Part 85% | BLO16: ITC Part 85% | BLQ16: ITC Part 85% | BLS16: ITC Part 85% | BLU16: ITC Part 85% | BLW16: ITC Part 85% | BLY16: ITC Part 85% | BMA16: ITC Part 85% | BMC16: ITC Part 85% | BME16: ITC Part 85% | BMG16: ITC Part 85% | BMI16: ITC Part 85% | BMK16: ITC Part 85% | BMM16: ITC Part 85% | BMO16: ITC Part 85% | BMQ16: ITC Part 85% | BMS16: ITC Part 85% | BMU16: ITC Part 85% | BMW16: ITC Part 85% | BMY16: ITC Part 85% | BNA16: ITC Part 85% | BNC16: ITC Part 85% | BNE16: ITC Part 85% | BNG16: ITC Part 85% | BNI16: ITC Part 85% | BNK16: ITC Part 85% | BNM16: ITC Part 85% | BNO16: ITC Part 85% | BNQ16: ITC Part 85% | BNS16: ITC Part 85% | BNU16: ITC Part 85% | BNW16: ITC Part 85% | BNY16: ITC Part 85% | BOA16: ITC Part 85% | BOC16: ITC Part 85% | BOE16: ITC Part 85% | BOG16: ITC Part 85% | BOI16: ITC Part 85% | BOK16: ITC Part 85% | BOM16: ITC Part 85% | BOO16: ITC Part 85% | BOQ16: ITC Part 85% | BOS16: ITC Part 85% | BOU16: ITC Part 85% | BOW16: ITC Part 85% | BOY16: ITC Part 85% | BPA16: ITC Part 85% | BPC16: ITC Part 85% | BPE16: ITC Part 85% | BPG16: ITC Part 85% | BPI16: ITC Part 85% | BPK16: ITC Part 85% | BPM16: ITC Part 85% | BPO16: ITC Part 85% | BPQ16: ITC Part 85% | BPS16: ITC Part 85% | BPU16: ITC Part 85% | BPW16: ITC Part 85% | BPY16: ITC Part 85% | BQA16: ITC Part 85% | BQC16: ITC Part 85% | BQE16: ITC Part 85% | BQG16: ITC Part 85% | BQI16: ITC Part 85% | BQK16: ITC Part 85% | BQM16: ITC Part 85% | BQO16: ITC Part 85% | BQQ16: ITC Part 85% | BQS16: ITC Part 85% | BQU16: ITC Part 85% | BQW16: ITC Part 85% | BQY16: ITC Part 85% | BRA16: ITC Part 85% | BRC16: ITC Part 85% | BRE16: ITC Part 85% | BRG16: ITC Part 85% | BRI16: ITC Part 85% | BRK16: ITC Part 85% | BRM16: ITC Part 85% | BRO16: ITC Part 85% | BRQ16: ITC Part 85% | BRS16: ITC Part 85% | BRU16: ITC Part 85% | BRW16: ITC Part 85% | BRY16: ITC Part 85% | BSA16: ITC Part 85% | BSC16: ITC Part 85% | BSE16: ITC Part 85% | BSG16: ITC Part 85% | BSI16: ITC Part 85% | BSK16: ITC Part 85% | BSM16: ITC Part 85% | BSO16: ITC Part 85% | BSQ16: ITC Part 85% | BSS16: ITC Part 85% | BSU16: ITC Part 85% | BSW16: ITC Part 85% | BSY16: ITC Part 85% | BTA16: ITC Part 85% | BTC16: ITC Part 85% | BTE16: ITC Part 85% | BTG16: ITC Part 85% | BTI16: ITC Part 85% | BTK16: ITC Part 85% | BTM16: ITC Part 85% | BTO16: ITC Part 85% | BTQ16: ITC Part 85% | BTS16: ITC Part 85% | BTU16: ITC Part 85% | BTW16: ITC Part 85% | BTY16: ITC Part 85% | BUA16: ITC Part 85% | BUC16: ITC Part 85% | BUE16: ITC Part 85% | BUG16: ITC Part 85% | BUI16: ITC Part 85% | BUK16: ITC Part 85% | BUM16: ITC Part 85% | BUO16: ITC Part 85% | BUQ16: ITC Part 85% | BUS16: ITC Part 85% | BUU16: ITC Part 85% | BUW16: ITC Part 85% | BUY16: ITC Part 85% | BVA16: ITC Part 85% | BVC16: ITC Part 85% | BVE16: ITC Part 85% | BVG16: ITC Part 85% | BVI16: ITC Part 85% | BVK16: ITC Part 85% | BVM16: ITC Part 85% | BVO16: ITC Part 85% | BVQ16: ITC Part 85% | BVS16: ITC Part 85% | BVU16: ITC Part 85% | BVW16: ITC Part 85% | BVY16: ITC Part 85% | BWA16: ITC Part 85% | BWC16: ITC Part 85% | BWE16: ITC Part 85% | BWG16: ITC Part 85% | BWI16: ITC Part 85% | BWK16: ITC Part 85% | BWM16: ITC Part 85% | BWO16: ITC Part 85% | BWQ16: ITC Part 85% | BWS16: ITC Part 85% | BWU16: ITC Part 85% | BWW16: ITC Part 85% | BWY16: ITC Part 85% | BXA16: ITC Part 85% | BXC16: ITC Part 85% | BXE16: ITC Part 85% | BXG16: ITC Part 85% | BXI16: ITC Part 85% | BXK16: ITC Part 85% | BXM16: ITC Part 85% | BXO16: ITC Part 85% | BXQ16: ITC Part 85% | BXS16: ITC Part 85% | BXU16: ITC Part 85% | BXW16: ITC Part 85% | BXY16: ITC Part 85% | BYA16: ITC Part 85% | BYC16: ITC Part 85% | BYE16: ITC Part 85% | BYG16: ITC Part 85% | BYI16: ITC Part 85% | BYK16: ITC Part 85% | BYM16: ITC Part 85% | BYO16: ITC Part 85% | BYQ16: ITC Part 85% | BYS16: ITC Part 85% | BYU16: ITC Part 85% | BYW16: ITC Part 85% | BYY16: ITC Part 85% | BZA16: ITC Part 85% | BZC16: ITC Part 85% | BZE16: ITC Part 85% | BZG16: ITC Part 85% | BZI16: ITC Part 85% | BZK16: ITC Part 85% | BZM16: ITC Part 85% | BZO16: ITC Part 85% | BZQ16: ITC Part 85% | BZS16: ITC Part 85% | BZU16: ITC Part 85% | BZW16: ITC Part 85% | BZY16: ITC Part 85% | CAA16: ITC Part 85% | CAC16: ITC Part 85% | CAE16: ITC Part 85% | CAG16: ITC Part 85% | CAI16: ITC Part 85% | CAK16: ITC Part 85% | CAM16: ITC Part 85% | CAO16: ITC Part 85% | CAQ16: ITC Part 85% | CAS16: ITC Part 85% | CAU16: ITC Part 85% | CAW16: ITC Part 85% | CAY16: ITC Part 85% | CBA16: ITC Part 85% | CBC16: ITC Part 85% | CBE16: ITC Part 85% | CBG16: ITC Part 85% | CBI16: ITC Part 85% | CBK16: ITC Part 85% | CBM16: ITC Part 85% | CBO16: ITC Part 85% | CBQ16: ITC Part 85% | CBS16: ITC Part 85% | CBU16: ITC Part 85% | CBW16: ITC Part 85% | CBY16: ITC Part 85% | CCA16: ITC Part 85% | CCC16: ITC Part 85% | CCE16: ITC Part 85% | CCG16: ITC Part 85% | CCI16: ITC Part 85% | CCK16: ITC Part 85% | CCM16: ITC Part 85% | CCO16: ITC Part 85% | CCQ16: ITC Part 85% | CCS16: ITC Part 85% | CCU16: ITC Part 85% | CCW16: ITC Part 85% | CCY16: ITC Part 85% | CDA16: ITC Part 85% | CDC16: ITC Part 85% | CDE16: ITC Part 85% | CDG16: ITC Part 85% | CDI16: ITC Part 85% | CDK16: ITC Part 85% | CDM16: ITC Part 85% | CDO16: ITC Part 85% | CDQ16: ITC Part 85% | CDS16: ITC Part 85% | CDU16: ITC Part 85% | CDW16: ITC Part 85% | CDY16: ITC Part 85% | CEA16: ITC Part 85% | CEC16: ITC Part 85% | CEE16: ITC Part 85% | CEG16: ITC Part 85% | CEI16: ITC Part 85% | CEK16: ITC Part 85% | CEM16: ITC Part 85% | CEO16: ITC Part 85% | CEQ16: ITC Part 85% | CES16: ITC Part 85% | CEU16: ITC Part 85% | CEW16: ITC Part 85% | CEY16: ITC Part 85% | CFA16: ITC Part 85% | CFC16: ITC Part 85% | CFE16: ITC Part 85% | CFG16: ITC Part 85% | CFI16: ITC Part 85% | CFK16: ITC Part 85% | CFM16: ITC Part 85% | CFO16: ITC Part 85% | CFQ16: ITC Part 85% | CFS16: ITC Part 85% | CFU16: ITC Part 85% | CFW16: ITC Part 85% | CFY16: ITC Part 85% | CGA16: ITC Part 85% | CGC16: ITC Part 85% | CGE16: ITC Part 85% | CGG16: ITC Part 85% | CGI16: ITC Part 85% | CGK16: ITC Part 85% | CGM16: ITC Part 85% | CGO16: ITC Part 85% | CGQ16: ITC Part 85% | CGS16: ITC Part 85% | CGU16: ITC Part 85% | CGW16: ITC Part 85% | CGY16: ITC Part 85% | CHA16: ITC Part 85% | CHC16: ITC Part 85% | CHE16: ITC Part 85% | CHG16: ITC Part 85% | CHI16: ITC Part 85% | CHK16: ITC Part 85% | CHM16: ITC Part 85% | CHO16: ITC Part 85% | CHQ16: ITC Part 85% | CHS16: ITC Part 85% | CHU16: ITC Part 85% | CHW16: ITC Part 85% | CHY16: ITC Part 85% | CIA16: ITC Part 85% | CIC16: ITC Part 85% | CIE16: ITC Part 85% | CIG16: ITC Part 85% | CII16: ITC Part 85% | CIK16: ITC Part 85% | CIM16: ITC Part 85% | CIO16: ITC Part 85% | CIQ16: ITC Part 85% | CIS16: ITC Part 85% | CIU16: ITC Part 85% | CIW16: ITC Part 85% | CIY16: ITC Part 85% | CJA16: ITC Part 85% | CJC16: ITC Part 85% | CJE16: ITC Part 85% | CJG16: ITC Part 85% | CJI16: ITC Part 85% | CJK16: ITC Part 85% | CJM16: ITC Part 85% | CJO16: ITC Part 85% | CJQ16: ITC Part 85% | CJS16: ITC Part 85% | CJU16: ITC Part 85% | CJW16: ITC Part 85% | CJY16: ITC Part 85% | CKA16: ITC Part 85% | CKC16: ITC Part 85% | CKE16: ITC Part 85% | CKG16: ITC Part 85% | CKI16: ITC Part 85% | CKK16: ITC Part 85% | CKM16: ITC Part 85% | CKO16: ITC Part 85% | CKQ16: ITC Part 85% | CKS16: ITC Part 85% | CKU16: ITC Part 85% | CKW16: ITC Part 85% | CKY16: ITC Part 85% | CLA16: ITC Part 85% | CLC16: ITC Part 85% | CLE16: ITC Part 85% | CLG16: ITC Part 85% | CLI16: ITC Part 85% | CLK16: ITC Part 85% | CLM16: ITC Part 85% | CLO16: ITC Part 85% | CLQ16: ITC Part 85% | CLS16: ITC Part 85% | CLU16: ITC Part 85% | CLW16: ITC Part 85% | CLY16: ITC Part 85% | CMA16: ITC Part 85% | CMC16: ITC Part 85% | CME16: ITC Part 85% | CMG16: ITC Part 85% | CMI16: ITC Part 85% | CMK16: ITC Part 85% | CMM16: ITC Part 85% | CMO16: ITC Part 85% | CMQ16: ITC Part 85% | CMS16: ITC Part 85% | CMU16: ITC Part 85% | CMW16: ITC Part 85% | CMY16: ITC Part 85% | CNA16: ITC Part 85% | CNC16: ITC Part 85% | CNE16: ITC Part 85% | CNG16: ITC Part 85% | CNI16: ITC Part 85% | CNK16: ITC Part 85% | CNM16: ITC Part 85% | CNO16: ITC Part 85% | CNQ16: ITC Part 85% | CNS16: ITC Part 85% | CNU16: ITC Part 85% | CNW16: ITC Part 85% | CNY16: ITC Part 85% | COA16: ITC Part 85% | COC16: ITC Part 85% | COE16: ITC Part 85% | COG16: ITC Part 85% | COI16: ITC Part 85% | COK16: ITC Part 85% | COM16: ITC Part 85% | COO16: ITC Part 85% | COQ16: ITC Part 85% | COS16: ITC Part 85% | COU16: ITC Part 85% | COW16: ITC Part 85% | COY16: ITC Part 85% | CPA16: ITC Part 85% | CPC16: ITC Part 85% | CPE16: ITC Part 85% | CPG16: ITC Part 85% | CPI16: ITC Part 85% | CPK16: ITC Part 85% | CPM16: ITC Part 85% | CPO16: ITC Part 85% | CPQ16: ITC Part 85% | CPS16: ITC Part 85% | CPU16: ITC Part 85% | CPW16: ITC Part 85% | CPY16: ITC Part 85% | CQA16: ITC Part 85% | CQC16: ITC Part 85% | CQE16: ITC Part 85% | CQG16: ITC Part 85% | CQI16: ITC Part 85% | CQK16: ITC Part 85% | CQM16: ITC Part 85% | CQO16: ITC Part 85% | CQQ16: ITC Part 85% | CQS16: ITC Part 85% | CQU16: ITC Part 85% | CQW16: ITC Part 85% | CQY16: ITC Part 85% | CRA16: ITC Part 85% | CRC16: ITC Part 85% | CRE16: ITC Part 85% | CRG16: ITC Part 85% | CRI16: ITC Part 85% | CRK16: ITC Part 85% | CRM16: ITC Part 85% | CRO16: ITC Part 85% | CRQ16: ITC Part 85% | CRS16: ITC Part 85% | CRU16: ITC Part 85% | CRW16: ITC Part 85% | CRY16: ITC Part 85% | CSA16: ITC Part 85% | CSC16: ITC Part 85% | CSE16: ITC Part 85% | CSG16: ITC Part 85% | CSI16: ITC Part 85% | CSK16: ITC Part 85% | CSM16: ITC Part 85% | CSO16: ITC Part 85% | CSQ16: ITC Part 85% | CSS16: ITC Part 85% | CSU16: ITC Part 85% | CSW16: ITC Part 85% | CSY16: ITC Part 85% | CTA16: ITC Part 85% | CTC16: ITC Part 85% | CTE16: ITC Part 85% | CTG16: ITC Part 85% | CTI16: ITC Part 85% | CTK16: ITC Part 85% | CTM16: ITC Part 85% | CTO16: ITC Part 85% | CTQ16: ITC Part 85% | CTS16: ITC Part 85% | CTU16: ITC Part 85% | CTW16: ITC Part 85% | CTY16: ITC Part 85% | CUA16: ITC Part 85% | CUC16: ITC Part 85% | CUE16: ITC Part 85% | CUG16: ITC Part 85% | CUI16: ITC Part 85% | CUK16: ITC Part 85% | CUM16: ITC Part 85% | CUO16: ITC Part 85% | CUQ16: ITC Part 85% | CUS16: ITC Part 85% | CUU16: ITC Part 85% | CUW16: ITC Part 85% | CUY16: ITC Part 85% | CVA16: ITC Part 85% | CVC16: ITC Part 85% | CVE16: ITC Part 85% | CVG16: ITC Part 85% | CVI16: ITC Part 85% | CVK16: ITC Part 85% | CVM16: ITC Part 85% | CVO16: ITC Part 85% | CVQ16: ITC Part 85% | CVS16: ITC Part 85% | CVU16: ITC Part 85% | CVW16: ITC Part 85% | CVY16: ITC Part 85% | CWA16: ITC Part 85% | CWC16: ITC Part 85% | CWE16: ITC Part 85% | CWG16: ITC Part 85% | CWI16: ITC Part 85% | CWK16: ITC Part 85% | CWM16: ITC Part 85% | CWO16: ITC Part 85% | CWQ16: ITC Part 85% | CWS16: ITC Part 85% | CWU16: ITC Part 85% | CWW16: ITC Part 85% | CWY16: ITC Part 85% | CXA16: ITC Part 85% | CXC16: ITC Part 85% | CXE16: ITC Part 85% | CXG16: ITC Part 85% | CXI16: ITC Part 85% | CXK16: ITC Part 85% | CXM16: ITC Part 85% | CXO16: ITC Part 85% | CXQ16: ITC Part 85% | CXS16: ITC Part 85% | CXU16: ITC Part 85% | CXW16: ITC Part 85% | CXY16: ITC Part 85% | CYA16: ITC Part 85% | CYC16: ITC Part 85% | CYE16: ITC Part 85% | CYG16: ITC Part 85% | CYI16: ITC Part 85% | CYK16: ITC Part 85% | CYM16: ITC Part 85% | CYO16: ITC Part 85% | CYQ16: ITC Part 85% | CYS16: ITC Part 85% | CYU16: ITC Part 85% | CYW16: ITC Part 85% | CYY16: ITC Part 85% | CZA16: ITC Part 85% | CZC16: ITC Part 85% | CZE16: ITC Part 85% | CZG16: ITC Part 85% | CZI16: ITC Part 85% | CZK16: ITC Part 85% | CZM16: ITC Part 85% | CZO16: ITC Part 85% | CZQ16: ITC Part 85% | CZS16: ITC Part 85% | CZU16: ITC Part 85% | CZW16: ITC Part 85% | CZY16: ITC Part 85% | DAA16: ITC Part 85% | DAC16: ITC Part 85% | DAE16: ITC Part 85% | DAG16: ITC Part 85% | DAI16: ITC Part 85% | DAK16: ITC Part 85% | DAM16: ITC Part 85% | DAO16: ITC Part 85% | DAQ16: ITC Part 85% | DAS16: ITC Part 85% | DAU16: ITC Part 85% | DAW16: ITC Part 85% | DAY16: ITC Part 85% | DBA16: ITC Part 85% | DBC16: ITC Part 85% | DBE16: ITC Part 85% | DBG16: ITC Part 85% | DBI16: ITC Part 85% | DBK16: ITC Part 85% | DBM16: ITC Part 85% | DBO16: ITC Part 85% | DBQ16: ITC Part 85% | DBS16: ITC Part 85% | DBU16: ITC Part 85% | DBW16: ITC Part 85% | DBY16: ITC Part 85% | DCA16: ITC Part 85% | DCC16: ITC Part 85% | DCE16: ITC Part 85% | DCG16: ITC Part 85% | DCI16: ITC Part 85% | DCK16: ITC Part 85% | DCM16: ITC Part 85% | DCO16: ITC Part 85% | DCQ16: ITC Part 85% | DCS16: ITC Part 85% | DCU16: ITC Part 85% | DCW16: ITC Part 85% | DCY16: ITC Part 85% | DDA16: ITC Part 85% | DDC16: ITC Part 85% | DDE16: ITC Part 85% | DDG16: ITC Part 85% | DDI16: ITC Part 85% | DDK16: ITC Part 85% | DDM16: ITC Part 85% | DDO16: ITC Part 85% | DDQ16: ITC Part 85% | DDS16: ITC Part 85% | DDU16: ITC Part 85% | DDW16: ITC Part 85% | DDY16: ITC Part 85% | DEA16: ITC Part 85% | DEC16: ITC Part 85% | DEE16: ITC Part 85% | DEG16: ITC Part 85% | DEI16: ITC Part 85% | DEK16: ITC Part 85% | DEM16: ITC Part 85% | DEO16: ITC Part 85% | DEQ16: ITC Part 85% | DES16: ITC Part 85% | DEU16: ITC Part 85% | DEW16: ITC Part 85% | DEY16: ITC Part 85% | DFA16: ITC Part 85% | DFC16: ITC Part 85% | DFE16: ITC Part 85% | DFG16: ITC Part 85% | DFI16: ITC Part 85% | DFK16: ITC Part 85% | DFM16: ITC Part 85% | DFO16: ITC Part 85% | DFQ16: ITC Part 85% | DFS16: ITC Part 85% | DFU16: ITC Part 85% | DFW16: ITC Part 85% | DFY16: ITC Part 85% | DGA16: ITC Part 85% | DGC16: ITC Part 85% | DGE16: ITC Part 85% | DGG16: ITC Part 85% | DGI16: ITC Part 85% | DGK16: ITC Part 85% | DGM16: ITC Part 85% | DGO16: ITC Part 85% | DGQ16: ITC Part 85% | DGS16: ITC Part 85% | DGU16: ITC Part 85% | DGW16: ITC Part 85% | DGY16: ITC Part 85% | DHA16: ITC Part 85% | DHC16: ITC Part 85% | DHE16: ITC Part 85% | DHG16: ITC Part 85% | DHI16: ITC Part 85% | DHK16: ITC Part 85% | DHM16: ITC Part 85% | DHO16: ITC Part 85% | DHQ16: ITC Part 85% | DHS16: ITC Part 85% | DHU16: ITC Part 85% | DHW16: ITC Part 85% | DHY16: ITC Part 85% | DIA16: ITC Part 85% | DIC16: ITC Part 85% | DIE16: ITC Part 85% | DIG16: ITC Part 85% | DII16: ITC Part 85% | DIK16: ITC Part 85% | DIM16: ITC Part 85% | DIO16: ITC Part 85% | DIQ16: ITC Part 85% | DIS16: ITC Part 85% | DIU16: ITC Part 85% | DIW16: ITC Part 85% | DIY16: ITC Part 85% | DJA16: ITC Part 85% | DJC16: ITC Part 85% | DJE16: ITC Part 85% | DJG16: ITC Part 85% | DJI16: ITC Part 85% | DJK16: ITC Part 85% | DJM16: ITC Part 85% | DJO16: ITC Part 85% | DJQ16: ITC Part 85% | DJS16: ITC Part 85% | DJU16: ITC Part 85% | DJW16: ITC Part 85% | DJY16: ITC Part 85% | DKA16: ITC Part 85% | DKC16: ITC Part 85% | DKE16: ITC Part 85% | DKG16: ITC Part 85% | DKI16: ITC Part 85% | DKK16: ITC Part 85% | DKM16: ITC Part 85% | DKO16: ITC Part 85% | DKQ16: ITC Part 85% | DKS16: ITC Part 85% | DKU16: ITC Part 85% | DKW16: ITC Part 85% | DKY16: ITC Part 85% | DLA16: ITC Part 85% | DLC16: ITC Part 85% | DLE16: ITC Part 85% | DLG16: ITC Part 85% | DLI16: ITC Part 85% | DLK16: ITC Part 85% | DLM16: ITC Part 85% | DLO16: ITC Part 85% | DLQ16: ITC Part 85% | DLS16: ITC Part 85% | DLU16: ITC Part 85% | DLW16: ITC Part 85% | DLY16: ITC Part 85% | DMA16: ITC Part 85% | DMC16: ITC Part 85% | DME16: ITC Part 85% | DMG16: ITC Part 85% | DMI16: ITC Part 85% | DMK16: ITC Part 85% | DMM16: ITC Part 85% | DMO16: ITC Part 85% | DMQ16: ITC Part 85% | DMS16: ITC Part 85% | DMU16: ITC Part 85% | DMW16: ITC Part 85% | DMY16: ITC Part 85% | DNA16: ITC Part 85% | DNC16: ITC Part 85% | DNE16: ITC Part 85% | DNG16: ITC Part 85% | DNI16: ITC Part 85% | DNK16: ITC Part 85% | DNM16: ITC Part 85% | DNO16: ITC Part 85% | DNQ16: ITC Part 85% | DNS16: ITC Part 85% | DNU16: ITC Part 85% | DNW16: ITC Part 85% | DNY16: ITC Part 85% | DOA16: ITC Part 85% | DOC16: ITC Part 85% | DOE16: ITC Part 85% | DOG16: ITC Part 85% | DOI16: ITC Part 85% | DOK16: ITC Part 85% | DOM16: ITC Part 85% | DOO16: ITC Part 85% | DOQ16: ITC Part 85% | DOS16: ITC Part 85% | DOU16: ITC Part 85% | DOW16: ITC Part 85% | DOY16: ITC Part 85% | DPA16: ITC Part 85% | DPC16: ITC Part 85% | DPE16: ITC Part 85% | DPG16: ITC Part 85% | DPI16: ITC Part 85% | DPK16: ITC Part 85% | DPM16: ITC Part 85% | DPO16: ITC Part 85% | DPQ16: ITC Part 85% | DPS16: ITC Part 85% | DPU16: ITC Part 85% | DPW16: ITC Part 85% | DPY16: ITC Part 85% | DQA16: ITC Part 85% | DQC16: ITC Part 85% | DQE16: ITC Part 85% | DQG16: ITC Part 85% | DQI16: ITC Part 85% | DQK16: ITC Part 85% | DQM16: ITC Part 85% | DQO16: ITC Part 85% | DQQ16: ITC Part 85% | DQS16: ITC Part 85% | DQU16: ITC Part 85% | DQW16: ITC Part 85% | DQY16: ITC Part 85% | DRA16: ITC Part 85% | DRC16: ITC Part 85% | DRE16: ITC Part 85% | DRG16: ITC Part 85% | DRI16: ITC Part 85% | DRK16: ITC Part 85% | DRM16: ITC Part 85% | DRO16: ITC Part 85% | DRQ16: ITC Part 85% | DRS16: ITC Part 85% | DRU16: ITC Part 85% | DRW16: ITC Part 85% | DRY16: ITC Part 85% | DSA16: ITC Part 85% | DSC16: ITC Part 85% | DSE16: ITC Part 85% | DSG16: ITC Part 85% | DSI16: ITC Part 85% | DSK16: ITC Part 85% | DSM16: ITC Part 85% | DSO16: ITC Part 85% | DSQ16: ITC Part 85% | DSS16: ITC Part 85% | DSU16: ITC Part 85% | DSW16: ITC Part 85% | DSY16: ITC Part 85% | DTA16: ITC Part 85% | DTC16: ITC Part 85% | DTE16: ITC Part 85% | DTG16: ITC Part 85% | DTI16: ITC Part 85% | DTK16: ITC Part 85% | DTM16: ITC Part 85% | DTO16: ITC Part 85% | DTQ16: ITC Part 85% | DTS16: ITC Part 85% | DTU16: ITC Part 85% | DTW16: ITC Part 85% | DTY16: ITC Part 85% | DUA16: ITC Part 85% | DUC16: ITC Part 85% | DUE16: ITC Part 85% | DUG16: ITC Part 85% | DUI16: ITC Part 85% | DUK16: ITC Part 85% | DUM16: ITC Part 85% | DUO16: ITC Part 85% | DUQ16: ITC Part 85% | DUS16: ITC Part 85% | DUU16: ITC Part 85% | DUW16: ITC Part 85% | DUY16: ITC Part 85% | DVA16: ITC Part 85% | DVC16: ITC Part 85% | DVE16: ITC Part 85% | DVG16: ITC Part 85% | DVI16: ITC Part 85% | DVK16: ITC Part 85% | DVM16: ITC Part 85% | DVO16: ITC Part 85% | DVQ16: ITC Part 85% | DVS16: ITC Part 85% | DVU16: ITC Part 85% | DVW16: ITC Part 85% | DVY16: ITC Part 85% | DWA16: ITC Part 85% | DWC16: ITC Part 85% | DWE16: ITC Part 85% | DWG16: ITC Part 85% | DWI16: ITC Part 85% | DWK16: ITC Part 85% | DWM16: ITC Part 85% | DWO16: ITC Part 85% | DWQ16: ITC Part 85% | DWS16: ITC Part 85% | DWU16: ITC Part 85% | DWW16: ITC Part 85% | DWY16: ITC Part 85% | DXA16: ITC Part 85% | DXC16: ITC Part 85% | DXE16: ITC Part 85% | DXG16: ITC Part 85% | DXI16: ITC Part 85% | DXK16: ITC Part 85% | DXM16: ITC Part 85% | DXO16: ITC Part 85% | DXQ16: ITC Part 85% | DXS16: ITC Part 85% | DXU16: ITC Part 85% | DXW16: ITC Part 85% | DXY16: ITC Part 85% | DYA16: ITC Part 85% | DYC16: ITC Part 85% | DYE16: ITC Part 85% | DYG16: ITC Part 85% | DYI16: ITC Part 85% | DYK16: ITC Part 85% | DYM16: ITC Part 85% | DYO16: ITC Part 85% | DYQ16: ITC Part 85% | DYS16: ITC Part 85% | DYU16: ITC Part 85% | DYW16: ITC Part 85% | DYY16: ITC Part 85% | DZA16: ITC Part 85% | DZC16: ITC Part 85% | DZE16: ITC Part 85% | DZG16: ITC Part 85% | DZI16: ITC Part 85% | DZK16: ITC Part 85% | DZM16: ITC Part 85% | DZO16: ITC Part 85% | DZQ16: ITC Part 85% | DZS16: ITC Part 85% | DZU16: ITC Part 85% | DZW16: ITC Part 85% | DZY16: ITC Part 85% | EAA16: ITC Part 85% | EAC16: ITC Part 85% | EAE16: ITC Part 85% | EAG16: ITC Part 85% | EAI16: ITC Part 85% | EAK16: ITC Part 85% | EAM16: ITC Part 85% | EAO16: ITC Part 85% | EAQ16: ITC Part 85% | EAS16: ITC Part 85% | EAU16: ITC Part 85% | EAW16: ITC Part 85% | EAY16: ITC Part 85% | EBA16: ITC Part 85% | EBC16: ITC Part 85% | EBE16: ITC Part 85% | EBG16: ITC Part 85% | EBI16: ITC Part 85% | EBK16: ITC Part 85% | EBM16: ITC Part 85% | EBO16: ITC Part 85% | EBQ16: ITC Part 85% | EBS16: ITC Part 85% | EBU16: ITC Part 85% | EBW16: ITC Part 85% | EBY16: ITC Part 85% | ECA16: ITC Part 85% | ECC16: ITC Part 85% | ECE16: ITC Part 85% | ECG16: ITC Part 85% | ECI16: ITC Part 85% | ECK16: ITC Part 85% | ECM16: ITC Part 85% | ECO16: ITC Part 85% | ECQ16: ITC Part 85% | ECS16: ITC Part 85% | ECU16: ITC Part 85% | ECW16: ITC Part 85% | ECY16: ITC Part 85% | EDA16: ITC Part 85% | EDC16: ITC Part 85% | EDE16: ITC Part 85% | EDG16: ITC Part 85% | EDI16: ITC Part 85% | EDK16: ITC Part 85% | EDM16: ITC Part 85% | EDO16: ITC Part 85% | EDQ16: ITC Part 85% | EDS16: ITC Part 85% | EDU16: ITC Part 85% | EDW16: ITC Part 85% | EDY16: ITC Part 85% | EEA16: ITC Part 85% | EEC16: ITC Part 85% | EEE16: ITC Part 85% | EEG16: ITC Part 85% | EEI16: ITC Part 85% | EEK16: ITC Part 85% | EEM16: ITC Part 85% | EEO16: ITC Part 85% | EEQ16: ITC Part 85% | EES16: ITC Part 85% | EEU16: ITC Part 85% | EEW16: ITC Part 85% | EEY16: ITC Part 85% | EFA16: ITC Part 85% | EFC16: ITC Part 85% | EFE16: ITC Part 85% | EFG16: ITC Part 85% | EFI16: ITC Part 85% | EFK16: ITC Part 85% | EFM16: ITC Part 85% | EFO16: ITC Part 85% | EFQ16: ITC Part 85% | EFS16: ITC Part 85% | EFU16: ITC Part 85% | EFW16: ITC Part 85% | EFY16: ITC Part 85% | EGA16: ITC Part 85% | EGC16: ITC Part 85% | EGE16: ITC Part 85% | EGG16: ITC Part 85% | EGI16: ITC Part 85% | EGK16: ITC Part 85% | EGM16: ITC Part 85% | EGO16: ITC Part 85% | EGQ16: ITC Part 85% | EGS16: ITC Part 85% | EGU16: ITC Part 85% | EGW16: ITC Part 85% | EGY16: ITC Part 85% | EHA16: ITC Part 85% | EHC16: ITC Part 85% | EHE16: ITC Part 85% | EHG16: ITC Part 85% | EHI16: ITC Part 85% | EHK16: ITC Part 85% | EHM16: ITC Part 85% | EHO16: ITC Part 85% | EHQ16: ITC Part 85% | EHS16: ITC Part 85% | EHU16: ITC Part 85% | EHW16: ITC Part 85% | EHY16: ITC Part 85% | EIA16: ITC Part 85% | EIC16: ITC Part 85% | EIE16: ITC Part 85% | EIG16: ITC Part 85% | EII16: ITC Part 85% | EIK16: ITC Part 85% | EIM16: ITC Part 85% | EIO16: ITC Part 85% | EIQ16: ITC Part 85% | EIS16: ITC Part 85% | EIU16: ITC Part 85% | EIW16: ITC Part 85% | EIY16: ITC Part 85% | EJA16: ITC Part 85% | EJC16: ITC Part 85% | EJE16: ITC Part 85% | EJG16: ITC Part 85% | EJI16: ITC Part 85% | EJK16: ITC Part 85% | EJM16: ITC Part 85% | EJO16: ITC Part 85% | EJQ16: ITC Part 85% | EJS16: ITC Part 85% | EJU16: ITC Part 85% | EJW16: ITC Part 85% | EJY16: ITC Part 85% | EKA16: ITC Part 85% | EKC16: ITC Part 85% | EKE16: ITC Part 85% | EKG16: ITC Part 85% | EKI16: ITC Part 85% | EKK16: ITC Part 85% | EKM16: ITC Part 85% | EKO16: ITC Part 85% | EKQ16: ITC Part 85% | EKS16: ITC Part 85% | EKU16: ITC Part 85% | EKW16: ITC Part 85% | EKY16: ITC Part 85% | ELA16: ITC Part 85% | ELC16: ITC Part 85% | ELE16: ITC Part 85% | ELG16: ITC Part 85% | ELI16: ITC Part 85% | ELK16: ITC Part 85% | ELM16: ITC Part 85% | ELO16: ITC Part 85% | ELQ16: ITC Part 85% | ELS16: ITC Part 85% | ELU16: ITC Part 85% | ELW16: ITC Part 85% | ELY16: ITC Part 85% | EMA16: ITC Part 85% | EMC16: ITC Part 85% | EME16: ITC Part 85% | EMG16: ITC Part 85% | EMI16: ITC Part 85% | EMK16: ITC Part 85% | EMM16: ITC Part 85% | EMO16: ITC Part 85% | EMQ16: ITC Part 85% | EMS16: ITC Part 85% | EMU16: ITC Part 85% | EMW16: ITC Part 85% | EMY16: ITC Part 85% | ENA16: ITC Part 85% | ENC16: ITC Part 85% | ENE16: ITC Part 85% | ENG16: ITC Part 85% | ENI16: ITC Part 85% | ENK16: ITC Part 85% | ENM16: ITC Part 85% | ENO16: ITC Part 85% | ENQ16: ITC Part 85% | ENS16: ITC Part 85% | ENU16: ITC Part 85% | ENW16: ITC Part 85% | ENY16: ITC Part 85% | EOA16: ITC Part 85% | EOC16: ITC Part 85% | EOE16: ITC Part 85% | EOG16: ITC Part 85% | EOI16: ITC Part 85% | EOK16: ITC Part 85% | EOM16: ITC Part 85% | EOO16: ITC Part 85% | EOQ16: ITC Part 85% | EOS16: ITC Part 85% | EOU16: ITC Part 85% | EOW16: ITC Part 85% | EOY16: ITC Part 85% | EPA16: ITC Part 85% | EPC16: ITC Part 85% | EPE16: ITC Part 85% | EPG16: ITC Part 85% | EPI16: ITC Part 85% | EPK16: ITC Part 85% | EPM16: ITC Part 85% | EPO16: ITC Part 85% | EPQ16: ITC Part 85% | EPS16: ITC Part 85% | EPU16: ITC Part 85% | EPW16: ITC Part 85% | EPY16: ITC Part 85% | EQA16: ITC Part 85% | EQC16: ITC Part 85% | EQE16: ITC Part 85% | EQG16: ITC Part 85% | EQI16: ITC Part 85% | EQK16: ITC Part 85% | EQM16: ITC Part 85% | EQO16: ITC Part 85% | EQQ16: ITC Part 85% | EQS16: ITC Part 85% | EQU16: ITC Part 85% | EQW16: ITC Part 85% | EQY16: ITC Part 85% | ERA16: ITC Part 85% | ERC16: ITC Part 85% | ERE16: ITC Part 85% | ERG16: ITC Part 85% | ERI16: ITC Part 85% | ERK16: ITC Part 85% | ERM16: ITC Part 85% | ERO16: ITC Part 85% | ERQ16: ITC Part 85% | ERS16: ITC Part 85% | ERU16: ITC Part 85% | ERW16: ITC Part 85% | ERY16: ITC Part 85% | ESA16: ITC Part 85% | ESC16: ITC Part 85% | ESE16: ITC Part 85% | ESG16: ITC Part 85% | ESI16: ITC Part 85% | ESK16: ITC Part 85% | ESM16: ITC Part 85% | ESO16: ITC Part 85% | ESQ16: ITC Part 85% | ESS16: ITC Part 85% | ESU16: ITC Part 85% | ESW16: ITC Part 85% | ESY16: ITC Part 85% | ETA16: ITC Part 85% | ETC16: ITC Part 85% | ETE16: ITC Part 85% | ETG16: ITC Part 85% | ETI16: ITC Part 85% | ETK16: ITC Part 85% | ETM16: ITC Part 85% | ETO16: ITC Part 85% | ETQ16: ITC Part 85% | ETS16: ITC Part 85% | ETU16: ITC Part 85% | ETW16: ITC Part 85% | ETY16: ITC Part 85% | EUA16: ITC Part 85% | EUC16: ITC Part 85% | EUE16: ITC Part 85% | EUG16: ITC Part 85% | EUI16: ITC Part 85% | EUK16: ITC Part 85% | EUM16: ITC Part 85% | EUO16: ITC Part 85% | EUQ16: ITC Part 85% | EUS16: ITC Part 85% | EUU16: ITC Part 85% | EUW16: ITC Part 85% | EUY16: ITC Part 85% | EVA16: ITC Part 85% | EVC16: ITC Part 85% | EVE16: ITC Part 85% | EVG16: ITC Part 85% | EVI16: ITC Part 85% | EVK16: ITC Part 85% | EVM16: ITC Part 85% | EVO16: ITC Part 85% | EVQ16: ITC Part 85% | EVS16: ITC Part 85% | EVU16: ITC Part 85% | EVW16: ITC Part 85% | EVY16: ITC Part 85% | EWA16: ITC Part 85% | EWC16: ITC Part 85% | EWE16: ITC Part 85% | EWG16: ITC Part 85% | EWI16: ITC Part 85% | EWK16: ITC Part 85% | EWM16: ITC Part 85% | EWO16: ITC Part 85% | EWQ16: ITC Part 85% | EWS16: ITC Part 85% | EWU16: ITC Part 85% | EWW16: ITC Part 85% | EWY16: ITC Part 85% | EXA16: ITC Part 85% | EXC16: ITC Part 85% | EXE16: ITC Part 85% | EXG16: ITC Part 85% | EXI16: ITC Part 85% | EXK16: ITC Part 85% | EXM16: ITC Part 85% | EXO16: ITC Part 85% | EXQ16: ITC Part 85% | EXS16: ITC Part 85% | EXU16: ITC Part 85% | EXW16: ITC Part 85% | EXY16: ITC Part 85% | EYA16: ITC Part 85% | EYC16: ITC Part 85% | EYE16: ITC Part 85% | EYG16: ITC Part 85% | EYI16: ITC Part 85% | EYK16: ITC Part 85% | EYM16: ITC Part 85% | EYO16: ITC Part 85% | EYQ16: ITC Part 85% | EYS16: ITC Part 85% | EYU16: ITC Part 85% | EYW16: ITC Part 85% | EYY16: ITC Part 85% | EZA16: ITC Part 85% | EZC16: ITC Part 85% | EZE16: ITC Part 85% | EZG16: ITC Part 85% | EZI16: ITC Part 85% | EZK16: ITC Part 85% | EZM16: ITC Part 85% | EZO16: ITC Part 85% | EZQ16: ITC Part 85% | EZS16: ITC Part 85% | EZU16: ITC Part 85% | EZW16: ITC Part 85% | EZY16: ITC Part 85% | FAA16: ITC Part 85% | FAC16: ITC Part 85% | FAE16: ITC Part 85% | FAG16: ITC Part 85% | FAI16: ITC Part 85% | FAK16: ITC Part 85% | FAM16: ITC Part 85% | FAO16: ITC Part 85% | FAQ16: ITC Part 85% | FAS16: ITC Part 85% | FAU16: ITC Part 85% | FAW16: ITC Part 85% | FAY16: ITC Part 85% | FBA16: ITC Part 85% | FBC16: ITC Part 85% | FBE16: ITC Part 85% | FBG16: ITC Part 85% | FBI16: ITC Part 85% | FBK16: ITC Part 85% | FBM16: ITC Part 85% | FBO16: ITC Part 85% | FBQ16: ITC Part 85% | FBS16: ITC Part 85% | FBU16: ITC Part 85% | FBW16: ITC Part 85% | FBY16: ITC Part 85% | FCA16: ITC Part 85% | FCC16: ITC Part 85% | FCE16: ITC Part 85% | FCG16: ITC Part 85% | FCI16: ITC Part 85% | FCK16: ITC Part 85% | FCM16: ITC Part 85% | FCO16: ITC Part 85% | FCQ16: ITC Part 85% | FCS16: ITC Part 85% | FCU16: ITC Part 85% | FCW16: ITC Part 85% | FCY16: ITC Part 85% | FDA16: ITC Part 85% | FDC16: ITC Part 85% | FDE16: ITC Part 85% | FDG16: ITC Part 85% | FDI16: ITC Part 85% | FDK16: ITC Part 85% | FDM16: ITC Part 85% | FDO16: ITC Part 85% | FDQ16: ITC Part 85% | FDS16: ITC Part 85% | FDU16: ITC Part 85% | FDW16: ITC Part 85% | FDY16: ITC Part 85% | FEA16: ITC Part 85% | FEC16: ITC Part 85% | FEE16: ITC Part 85% | FEG16: ITC Part 85% | FEI16: ITC Part 85% | FEK16: ITC Part 85% | FEM16: ITC Part 85% | FEO16: ITC Part 85% | FEQ16: ITC Part 85% | FES16: ITC Part 85% | FEU16: ITC Part 85% | FEW16: ITC Part 85% | FEY16: ITC Part 85% | FFA16: ITC Part 85% | FFC16: ITC Part 85% | FFE16: ITC Part 85% | FFG16: ITC Part 85% | FFI16: ITC Part 85% | FFK16: ITC Part 85% | FFM16: ITC Part 85% | FFO16: ITC Part 85% | FFQ16: ITC Part 85% | FFS16: ITC Part 85% | FFU16: ITC Part 85% | FFW16: ITC Part 85% | FFY16: ITC Part 85% | FGA16: ITC Part 85% | FGC16: ITC Part 85% | FGE16: ITC Part 85% | FGG16: ITC Part 85% | FGI16: ITC Part 85% | FGK16: ITC Part 85% | FGM16: ITC Part 85% | FGO16: ITC Part 85% | FGQ16: ITC Part 85% | FGS16: ITC Part 85% | FGU16: ITC Part 85% | FGW16: ITC Part 85% | FGY16: ITC Part 85% | FHA16: ITC Part 85% | FHC16: ITC Part 85% | FHE16: ITC Part 85% | FHG16: ITC Part 85% | FHI16: ITC Part 85% | FHK16: ITC Part 85% | FHM16: ITC Part 85% | FHO16: ITC Part 85% | FHQ16: ITC Part 85% | FHS16: ITC Part 85% | FHU16: ITC Part 85% | FHW16: ITC Part 85% | FHY16: ITC Part 85% | FIA16: ITC Part 85% | FIC16: ITC Part 85% | FIE16: ITC Part 85% | FIG16: ITC Part 85% | FII16: ITC Part 85% | FIK16: ITC Part 85% | FIM16: ITC Part 85% | FIO16: ITC Part 85% | FIQ16: ITC Part 85% | FIS16: ITC Part 85% | FIU16: ITC Part 85% | FIW16: ITC Part 85% | FIY16: ITC Part 85% | FJA16: ITC Part 85% | FJC16: ITC Part 85% | FJE16: ITC Part 85% | FJG16: ITC Part 85% | FJI16: ITC Part 85% | FJK16: ITC Part 85% | FJM16: ITC Part 85% | FJO16: ITC Part 85% | FJQ16: ITC Part 85% | FJS16: ITC Part 85% | FJU16: ITC Part 85% | FJW16: ITC Part 85% | FJY16: ITC Part 85% | FKA16: ITC Part 85% | FKC16: ITC Part 85% | FKE16: ITC Part 85% | FKG16: ITC Part 85% | FKI16: ITC Part 85% | FKK16: ITC Part 85% | FKM16: ITC Part 85% | FKO16: ITC Part 85% | FKQ16: ITC Part 85% | FKS16: ITC Part 85% | FKU16: ITC Part 85% | FKW16: ITC Part 85% | FKY16: ITC Part 85% | FLA16: ITC Part 85% | FLC16: ITC Part 85% | FLE16: ITC Part 85% | FLG16: ITC Part 85% | FLI16: ITC Part 85% | FLK16: ITC Part 85% | FLM16: ITC Part 85% | FLO16: ITC Part 85% | FLQ16: ITC Part 85% | FLS16: ITC Part 85% | FLU16: ITC Part 85% | FLW16: ITC Part 85% | FLY16: ITC Part 85% | FMA16: ITC Part 85% | FMC16: ITC Part 85% | FME16: ITC Part 85% | FMG16: ITC Part 85% | FMI16: ITC Part 85% | FMK16: ITC Part 85% | FMM16: ITC Part 85% | FMO16: ITC Part 85% | FMQ16: ITC Part 85% | FMS16: ITC Part 85% | FMU16: ITC Part 85% | FMW16: ITC Part 85% | FMY16: ITC Part 85% | FNA16: ITC Part 85% | FNC16: ITC Part 85% | FNE16: ITC Part 85% | FNG16: ITC Part 85% | FNI16: ITC Part 85% | FNK16: ITC Part 85% | FNM16: ITC Part 85% | FNO16: ITC Part 85% | FNQ16: ITC Part 85% | FNS16: ITC Part 85% | FNU16: ITC Part 85% | FNW16: ITC Part 85% | FNY16: ITC Part 85% | FOA16: ITC Part 85% | FOC16: ITC Part 85% | FOE16: ITC Part 85% | FOG16: ITC Part 85% | FOI16: ITC Part 85% | FOK16: ITC Part 85% | FOM16: ITC Part 85% | FOO16: ITC Part 85% | FOQ16: ITC Part 85% | FOS16: ITC Part 85% | FOU16: ITC Part 85% | FOW16: ITC Part 85% | FOY16: ITC Part 85% | FPA16: ITC Part 85% | FPC16: ITC Part 85% | FPE16: ITC Part 85% | FPG16: ITC Part 85% | FPI16: ITC Part 85% | FPK16: ITC Part 85% | FPM16: ITC Part 85% | FPO16: ITC Part 85% | FPQ16: ITC Part 85% | FPS16: ITC Part 85% | FPU16: ITC Part 85% | FPW16: ITC Part 85% | FPY16: ITC Part 85% | FQA16: ITC Part 85% | FQC16: ITC Part 85% | FQE16: ITC Part 85% | FQG16: ITC Part 85% | FQI16: ITC Part 85% | FQK16: ITC Part 85% | FQM16: ITC Part 85% | FQO16: ITC Part 85% | FQQ16: ITC Part 85% | FQS16: ITC Part 85% | FQU16: ITC Part 85% | FQW16: ITC Part 85% | FQY16: ITC Part 85% | FRA16: ITC Part 85% | FRC16: ITC Part 85% | FRE16: ITC Part 85% | FRG16: ITC Part 85% | FRI16: ITC Part 85% | FRK16: ITC Part 85% | FRM16: ITC Part 85% | FRO16: ITC Part 85% | FRQ16: ITC Part 85% | FRS16: ITC Part 85% | FRU16: ITC Part 85% | FRW16: ITC Part 85% | FRY16: ITC Part 85% | FSA16: ITC Part 85% | FSC16: ITC Part 85% | FSE16: ITC Part 85% | FSG16: ITC Part 85% | FSI16: ITC Part 85% | FSK16: ITC Part 85% | FSM16: ITC Part 85% | FSO16: ITC Part 85% | FSQ16: ITC Part 85% | FSS16: ITC Part 85% | FSU16: ITC Part 85% | FSW16: ITC Part 85% | FSY16: ITC Part 85% | FTA16: ITC Part 85% | FTC16: ITC Part 85% | FTE16: ITC Part 85% | FTG16: ITC Part 85% | FTI16: ITC Part 85% | FTK16: ITC Part 85% | FTM16: ITC Part 85% | FTO16: ITC Part 85% | FTQ16: ITC Part 85% | FTS16: ITC Part 85% | FTU16: ITC Part 85% | FTW16: ITC Part 85% | FTY16: ITC Part 85% | FUA16: ITC Part 85% | FUC16: ITC Part 85% | FUE16: ITC Part 85% | FUG16: ITC Part 85% | FUI16: ITC Part 85% | FUK16: ITC Part 85% | FUM16: ITC Part 85% | FUO16: ITC Part 85% | FUQ16: ITC Part 85% | FUS16: ITC Part 85% | FUU16: ITC Part 85% | FUW16: ITC Part 85% | FUY16: ITC Part 85% | FVA16: ITC Part 85% | FVC16: ITC Part 85% | FVE16: ITC Part 85% | FVG16: ITC Part 85% | FVI16: ITC Part 85% | FVK16: ITC Part 85% | FVM16: ITC Part 85% | FVO16: ITC Part 85% | FVQ16: ITC Part 85% | FVS16: ITC Part 85% | FVU16: ITC Part 85% | FVW16: ITC Part 85% | FVY16: ITC Part 85% | FWA16: ITC Part 85% | FWC16: ITC Part 85% | FWE16: ITC Part 85% | FWG16: ITC Part 85% | FWI16: ITC Part 85% | FWK16: ITC Part 85% | FWM16: ITC Part 85% | FWO16: ITC Part 85% | FWQ16: ITC Part 85% | FWS16: ITC Part 85% | FWU16: ITC Part 85% | FWW16: ITC Part 85% | FWY16: ITC Part 85% | FXA16: ITC Part 85% | FXC16: ITC Part 85% | FXE16: ITC Part 85% | FXG16: ITC Part 85% | FXI16: ITC Part 85% | FXK16: ITC Part 85% | FXM16: ITC Part 85% | FXO16: ITC Part 85% | FXQ16: ITC Part 85% | FXS16: ITC Part 85% | FXU16: ITC Part 85% | FXW16: ITC Part 85% | FXY16: ITC Part 85% | FYA16: ITC Part 85% | FYC16: ITC Part 85% | FYE16: ITC Part 85% | FYG16: ITC Part 85% | FYI16: ITC Part 85% | FYK16: ITC Part 85% | FYM16: ITC Part 85% | FYO16: ITC Part 85% | FYQ16: ITC Part 85% | FYS16: ITC Part 85% | FYU16: ITC Part 85% | FYW16: ITC Part 85% | FYY16: ITC Part 85% | FZA16: ITC Part 85% | FZC16: ITC Part 85% | FZE16: ITC Part 85% | FZG16: ITC Part 85% | FZI16: ITC Part 85% | FZK16: ITC Part 85% | FZM16: ITC Part 85% | FZO16: ITC Part 85% | FZQ16: ITC Part 85% | FZS16: ITC Part 85% | FZU16: ITC Part 85% | FZW16: ITC Part 85% | FZY16: ITC Part 85% | GAA16: ITC Part 85% | GAC16: ITC Part 85% | GAE16: ITC Part 85% | GAG16: ITC Part 85% | GAI16: ITC Part 85% | GAK16: ITC Part 85% | GAM16: ITC Part 85% | GAO16: ITC Part 85% | GAQ16: ITC Part 85% | GAS16: ITC Part 85% | GAU16: ITC Part 85% | GAW16: ITC Part 85% | GAY16: ITC Part 85% | GBA16: ITC Part 85% | GBC16: ITC Part 85% | GBE16: ITC Part 85% | GBG16: ITC Part 85% | GBI16: ITC Part 85% | GBK16: ITC Part 85% | GBM16: ITC Part 85% | GBO16: ITC Part 85% | GBQ16: ITC Part 85% | GBS16: ITC Part 85% | GBU16: ITC Part 85% | GBW16: ITC Part 85% | GBY16: ITC Part 85% | GCA16: ITC Part 85% | GCC16: ITC Part 85% | GCE16: ITC Part 85% | GCG16: ITC Part 85% | GCI16: ITC Part 85% | GCK16: ITC Part 85% | GCM16: ITC Part 85% | GCO16: ITC Part 85% | GCQ16: ITC Part 85% | GCS16: ITC Part 85% | GCU16: ITC Part 85% | GCW16: ITC Part 85% | GCY16: ITC Part 85% | GDA16: ITC Part 85% | GDC16: ITC Part 85% | GDE16: ITC Part 85% | GDG16: ITC Part 85% | GDI16: ITC Part 85% | GDK16: ITC Part 85% | GDM16: ITC Part 85% | GDO16: ITC Part 85% | GDQ16: ITC Part 85% | GDS16: ITC Part 85% | GDU16: ITC Part 85% | GDW16: ITC Part 85% | GDY16: ITC Part 85% | GEA16: ITC Part 85% | GEC16: ITC Part 85% | GEE16: ITC Part 85% | GEG16: ITC Part 85% | GEI16: ITC Part 85% | GEK16: ITC Part 85% | GEM16: ITC Part 85% | GEO16: ITC Part 85% | GEQ16: ITC Part 85% | GES16: ITC Part 85% | GEU16: ITC Part 85% | GEW16: ITC Part 85% | GEY16: ITC Part 85% | GFA16: ITC Part 85% | GFC16: ITC Part 85% | GFE16: ITC Part 85% | GFG16: ITC Part 85% | GFI16: ITC Part 85% | GFK16: ITC Part 85% | GFM16: ITC Part 85% | GFO16: ITC Part 85% | GFQ16: ITC Part 85% | GFS16: ITC Part 85% | GFU16: ITC Part 85% | GFW16: ITC Part 85% | GFY16: ITC Part 85% | GGA16: ITC Part 85% | GGC16: ITC Part 85% | GGE16: ITC Part 85% | GGG16: ITC Part 85% | GGI16: ITC Part 85% | GGK16: ITC Part 85% | GGM16: ITC Part 85% | GGO16: ITC Part 85% | GGQ16: ITC Part 85% | GGS16: ITC Part 85% | GGU16: ITC Part 85% | GGW16: ITC Part 85% | GGY16: ITC Part 85% | GHA16: ITC Part 85% | GHC16: ITC Part 85% | GHE16: ITC Part 85% | GHG16: ITC Part 85% | GHI16: ITC Part 85% | GHK16: ITC Part 85% | GHM16: ITC Part 85% | GHO16: ITC Part 85% | GHQ16: ITC Part 85% | GHS16: ITC Part 85% | GHU16: ITC Part 85% | GHW16: ITC Part 85% | GHY16: ITC Part 85% | GIA16: ITC Part 85% | GIC16: ITC Part 85% | GIE16: ITC Part 85% | GIG16: ITC Part 85% | GII16: ITC Part 85% | GIK16: ITC Part 85% | GIM16: ITC Part 85% | GIO16: ITC Part 85% | GIQ16: ITC Part 85% | GIS16: ITC Part 85% | GIU16: ITC Part 85% | GIW16: ITC Part 85% | GIY16: ITC Part 85% | GJA16: ITC Part 85% | GJC16: ITC Part 85% | GJE16: ITC Part 85% | GJG16: ITC Part 85% | GJI16: ITC Part 85% | GJK16: ITC Part 85% | GJM16: ITC Part 85% | GJO16: ITC Part 85% | GJQ16: ITC Part 85% | GJS16: ITC Part 85% | GJU16: ITC Part 85% | GJW16: ITC Part 85% | GJY16: ITC Part 85% | GKA16: ITC Part 85% | GKC16: ITC Part 85% | GKE16: ITC Part 85% | GKG16: ITC Part 85% | GKI16: ITC Part 85% | GKK16: ITC Part 85% | GKM16: ITC Part 85% | GKO16: ITC Part 85% | GKQ16: ITC Part 85% | GKS16: ITC Part 85% | GKU16: ITC Part 85% | GKW16: ITC Part 85% | GKY16: ITC Part 85% | GLA16: ITC Part 85% | GLC16: ITC Part 85% | GLE16: ITC Part 85% | GLG16: ITC Part 85% | GLI16: ITC Part 85% | GLK16: ITC Part 85% | GLM16: ITC Part 85% | GLO16: ITC Part 85% | GLQ16: ITC Part 85% | GLS16: ITC Part 85% | GLU16: ITC Part 85% | GLW16: ITC Part 85% | GLY16: ITC Part 85% | GMA16: ITC Part 85% | GMC16: ITC Part 85% | GME16: ITC Part 85% | GMG16: ITC Part 85% | GMI16: ITC Part 85% | GMK16: ITC Part 85% | GMM16: ITC Part 85% | GMO16: ITC Part 85% | GMQ16: ITC Part 85% | GMS16: ITC Part 85% | GMU16: ITC Part 85% | GMW16: ITC Part 85% | GMY16: ITC Part 85% | GNA16: ITC Part 85% | GNC16: ITC Part 85% | GNE16: ITC Part 85% | GNG16: ITC Part 85% | GNI16: ITC Part 85% | GNK16: ITC Part 85% | GNM16: ITC Part 85% | GNO16: ITC Part 85% | GNQ16: ITC Part 85% | GNS16: ITC Part 85% | GNU16: ITC Part 85% | GNW16: ITC Part 85% | GNY16: ITC Part 85% | GOA16: ITC Part 85% | GOC16: ITC Part 85% | GOE16: ITC Part 85% | GOG16: ITC Part 85% | GOI16: ITC Part 85% | GOK16: ITC Part 85% | GOM16: ITC Part 85% | GOO16: ITC Part 85% | GOQ16: ITC Part 85% | GOS16: ITC Part 85% | GOU16: ITC Part 85% | GOW16: ITC Part 85% | GOY16: ITC Part 85% | GPA16: ITC Part 85% | GPC16: ITC Part 85% | GPE16: ITC Part 85% | GPG16: ITC Part 85% | GPI16: ITC Part 85% | GPK16: ITC Part 85% | GPM16: ITC Part 85% | GPO16: ITC Part 85% | GPQ16: ITC Part 85% | GPS16: ITC Part 85% | GPU16: ITC Part 85% | GPW16: ITC Part 85% | GPY16: ITC Part 85% | GQA16: ITC Part 85% | GQC16: ITC Part 85% | GQE16: ITC Part 85% | GQG16: ITC Part 85% | GQI16: ITC Part 85% | GQK16: ITC Part 85% | GQM16: ITC Part 85% | GQO16: ITC Part 85% | GQQ16: ITC Part 85% | GQS16: ITC Part 85% | GQU16: ITC Part 85% | GQW16: ITC Part 85% | GQY16: ITC Part 85% | GRA16: ITC Part 85% | GRC16: ITC Part 85% | GRE16: ITC Part 85% | GRG16: ITC Part 85% | GRI16: ITC Part 85% | GRK16: ITC Part 85% | GRM16: ITC Part 85% | GRO16: ITC Part 85% | GRQ16: ITC Part 85% | GRS16: ITC Part 85% | GRU16: ITC Part 85% | GRW16: ITC Part 85% | GRY16: ITC Part 85% | GSA16: ITC Part 85% | GSC16: ITC Part 85% | GSE16: ITC Part 85% | GSG16: ITC Part 85% | GSI16: ITC Part 85% | GSK16: ITC Part 85% | GSM16: ITC Part 85% | GSO16: ITC Part 85% | GSQ16: ITC Part 85% | GSS16: ITC Part 85% | GSU16: ITC Part 85% | GSW16: ITC Part 85% | GSY16: ITC Part 85% | GTA16: ITC Part 85% | GTC16: ITC Part 85% | GTE16: ITC Part 85% | GTG16: ITC Part 85% | GTI16: ITC Part 85% | GTK16: ITC Part 85% | GTM16: ITC Part 85% | GTO16: ITC Part 85% | GTQ16: ITC Part 85% | GTS16: ITC Part 85% | GTU16: ITC Part 85% | GTW16: ITC Part 85% | GTY16: ITC Part 85% | GUA16: ITC Part 85% | GUC16: ITC Part 85% | GUE16: ITC Part 85% | GUG16: ITC Part 85% | GUI16: ITC Part 85% | GUK16: ITC Part 85% | GUM16: ITC Part 85% | GUO16: ITC Part 85% | GUQ16: ITC Part 85% | GUS16: ITC Part 85% | GUU16: ITC Part 85% | GUW16: ITC Part 85% | GUY16: ITC Part 85% | GVA16: ITC Part 85% | GVC16: ITC Part 85% | GVE16: ITC Part 85% | GVG16: ITC Part 85% | GVI16: ITC Part 85% | GVK16: ITC Part 85% | GVM16: ITC Part 85% | GVO16: ITC Part 85% | GVQ16: ITC Part 85% | GVS16: ITC Part 85% | GVU16: ITC Part 85% | GVW16: ITC Part 85% | GVY16: ITC Part 85% | GWA16: ITC Part 85% | GWC16: ITC Part 85% | GWE16: ITC Part 85% | GWG16: ITC Part 85% | GWI16: ITC Part 85% | GWK16: ITC Part 85% | GWM16: ITC Part 85% | GWO16: ITC Part 85% | GWQ16: ITC Part 85% | GWS16: ITC Part 85% | GWU16: ITC Part 85% | GWW16: ITC Part 85% | GWY16: ITC Part 85% | GXA16: ITC Part 85% | GXC16: ITC Part 85% | GXE16: ITC Part 85% | GXG16: ITC Part 85% | GXI16: ITC Part 85% | GXK16: ITC Part 85% | GXM16: ITC Part 85% | GXO16: ITC Part 85% | GXQ16: ITC Part 85% | GXS16: ITC Part 85% | GXU16: ITC Part 85% | GXW16: ITC Part 85% | GXY16: ITC Part 85% | GYA16: ITC Part 85% | GYC16: ITC Part 85% | GYE16: ITC Part 85% | GYG16: ITC Part 85% | GYI16: ITC Part 85% | GYK16: ITC Part 85% | GYM16: ITC Part 85% | GYO16: ITC Part 85% | GYQ16: ITC Part 85% | GYS16: ITC Part 85% | GYU16: ITC Part 85% | GYW16: ITC Part 85% | GYY16: ITC Part 85% | GZA16: ITC Part 85% | GZC16: ITC Part 85% | GZE16: ITC Part 85% | GZG16: ITC Part 85% | GZI16: ITC Part 85% | GZK16: ITC Part 85% | GZM16: ITC Part 85% | GZO16: ITC Part 85% | GZQ16: ITC Part 85% | GZS16: ITC Part 85% | GZU16: ITC Part 85% | GZW16: ITC Part 85% | GZY16: ITC Part 85% | HAA16: ITC Part 85% | HAC16: ITC Part 85% | HAE16: ITC Part 85% | HAG16: ITC Part 85% | HAI16: ITC Part 85% | HAK16: ITC Part 85% | HAM16: ITC Part 85% | HAO16: ITC Part 85% | HAQ16: ITC Part 85% | HAS16: ITC Part 85% | HAU16: ITC Part 85% | HAW16: ITC Part 85% | HAY16: ITC Part 85% | HBA16: ITC Part 85% | HBC16: ITC Part 85% | HBE16: ITC Part 85% | HBG16: ITC Part 85% | HBI16: ITC Part 85% | HBK16: ITC Part 85% | HBM16: ITC Part 85% | HBO16: ITC Part 85% | HBQ16: ITC Part 85% | HBS16: ITC Part 85% | HBU16: ITC Part 85% | HBW16: ITC Part 85% | HBY16: ITC Part 85% | HCA16: ITC Part 85% | HCC16: ITC Part 85% | HCE16: ITC Part 85% | HCG16: ITC Part 85% | HCI16: ITC Part 85% | HCK16: ITC Part 85% | HCM16: ITC Part 85% | HCO16: ITC Part 85% | HCQ16: ITC Part 85% | HCS16: ITC Part 85% | HCU16: ITC Part 85% | HCW16: ITC Part 85% | HCY16: ITC Part 85% | HDA16: ITC Part 85% | HDC16: ITC Part 85% | HDE16: ITC Part 85% | HDG16: ITC Part 85% | HDI16: ITC Part 85% | HDK16: ITC Part 85% | HDM16: ITC Part 85% | HDO16: ITC Part 85% | HDQ16: ITC Part 85% | HDS16: ITC Part 85% | HDU16: ITC Part 85% | HDW16: ITC Part 85% | HDY16: ITC Part 85% | HEA16: ITC Part 85% | HEC16: ITC Part 85% | HEE16: ITC Part 85% | HEG16: ITC Part 85% | HEI16: ITC Part 85% | HEK16: ITC Part 85% | HEM16: ITC Part 85% | HEO16: ITC Part 85% | HEQ16: ITC Part 85% | HES16: ITC Part 85% | HEU16: ITC Part 85% | HEW16: ITC Part 85% | HEY16: ITC Part 85% | HFA16: ITC Part 85% | HFC16: ITC Part 85% | HFE16: ITC Part 85% | HFG16: ITC Part 85% | HFI16: ITC Part 85% | HFK16: ITC Part 85% | HFM16: ITC Part 85% | HFO16: ITC Part 85% | HFQ16: ITC Part 85% | HFS16: ITC Part 85% | HFU16: ITC Part 85% | HFW16: ITC Part 85% | HFY16: ITC Part 85% | HGA16: ITC Part 85% | HGC16: ITC Part 85% | HGE16: ITC Part 85% | HGG16: ITC Part 85% | HGI16: ITC Part 85% | HGK16: ITC Part 85% | HGM16: ITC Part 85% | HGO16: ITC Part 85% | HGQ16: ITC Part 85% | HGS16: ITC Part 85% | HGU16: ITC Part 85% | HGW16: ITC Part 85% | HGY16: ITC Part 85% | HHA16: ITC Part 85% | HHC16: ITC Part 85% | HHE16: ITC Part 85% | HHG16: ITC Part 85% | HHI16: ITC Part 85% | HHK16: ITC Part 85% | HHM16: ITC Part 85% | HHO16: ITC Part 85% | HHQ16: ITC Part 85% | HHS16: ITC Part 85% | HHU16: ITC Part 85% | HHW16: ITC Part 85% | HHY16: ITC Part 85% | HIA16: ITC Part 85% | HIC16: ITC Part 85% | HIE16: ITC Part 85% | HIG16: ITC Part 85% | HII16: ITC Part 85% | HIK16: ITC Part 85% | HIM16: ITC Part 85% | HIO16: ITC Part 85% | HIQ16: ITC Part 85% | HIS16: ITC Part 85% | HIU16: ITC Part 85% | HIW16: ITC Part 85% | HIY16: ITC Part 85% | HJA16: ITC Part 85% | HJC16: ITC Part 85% | HJE16: ITC Part 85% | HJG16: ITC Part 85% | HJI16: ITC Part 85% | HJK16: ITC Part 85% | HJM16: ITC Part 85% | HJO16: ITC Part 85% | HJQ16: ITC Part 85% | HJS16: ITC Part 85% | HJU16: ITC Part 85% | HJW16: ITC Part 85% | HJY16: ITC Part 85% | HKA16: ITC Part 85% | HKC16: ITC Part 85% | HKE16: ITC Part 85% | HKG16: ITC Part 85% | HKI16: ITC Part 85% | HKK16: ITC Part 85% | HKM16: ITC Part 85% | HKO16: ITC Part 85% | HKQ16: ITC Part 85% | HKS16: ITC Part 85% | HKU16: ITC Part 85% | HKW16: ITC Part 85% | HKY16: ITC Part 85% | HLA16: ITC Part 85% | HLC16: ITC Part 85% | HLE16: ITC Part 85% | HLG16: ITC Part 85% | HLI16: ITC Part 85% | HLK16: ITC Part 85% | HLM16: ITC Part 85% | HLO16: ITC Part 85% | HLQ16: ITC Part 85% | HLS16: ITC Part 85% | HLU16: ITC Part 85% | HLW16: ITC Part 85% | HLY16: ITC Part 85% | HMA16: ITC Part 85% | HMC16: ITC Part 85% | HME16: ITC Part 85% | HMG16: ITC Part 85% | HMI16: ITC Part 85% | HMK16: ITC Part 85% | HMM16: ITC Part 85% | HMO16: ITC Part 85% | HMQ16: ITC Part 85% | HMS16: ITC Part 85% | HMU16: ITC Part 85% | HMW16: ITC Part 85% | HMY16: ITC Part 85% | HNA16: ITC Part 85% | HNC16: ITC Part 85% | HNE16: ITC Part 85% | HNG16: ITC Part 85% | HNI16: ITC Part 85% | HNK16: ITC Part 85% | HNM16: ITC Part 85% | HNO16: ITC Part 85% | HNQ16: ITC Part 85% | HNS16: ITC Part 85% | HNU16: ITC Part 85% | HNW16: ITC Part 85% | HNY16: ITC Part 85% | HOA16: ITC Part 85% | HOC16: ITC Part 85% | HOE16: ITC Part 85% | HOG16: ITC Part 85% | HOI16: ITC Part 85% | HOK16: ITC Part 85% | HOM16: ITC Part 85% | HOO16: ITC Part 85% | HOQ16: ITC Part 85% | HOS16: ITC Part 85% | HOU16: ITC Part 85% | HOW16: ITC Part 85% | HOY16: ITC Part 85% | HPA16: ITC Part 85% | HPC16: ITC Part 85% | HPE16: ITC Part 85% | HPG16: ITC Part 85% | HPI16: ITC Part 85% | HPK16: ITC Part 85% | HPM16: ITC Part 85% | HPO16: ITC Part 85% | HPQ16: ITC Part 85% | HPS16: ITC Part 85% | HPU16: ITC Part 85% | HPW16: ITC Part 85% | HPY16: ITC Part 85% | HQA16: ITC Part 85% | HQC16: ITC Part 85% | HQE16: ITC Part 85% | HQG16: ITC Part 85% | HQI16: ITC Part 85% | HQK16: ITC Part 85% | HQM16: ITC Part 85% | HQO16: ITC Part 85% | HQQ16: ITC Part 85% | HQS16: ITC Part 85% | HQU16: ITC Part 85% | HQW16: ITC Part 85% | HQY16: ITC Part 85% | HRA16: ITC Part 85% | HRC16: ITC Part 85% | HRE16: ITC Part 85% | HRG16: ITC Part 85% | HRI16: ITC Part 85% | HRK16: ITC Part 85% | HRM16: ITC Part 85% | HRO16: ITC Part 85% | HRQ16: ITC Part 85% | HRS16: ITC Part 85% | HRU16: ITC Part 85% | HRW16: ITC Part 85% | HRY16: ITC Part 85% | HSA16: ITC Part 85% | HSC16: ITC Part 85% | HSE16: ITC Part 85% | HSG16: ITC Part 85% | HSI16: ITC Part 85% | HSK16: ITC Part 85% | HSM16: ITC Part 85% | HSO16: ITC Part 85% | HSQ16: ITC Part 85% | HSS16: ITC Part 85% | HSU16: ITC Part 85% | HSW16: ITC Part 85% | HSY16: ITC Part 85% | HTA16: ITC Part 85% | HTC16: ITC Part 85% | HTE16: ITC Part 85% | HTG16: ITC Part 85% | HTI16: ITC Part 85% | HTK16: ITC Part 85% | HTM16: ITC Part 85% | HTO16: ITC Part 85% | HTQ16: ITC Part 85% | HTS16: ITC Part 85% | HTU16: ITC Part 85% | HTW16: ITC Part 85% | HTY16: ITC Part 85% | HUA16: ITC Part 85% | HUC16: ITC Part 85% | HUE16: ITC Part 85% | HUG16: ITC Part 85% | HUI16: ITC Part 85% | HUK16: ITC Part 85% | HUM16: ITC Part 85% | HUO16: ITC Part 85% | HUQ16: ITC Part 85% | HUS16: ITC Part 85% | HUU16: ITC Part 85% | HUW16: ITC Part 85% | HUY16: ITC Part 85% | HVA16: ITC Part 85% | HVC16: ITC Part 85% | HVE16: ITC Part 85% | HVG16: ITC Part 85% | HVI16: ITC Part 85% | HVK16: ITC Part 85% | HVM16: ITC Part 85% | HVO16: ITC Part 85% | HVQ16: ITC Part 85% | HVS16: ITC Part 85% | HVU16: ITC Part 85% | HVW16: ITC Part 85% | HVY16: ITC Part 85% | HWA16: ITC Part 85% | HWC16: ITC Part 85% | HWE16: ITC Part 85% | HWG16: ITC Part 85% | HWI16: ITC Part 85% | HWK16: ITC Part 85% | HWM16: ITC Part 85% | HWO16: ITC Part 85% | HWQ16: ITC Part 85% | HWS16: ITC Part 85% | HWU16: ITC Part 85% | HWW16: ITC Part 85% | HWY16: ITC Part 85% | HXA16: ITC Part 85% | HXC16: ITC Part 85% | HXE16: ITC Part 85% | HXG16: ITC Part 85% | HXI16: ITC Part 85% | HXK16: ITC Part 85% | HXM16: ITC Part 85% | HXO16: ITC Part 85% | HXQ16: ITC Part 85% | HXS16: ITC Part 85% | HXU16: ITC Part 85% | HXW16: ITC Part 85% | HXY16: ITC Part 85% | HYA16: ITC Part 85% | HYC16: ITC Part 85% | HYE16: ITC Part 85% | HYG16: ITC Part 85% | HYI16: ITC Part 85% | HYK16: ITC Part 85% | HYM16: ITC Part 85% | HYO16: ITC Part 85% | HYQ16: ITC Part 85% | HYS16: ITC Part 85% | HYU16: ITC Part 85% | HYW16: ITC Part 85% | HYY16: ITC Part 85% | HZA16: ITC Part 85% | HZC16: ITC Part 85% | HZE16: ITC Part 85% | HZG16: ITC Part 85% | HZI16: ITC Part 85% | HZK16: ITC Part 85% | HZM16: ITC Part 85% | HZO16: ITC Part 85% | HZQ16: ITC Part 85% | HZS16: ITC Part 85% | HZU16: ITC Part 85% | HZW16: ITC Part 85% | HZY16: ITC Part 85% | IAA16: ITC Part 85% | IAC16: ITC Part 85% | IAE16: ITC Part 85% | IAG16: ITC Part 85% | IAI16: ITC Part 85% | IAK16: ITC Part 85% | IAM16: ITC Part 85% | IAO16: ITC Part 85% | IAQ16: ITC Part 85% | IAS16: ITC Part 85% | IAU16: ITC Part 85% | IAW16: ITC Part 85% | IAY16: ITC Part 85% | IBA16: ITC Part 85% | IBC16: ITC Part 85% | IBE16: ITC Part 85% | IBG16: ITC Part 85% | IBI16: ITC Part 85% | IBK16: ITC Part 85% | IBM16: ITC Part 85% | IBO16: ITC Part 85% | IBQ16: ITC Part 85% | IBS16: ITC Part 85% | IBU16: ITC Part 85% | IBW16: ITC Part 85% | IBY16: ITC Part 85% | ICA16: ITC Part 85% | ICC16: ITC Part 85% | ICE16: ITC Part 85% | ICG16: ITC Part 85% | ICI16: ITC Part 85% | ICK16: ITC Part 85% | ICM16: ITC Part 85% | ICO16: ITC Part 85% | ICQ16: ITC Part 85% | ICS16: ITC Part 85% | ICU16: ITC Part 85% | ICW16: ITC Part 85% | ICY16: ITC Part 85% | IDA16: ITC Part 85% | IDC16: ITC Part 85% | IDE16: ITC Part 85% | IDG16: ITC Part 85% | IDI16: ITC Part 85% | IDK16: ITC Part 85% | IDM16: ITC Part 85% | IDO16: ITC Part 85% | IDQ16: ITC Part 85% | IDS16: ITC Part 85% | IDU16: ITC Part 85% | IDW16: ITC Part 85% | IDY16: ITC Part 85% | IEA16: ITC Part 85% | IEC16: ITC Part 85% | IEE16: ITC Part 85% | IEG16: ITC Part 85% | IEI16: ITC Part 85% | IEK16: ITC Part 85% | IEM16: ITC Part 85% | IEO16: ITC Part 85% | IEQ16: ITC Part 85% | IES16: ITC Part 85% | IEU16: ITC Part 85% | IEW16: ITC Part 85% | IEY16: ITC Part 85% | IFA16: ITC Part 85% | IFC16: ITC Part 85% | IFE16: ITC Part 85% | IFG16: ITC Part 85% | IFI16: ITC Part 85% | IFK16: ITC Part 85% | IFM16: ITC Part 85% | IFO16: ITC Part 85% | IFQ16: ITC Part 85% | IFS16: ITC Part 85% | IFU16: ITC Part 85% | IFW16: ITC Part 85% | IFY16: ITC Part 85% | IGA16: ITC Part 85% | IGC16: ITC Part 85% | IGE16: ITC Part 85% | IGG16: ITC Part 85% | IGI16: ITC Part 85% | IGK16: ITC Part 85% | IGM16: ITC Part 85% | IGO16: ITC Part 85% | IGQ16: ITC Part 85% | IGS16: ITC Part 85% | IGU16: ITC Part 85% | IGW16: ITC Part 85% | IGY16: ITC Part 85% | IHA16: ITC Part 85% | IHC16: ITC Part 85% | IHE16: ITC Part 85% | IHG16: ITC Part 85% | IHI16: ITC Part 85% | IHK16: ITC Part 85% | IHM16: ITC Part 85% | IHO16: ITC Part 85% | IHQ16: ITC Part 85% | IHS16: ITC Part 85% | IHU16: ITC Part 85% | IHW16: ITC Part 85% | IHY16: ITC Part 85% | IIA16: ITC Part 85% | IIC16: ITC Part 85% | IIE16: ITC Part 85% | IIG16: ITC Part 85% | III16: ITC Part 85% | IIK16: ITC Part 85% | IIM16: ITC Part 85% | IIO16: ITC Part 85% | IIQ16: ITC Part 85% | IIS16: ITC Part 85% | IIU16: ITC Part 85% | IIW16: ITC Part 85% | IIY16: ITC Part 85% | IJA16: ITC Part 85% | IJC16: ITC Part 85% | IJE16: ITC Part 85% | IJG16: ITC Part 85% | IJI16: ITC Part 85% | IJK16: ITC Part 85% | IJM16: ITC Part 85% | IJO16: ITC Part 85% | IJQ16: ITC Part 85% | IJS16: ITC Part 85% | IJU16: ITC Part 85% | IJW16: ITC Part 85% | IJY16: ITC Part 85% | IKA16: ITC Part 85% | IKC16: ITC Part 85% | IKE16: ITC Part 85% | IKG16: ITC Part 85% | IKI16: ITC Part 85% | IKK16: ITC Part 85% | IKM16: ITC Part 85% | IKO16: ITC Part 85% | IKQ16: ITC Part 85% | IKS16: ITC Part 85% | IKU16: ITC Part 85% | IKW16: ITC Part 85% | IKY16: ITC Part 85% | ILA16: ITC Part 85% | ILC16: ITC Part 85% | ILE16: ITC Part 85% | ILG16: ITC Part 85% | ILI16: ITC Part 85% | ILK16: ITC Part 85% | ILM16: ITC Part 85% | ILO16: ITC Part 85% | ILQ16: ITC Part 85% | ILS16: ITC Part 85% | ILU16: ITC Part 85% | ILW16: ITC Part 85% | ILY16: ITC Part 85% | IMA16: ITC Part 85% | IMC16: ITC Part 85% | IME16: ITC Part 85% | IMG16: ITC Part 85% | IMI16: ITC Part 85% | IMK16: ITC Part 85% | IMM16: ITC Part 85% | IMO16: ITC Part 85% | IMQ16: ITC Part 85% | IMS16: ITC Part 85% | IMU16: ITC Part 85% | IMW16: ITC Part 85% | IMY16: ITC Part 85% | INA16: ITC Part 85% | INC16: ITC Part 85% | INE16: ITC Part 85% | ING16: ITC Part 85% | INI16: ITC Part 85% | INK16: ITC Part 85% | INM16: ITC Part 85% | INO16: ITC Part 85% | INQ16: ITC Part 85% | INS16: ITC Part 85% | INU16: ITC Part 85% | INW16: ITC Part 85% | INY16: ITC Part 85% | IOA16: ITC Part 85% | IOC16: ITC Part 85% | IOE16: ITC Part 85% | IOG16: ITC Part 85% | IOI16: ITC Part 85% | IOK16: ITC Part 85% | IOM16: ITC Part 85% | IOO16: ITC Part 85% | IOQ16: ITC Part 85% | IOS16: ITC Part 85% | IOU16: ITC Part 85% | IOW16: ITC Part 85% | IOY16: ITC Part 85% | IPA16: ITC Part 85% | IPC16: ITC Part 85% | IPE16: ITC Part 85% | IPG16: ITC Part 85% | IPI16: ITC Part 85% | IPK16: ITC Part 85% | IPM16: ITC Part 85% | IPO16: ITC Part 85% | IPQ16: ITC Part 85% | IPS16: ITC Part 85% | IPU16: ITC Part 85% | IPW16: ITC Part 85% | IPY16: ITC Part 85% | IQA16: ITC Part 85% | IQC16: ITC Part 85% | IQE16: ITC Part 85% | IQG16: ITC Part 85% | IQI16: ITC Part 85% | IQK16: ITC Part 85% | IQM16: ITC Part 85% | IQO16: ITC Part 85% | IQQ16: ITC Part 85% | IQS16: ITC Part 85% | IQU16: ITC Part 85% | IQW16: ITC Part 85% | IQY16: ITC Part 85% | IRA16: ITC Part 85% | IRC16: ITC Part 85% | IRE16: ITC Part 85% | IRG16: ITC Part 85% | IRI16: ITC Part 85% | IRK16: ITC Part 85% | IRM16: ITC Part 85% | IRO16: ITC Part 85% | IRQ16: ITC Part 85% | IRS16: ITC Part 85% | IRU16: ITC Part 85% | IRW16: ITC Part 85% | IRY16: ITC Part 85% | ISA16: ITC Part 85% | ISC16: ITC Part 85% | ISE16: ITC Part 85% | ISG16: ITC Part 85% | ISI16: ITC Part 85% | ISK16: ITC Part 85% | ISM16: ITC Part 85% | ISO16: ITC Part 85% | ISQ16: ITC Part 85% | ISS16: ITC Part 85% | ISU16: ITC Part 85% | ISW16: ITC Part 85% | ISY16: ITC Part 85% | ITA16: ITC Part 85% | ITC16: ITC Part 85% | ITE16: ITC Part 85% | ITG16: ITC Part 85% | ITI16: ITC Part 85% | ITK16: ITC Part 85% | ITM16: ITC Part 85% | ITO16: ITC Part 85% | ITQ16: ITC Part 85% | ITS16: ITC Part 85% | ITU16: ITC Part 85% | ITW16: ITC Part 85% | ITY16: ITC Part 85% | IUA16: ITC Part 85% | IUC16: ITC Part 85% | IUE16: ITC Part 85% | IUG16: ITC Part 85% | IUI16: ITC Part 85% | IUK16: ITC Part 85% | IUM16: ITC Part 85% | IUO16: ITC Part 85% | IUQ16: ITC Part 85% | IUS16: ITC Part 85% | IUU16: ITC Part 85% | IUW16: ITC Part 85% | IUY16: ITC Part 85% | IVA16: ITC Part 85% | IVC16: ITC Part 85% | IVE16: ITC Part 85% | IVG16: ITC Part 85% | IVI16: ITC Part 85% | IVK16: ITC Part 85% | IVM16: ITC Part 85% | IVO16: ITC Part 85% | IVQ16: ITC Part 85% | IVS16: ITC Part 85% | IVU16: ITC Part 85% | IVW16: ITC Part 85% | IVY16: ITC Part 85% | IWA16: ITC Part 85% | IWC16: ITC Part 85% | IWE16: ITC Part 85% | IWG16: ITC Part 85% | IWI16: ITC Part 85% | IWK16: ITC Part 85% | IWM16: ITC Part 85% | IWO16: ITC Part 85% | IWQ16: ITC Part 85% | IWS16: ITC Part 85% | IWU16: ITC Part 85% | IWW16: ITC Part 85% | IWY16: ITC Part 85% | IXA16: ITC Part 85% | IXC16: ITC Part 85% | IXE16: ITC Part 85% | IXG16: ITC Part 85% | IXI16: ITC Part 85% | IXK16: ITC Part 85% | IXM16: ITC Part 85% | IXO16: ITC Part 85% | IXQ16: ITC Part 85% | IXS16: ITC Part 85% | IXU16: ITC Part 85% | IXW16: ITC Part 85% | IXY16: ITC Part 85% | IYA16: ITC Part 85% | IYC16: ITC Part 85% | IYE16: ITC Part 85% | IYG16: ITC Part 85% | IYI16: ITC Part 85% | IYK16: ITC Part 85% | IYM16: ITC Part 85% | IYO16: ITC Part 85% | IYQ16: ITC Part 85% | IYS16: ITC Part 85% | IYU16: ITC Part 85% | IYW16: ITC Part 85% | IYY16: ITC Part 85% | IZA16: ITC Part 85% | IZC16: ITC Part 85% | IZE16: ITC Part 85% | IZG16: ITC Part 85% | IZI16: ITC Part 85% | IZK16: ITC Part 85% | IZM16: ITC Part 85% | IZO16: ITC Part 85% | IZQ16: ITC Part 85% | IZS16: ITC Part 85% | IZU16: ITC Part 85% | IZW16: ITC Part 85% | IZY16: ITC Part 85% | JAA16: ITC Part 85% | JAC16: ITC Part 85% | JAE16: ITC Part 85% | JAG16: ITC Part 85% | JAI16: ITC Part 85% | JAK16: ITC Part 85% | JAM16: ITC Part 85% | JAO16: ITC Part 85% | JAQ16: ITC Part 85% | JAS16: ITC Part 85% | JAU16: ITC Part 85% | JAW16: ITC Part 85% | JAY16: ITC Part 85% | JBA16: ITC Part 85% | JBC16: ITC Part 85% | JBE16: ITC Part 85% | JBG16: ITC Part 85% | JBI16: ITC Part 85% | JBK16: ITC Part 85% | JBM16: ITC Part 85% | JBO16: ITC Part 85% | JBQ16: ITC Part 85% | JBS16: ITC Part 85% | JBU16: ITC Part 85% | JBW16: ITC Part 85% | JBY16: ITC Part 85% | JCA16: ITC Part 85% | JCC16: ITC Part 85% | JCE16: ITC Part 85% | JCG16: ITC Part 85% | JCI16: ITC Part 85% | JCK16: ITC Part 85% | JCM16: ITC Part 85% | JCO16: ITC Part 85% | JCQ16: ITC Part 85% | JCS16: ITC Part 85% | JCU16: ITC Part 85% | JCW16: ITC Part 85% | JCY16: ITC Part 85% | JDA16: ITC Part 85% | JDC16: ITC Part 85% | JDE16: ITC Part 85% | JDG16: ITC Part 85% | JDI16: ITC Part 85% | JDK16: ITC Part 85% | JDM16: ITC Part 85% | JDO16: ITC Part 85% | JDQ16: ITC Part 85% | JDS16: ITC Part 85% | JDU16: ITC Part 85% | JDW16: ITC Part 85% | JDY16: ITC Part 85% | JEA16: ITC Part 85% | JEC16: ITC Part 85% | JEE16: ITC Part 85% | JEG16: ITC Part 85% | JEI16: ITC Part 85% | JEK16: ITC Part 85% | JEM16: ITC Part 85% | JEO16: ITC Part 85% | JEQ16: ITC Part 85% | JES16: ITC Part 85% | JEU16: ITC Part 85% | JEW16: ITC Part 85% | JEY16: ITC Part 85% | JFA16: ITC Part 85% | JFC16: ITC Part 85% | JFE16: ITC Part 85% | JFG16: ITC Part 85% | JFI16: ITC Part 85% | JFK16: ITC Part 85% | JFM16: ITC Part 85% | JFO16: ITC Part 85% | JFQ16: ITC Part 85% | JFS16: ITC Part 85% | JFU16: ITC Part 85% | JFW16: ITC Part 85% | JFY16: ITC Part 85% | JGA16: ITC Part 85% | JGC16: ITC Part 85% | JGE16: ITC Part 85% | JGG16: ITC Part 85% | JGI16: ITC Part 85% | JGK16: ITC Part 85% | JGM16: ITC Part 85% | JGO16: ITC Part 85% | JGQ16: ITC Part 85% | JGS16: ITC Part 85% | JGU16: ITC Part 85% | JGW16: ITC Part 85% | JGY16: ITC Part 85% | JHA16: ITC Part 85% | JHC16: ITC Part 85% | JHE16: ITC Part 85% | JHG16: ITC Part 85% | JHI16: ITC Part 85% | JHK16: ITC Part 85% | JHM16: ITC Part 85% | JHO16: ITC Part 85% | JHQ16: ITC Part 85% | JHS16: ITC Part 85% | JHU16: ITC Part 85% | JHW16: ITC Part 85% | JHY16: ITC Part 85% | JIA16: ITC Part 85% | JIC16: ITC Part 85% | JIE16: ITC Part 85% | JIG16: ITC Part 85% | JII16: ITC Part 85% | JIK16: ITC Part 85% | JIM16: ITC Part 85% | JIO16: ITC Part 85% | JIQ16: ITC Part 85% | JIS16: ITC Part 85% | JIU16: ITC Part 85% | JIW16: ITC Part 85% | JIY16: ITC Part 85% | JJA16: ITC Part 85% | JJC16: ITC Part 85% | JJE16: ITC Part 85% | JJG16: ITC Part 85% | JJI16: ITC Part 85% | JJK16: ITC Part 85% | JJM16: ITC Part 85% | JJO16: ITC Part 85% | JJQ16: ITC Part 85% | JJS16: ITC Part 85% | JJU16: ITC Part 85% | JJW16: ITC Part 85% | JJY16: ITC Part 85% | JKA16: ITC Part 85% | JKC16: ITC Part 85% | JKE16: ITC Part 85% | JKG16: ITC Part 85% | JKI16: ITC Part 85% | JKK16: ITC Part 85% | JKM16: ITC Part 85% | JKO16: ITC Part 85% | JKQ16: ITC Part 85% | JKS16: ITC Part 85% | JKU16: ITC Part 85% | JKW16: ITC Part 85% | JKY16: ITC Part 85% | JLA16: ITC Part 85% | JLC16: ITC Part 85% | JLE16: ITC Part 85% | JLG16: ITC Part 85% | JLI16: ITC Part 85% | JLK16: ITC Part 85% | JLM16: ITC Part 85% | JLO16: ITC Part 85% | JLQ16: ITC Part 85% | JLS16: ITC Part 85% | JLU16: ITC Part 85% | JLW16: ITC Part 85% | JLY16: ITC Part 85% | JMA16: ITC Part 85% | JMC16: ITC Part 85% | JME16: ITC Part 85% | JMG16: ITC Part 85% | JMI16: ITC Part 85% | JMK16: ITC Part 85% | JMM16: ITC Part 85% | JMO16: ITC Part 85% | JMQ16: ITC Part 85% | JMS16: ITC Part 85% | JMU16: ITC Part 85% | JMW16: ITC Part 85% | JMY16: ITC Part 85% | JNA16: ITC Part 85% | JNC16: ITC Part 85% | JNE16: ITC Part 85% | JNG16: ITC Part 85% | JNI16: ITC Part 85% | JNK16: ITC Part 85% | JNM16: ITC Part 85% | JNO16: ITC Part 85% | JNQ16: ITC Part 85% | JNS16: ITC Part 85% | JNU16: ITC Part 85% | JNW16: ITC Part 85% | JNY16: ITC Part 85% | JOA16: ITC Part 85% | JOC16: ITC Part 85% | JOE16: ITC Part 85% | JOG16: ITC Part 85% | JOI16: ITC Part 85% | JOK16: ITC Part 85% | JOM16: ITC Part 85% | JOO16: ITC Part 85% | JOQ16: ITC Part 85% | JOS16: ITC Part 85% | JOU16: ITC Part 85% | JOW16: ITC Part 85% | JOY16: ITC Part 85% | JPA16: ITC Part 85% | JPC16: ITC Part 85% | JPE16: ITC Part 85% | JPG16: ITC Part 85% | JPI16: ITC Part 85% | JPK16: ITC Part 85% | JPM16: ITC Part 85% | JPO16: ITC Part 85% | JPQ16: ITC Part 85% | JPS16: ITC Part 85% | JPU16: ITC Part 85% | JPW16: ITC Part 85% | JPY16: ITC Part 85% | JQA16: ITC Part 85% | JQC16: ITC Part 85% | JQE16: ITC Part 85% | JQG16: ITC Part 85% | JQI16: ITC Part 85% | JQK16: ITC Part 85% | JQM16: ITC Part 85% | JQO16: ITC Part 85% | JQQ16: ITC Part 85% | JQS16: ITC Part 85% | JQU16: ITC Part 85% | JQW16: ITC Part 85% | JQY16: ITC Part 85% | JRA16: ITC Part 85% | JRC16: ITC Part 85% | JRE16: ITC Part 85% | JRG16: ITC Part 85% | JRI16: ITC Part 85% | JRK16: ITC Part 85% | JRM16: ITC Part 85% | JRO16: ITC Part 85% | JRQ16: ITC Part 85% | JRS16: ITC Part 85% | JRU16: ITC Part 85% | JRW16: ITC Part 85% | JRY16: ITC Part 85% | JSA16: ITC Part 85% | JSC16: ITC Part 85% | JSE16: ITC Part 85% | JSG16: ITC Part 85% | JSI16: ITC Part 85% | JSK16: ITC Part 85% | JSM16: ITC Part 85% | JSO16: ITC Part 85% | JSQ16: ITC Part 85% | JSS16: ITC Part 85% | JSU16: ITC Part 85% | JSW16: ITC Part 85% | JSY16: ITC Part 85% | JTA16: ITC Part 85% | JTC16: ITC Part 85% | JTE16: ITC Part 85% | JTG16: ITC Part 85% | JTI16: ITC Part 85% | JTK16: ITC Part 85% | JTM16: ITC Part 85% | JTO16: ITC Part 85% | JTQ16: ITC Part 85% | JTS16: ITC Part 85% | JTU16: ITC Part 85% | JTW16: ITC Part 85% | JTY16: ITC Part 85% | JUA16: ITC Part 85% | JUC16: ITC Part 85% | JUE16: ITC Part 85% | JUG16: ITC Part 85% | JUI16: ITC Part 85% | JUK16: ITC Part 85% | JUM16: ITC Part 85% | JUO16: ITC Part 85% | JUQ16: ITC Part 85% | JUS16: ITC Part 85% | JUU16: ITC Part 85% | JUW16: ITC Part 85% | JUY16: ITC Part 85% | JVA16: ITC Part 85% | JVC16: ITC Part 85% | JVE16: ITC Part 85% | JVG16: ITC Part 85% | JVI16: ITC Part 85% | JVK16: ITC Part 85% | JVM16: ITC Part 85% | JVO16: ITC Part 85% | JVQ16: ITC Part 85% | JVS16: ITC Part 85% | JVU16: ITC Part 85% | JVW16: ITC Part 85% | JVY16: ITC Part 85% | JWA16: ITC Part 85% | JWC16: ITC Part 85% | JWE16: ITC Part 85% | JWG16: ITC Part 85% | JWI16: ITC Part 85% | JWK16: ITC Part 85% | JWM16: ITC Part 85% | JWO16: ITC Part 85% | JWQ16: ITC Part 85% | JWS16: ITC Part 85% | JWU16: ITC Part 85% | JWW16: ITC Part 85% | JWY16: ITC Part 85% | JXA16: ITC Part 85% | JXC16: ITC Part 85% | JXE16: ITC Part 85% | JXG16: ITC Part 85% | JXI16: ITC Part 85% | JXK16: ITC Part 85% | JXM16: ITC Part 85% | JXO16: ITC Part 85% | JXQ16: ITC Part 85% | JXS16: ITC Part 85% | JXU16: ITC Part 85% | JXW16: ITC Part 85% | JXY16: ITC Part 85% | JYA16: ITC Part 85% | JYC16: ITC Part 85% | JYE16: ITC Part 85% | JYG16: ITC Part 85% | JYI16: ITC Part 85% | JYK16: ITC Part 85% | JYM16: ITC Part 85% | JYO16: ITC Part 85% | JYQ16: ITC Part 85% | JYS16: ITC Part 85% | JYU16: ITC Part 85% | JYW16: ITC Part 85% | JYY16: ITC Part 85% | JZA16: ITC Part 85% | JZC16: ITC Part 85% | JZE16: ITC Part 85% | JZG16: ITC Part 85% | JZI16: ITC Part 85% | JZK16: ITC Part 85% | JZM16: ITC Part 85% | JZO16: ITC Part 85% | JZQ16: ITC Part 85% | JZS16: ITC Part 85% | JZU16: ITC Part 85% | JZW16: ITC Part 85% | JZY16: ITC Part 85% | KAA16: ITC Part 85% | KAC16: ITC Part 85% | KAE16: ITC Part 85% | KAG16: ITC Part 85% | KAI16: ITC Part 85% | KAK16: ITC Part 85% | KAM16: ITC Part 85% | KAO16: ITC Part 85% | KAQ16: ITC Part 85% | KAS16: ITC Part 85% | KAU16: ITC Part 85% | KAW16: ITC Part 85% | KAY16: ITC Part 85% | KBA16: ITC Part 85% | KBC16: ITC Part 85% | KBE16: ITC Part 85% | KBG16: ITC Part 85% | KBI16: ITC Part 85% | KBK16: ITC Part 85% | KBM16: ITC Part 85% | KBO16: ITC Part 85% | KBQ16: ITC Part 85% | KBS16: ITC Part 85% | KBU16: ITC Part 85% | KBW16: ITC Part 85% | KBY16: ITC Part 85% | KCA16: ITC Part 85% | KCC16: ITC Part 85% | KCE16: ITC Part 85% | KCG16: ITC Part 85% | KCI16: ITC Part 85% | KCK16: ITC Part 85% | KCM16: ITC Part 85% | KCO16: ITC Part 85% | KCQ16: ITC Part 85% | KCS16: ITC Part 85% | KCU16: ITC Part 85% | KCW16: ITC Part 85% | KCY16: ITC Part 85% | KDA16: ITC Part 85% | KDC16: ITC Part 85% | KDE16: ITC Part 85% | KDG16: ITC Part 85% | KDI16: ITC Part 85% | KDK16: ITC Part 85% | KDM16: ITC Part 85% | KDO16: ITC Part 85% | KDQ16: ITC Part 85% | KDS16: ITC Part 85% | KDU16: ITC Part 85% | KDW16: ITC Part 85% | KDY16: ITC Part 85% | KEA16: ITC Part 85% | KEC16: ITC Part 85% | KEE16: ITC Part 85% | KEG16: ITC Part 85% | KEI16: ITC Part 85% | KEK16: ITC Part 85% | KEM16: ITC Part 85% | KEO16: ITC Part 85% | KEQ16: ITC Part 85% | KES16: ITC Part 85% | KEU16: ITC Part 85% | KEW16: ITC Part 85% | KEY16: ITC Part 85% | KFA16: ITC Part 85% | KFC16: ITC Part 85% | KFE16: ITC Part 85% | KFG16: ITC Part 85% | KFI16: ITC Part 85% | KFK16: ITC Part 85% | KFM16: ITC Part 85% | KFO16: ITC Part 85% | KFQ16: ITC Part 85% | KFS16: ITC Part 85% | KFU16: ITC Part 85% | KFW16: ITC Part 85% | KFY16: ITC Part 85% | KGA16: ITC Part 85% | KGC16: ITC Part 85% | KGE16: ITC Part 85% | KGG16: ITC Part 85% | KGI16: ITC Part 85% | KGK16: ITC Part 85% | KGM16: ITC Part 85% | KGO16: ITC Part 85% | KGQ16: ITC Part 85% | KGS16: ITC Part 85% | KGU16: ITC Part 85% | KGW16: ITC Part 85% | KGY16: ITC Part 85% | KHA16: ITC Part 85% | KHC16: ITC Part 85% | KHE16: ITC Part 85% | KHG16: ITC Part 85% | KHI16: ITC Part 85% | KHK16: ITC Part 85% | KHM16: ITC Part 85% | KHO16: ITC Part 85% | KHQ16: ITC Part 85% | KHS16: ITC Part 85% | KHU16: ITC Part 85% | KHW16: ITC Part 85% | KHY16: ITC Part 85% | KIA16: ITC Part 85% | KIC16: ITC Part 85% | KIE16: ITC Part 85% | KIG16: ITC Part 85% | KII16: ITC Part 85% | KIK16: ITC Part 85% | KIM16: ITC Part 85% | KIO16: ITC Part 85% | KIQ16: ITC Part 85% | KIS16: ITC Part 85% | KIU16: ITC Part 85% | KIW16: ITC Part 85% | KIY16: ITC Part 85% | KJA16: ITC Part 85% | KJC16: ITC Part 85% | KJE16: ITC Part 85% | KJG16: ITC Part 85% | KJI16: ITC Part 85% | KJK16: ITC Part 85% | KJM16: ITC Part 85% | KJO16: ITC Part 85% | KJQ16: ITC Part 85% | KJS16: ITC Part 85% | KJU16: ITC Part 85% | KJW16: ITC Part 85% | KJY16: ITC Part 85% | KKA16: ITC Part 85% | KKC16: ITC Part 85% | KKE16: ITC Part 85% | KKG16: ITC Part 85% | KKI16: ITC Part 85% | KKK16: ITC Part 85% | KKM16: ITC Part 85% | KKO16: ITC Part 85% | KKQ16: ITC Part 85% | KKS16: ITC Part 85% | KKU16: ITC Part 85% | KKW16: ITC Part 85% | KKY16: ITC Part 85% | KLA16: ITC Part 85% | KLC16: ITC Part 85% | KLE16: ITC Part 85% | KLG16: ITC Part 85% | KLI16: ITC Part 85% | KLK16: ITC Part 85% | KLM16: ITC Part 85% | KLO16: ITC Part 85% | KLQ16: ITC Part 85% | KLS16: ITC Part 85% | KLU16: ITC Part 85% | KLW16: ITC Part 85% | KLY16: ITC Part 85% | KMA16: ITC Part 85% | KMC16: ITC Part 85% | KME16: ITC Part 85% | KMG16: ITC Part 85% | KMI16: ITC Part 85% | KMK16: ITC Part 85% | KMM16: ITC Part 85% | KMO16: ITC Part 85% | KMQ16: ITC Part 85% | KMS16: ITC Part 85% | KMU16: ITC Part 85% | KMW16: ITC Part 85% | KMY16: ITC Part 85% | KNA16: ITC Part 85% | KNC16: ITC Part 85% | KNE16: ITC Part 85% | KNG16: ITC Part 85% | KNI16: ITC Part 85% | KNK16: ITC Part 85% | KNM16: ITC Part 85% | KNO16: ITC Part 85% | KNQ16: ITC Part 85% | KNS16: ITC Part 85% | KNU16: ITC Part 85% | KNW16: ITC Part 85% | KNY16: ITC Part 85% | KOA16: ITC Part 85% | KOC16: ITC Part 85% | KOE16: ITC Part 85% | KOG16: ITC Part 85% | KOI16: ITC Part 85% | KOK16: ITC Part 85% | KOM16: ITC Part 85% | KOO16: ITC Part 85% | KOQ16: ITC Part 85% | KOS16: ITC Part 85% | KOU16: ITC Part 85% | KOW16: ITC Part 85% | KOY16: ITC Part 85% | KPA16: ITC Part 85% | KPC16: ITC Part 85% | KPE16: ITC Part 85% | KPG16: ITC Part 85% | KPI16: ITC Part 85% | KPK16: ITC Part 85% | KPM16: ITC Part 85% | KPO16: ITC Part 85% | KPQ16: ITC Part 85% | KPS16: ITC Part 85% | KPU16: ITC Part 85% | KPW16: ITC Part 85% | KPY16: ITC Part 85% | KQA16: ITC Part 85% | KQC16: ITC Part 85% | KQE16: ITC Part 85% | KQG16: ITC Part 85% | KQI16: ITC Part 85% | KQK16: ITC Part 85% | KQM16: ITC Part 85% | KQO16: ITC Part 85% | KQQ16: ITC Part 85% | KQS16: ITC Part 85% | KQU16: ITC Part 85% | KQW16: ITC Part 85% | KQY16: ITC Part 85% | KRA16: ITC Part 85% | KRC16: ITC Part 85% | KRE16: ITC Part 85% | KRG16: ITC Part 85% | KRI16: ITC Part 85% | KRK16: ITC Part 85% | KRM16: ITC Part 85% | KRO16: ITC Part 85% | KRQ16: ITC Part 85% | KRS16: ITC Part 85% | KRU16: ITC Part 85% | KRW16: ITC Part 85% | KRY16: ITC Part 85% | KSA16: ITC Part 85% | KSC16: ITC Part 85% | KSE16: ITC Part 85% | KSG16: ITC Part 85% | KSI16: ITC Part 85% | KSK16: ITC Part 85% | KSM16: ITC Part 85% | KSO16: ITC Part 85% | KSQ16: ITC Part 85% | KSS16: ITC Part 85% | KSU16: ITC Part 85% | KSW16: ITC Part 85% | KSY16: ITC Part 85% | KTA16: ITC Part 85% | KTC16: ITC Part 85% | KTE16: ITC Part 85% | KTG16: ITC Part 85% | KTI16: ITC Part 85% | KTK16: ITC Part 85% | KTM16: ITC Part 85% | KTO16: ITC Part 85% | KTQ16: ITC Part 85% | KTS16: ITC Part 85% | KTU16: ITC Part 85% | KTW16: ITC Part 85% | KTY16: ITC Part 85% | KUA16: ITC Part 85% | KUC16: ITC Part 85% | KUE16: ITC Part 85% | KUG16: ITC Part 85% | KUI16: ITC Part 85% | KUK16: ITC Part 85% | KUM16: ITC Part 85% | KUO16: ITC Part 85% | KUQ16: ITC Part 85% | KUS16: ITC Part 85% | KUU16: ITC Part 85% | KUW16: ITC Part 85% | KUY16: ITC Part 85% | KVA16: ITC Part 85% | KVC16: ITC Part 85% | KVE16: ITC Part 85% | KVG16: ITC Part 85% | KVI16: ITC Part 85% | KVK16: ITC Part 85% | KVM16: ITC Part 85% | KVO16: ITC Part 85% | KVQ16: ITC Part 85% | KVS16: ITC Part 85% | KVU16: ITC Part 85% | KVW16: ITC Part 85% | KVY16: ITC Part 85% | KWA16: ITC Part 85% | KWC16: ITC Part 85% | KWE16: ITC Part 85% | KWG16: ITC Part 85% | KWI16: ITC Part 85% | KWK16: ITC Part 85% | KWM16: ITC Part 85% | KWO16: ITC Part 85% | KWQ16: ITC Part 85% | KWS16: ITC Part 85% | KWU16: ITC Part 85% | KWW16: ITC Part 85% | KWY16: ITC Part 85% | KXA16: ITC Part 85% | KXC16: ITC Part 85% | KXE16: ITC Part 85% | KXG16: ITC Part 85% | KXI16: ITC Part 85% | KXK16: ITC Part 85% | KXM16: ITC Part 85% | KXO16: ITC Part 85% | KXQ16: ITC Part 85% | KXS16: ITC Part 85% | KXU16: ITC Part 85% | KXW16: ITC Part 85% | KXY16: ITC Part 85% | KYA16: ITC Part 85% | KYC16: ITC Part 85% | KYE16: ITC Part 85% | KYG16: ITC Part 85% | KYI16: ITC Part 85% | KYK16: ITC Part 85% | KYM16: ITC Part 85% | KYO16: ITC Part 85% | KYQ16: ITC Part 85% | KYS16: ITC Part 85% | KYU16: ITC Part 85% | KYW16: ITC Part 85% | KYY16: ITC Part 85% | KZA16: ITC Part 85% | KZC16: ITC Part 85% | KZE16: ITC Part 85% | KZG16: ITC Part 85% | KZI16: ITC Part 85% | KZK16: ITC Part 85% | KZM16: ITC Part 85% | KZO16: ITC Part 85% | KZQ16: ITC Part 85% | KZS16: ITC Part 85% | KZU16: ITC Part 85% | KZW16: ITC Part 85% | KZY16: ITC Part 85% | LAA16: ITC Part 85% | LAC16: ITC Part 85% | LAE16: ITC Part 85% | LAG16: ITC Part 85% | LAI16: ITC Part 85% | LAK16: ITC Part 85% | LAM16: ITC Part 85% | LAO16: ITC Part 85% | LAQ16: ITC Part 85% | LAS16: ITC Part 85% | LAU16: ITC Part 85% | LAW16: ITC Part 85% | LAY16: ITC Part 85% | LBA16: ITC Part 85% | LBC16: ITC Part 85% | LBE16: ITC Part 85% | LBG16: ITC Part 85% | LBI16: ITC Part 85% | LBK16: ITC Part 85% | LBM16: ITC Part 85% | LBO16: ITC Part 85% | LBQ16: ITC Part 85% | LBS16: ITC Part 85% | LBU16: ITC Part 85% | LBW16: ITC Part 85% | LBY16: ITC Part 85% | LCA16: ITC Part 85% | LCC16: ITC Part 85% | LCE16: ITC Part 85% | LCG16: ITC Part 85% | LCI16: ITC Part 85% | LCK16: ITC Part 85% | LCM16: ITC Part 85% | LCO16: ITC Part 85% | LCQ16: ITC Part 85% | LCS16: ITC Part 85% | LCU16: ITC Part 85% | LCW16: ITC Part 85% | LCY16: ITC Part 85% | LDA16: ITC Part 85% | LDC16: ITC Part 85% | LDE16: ITC Part 85% | LDG16: ITC Part 85% | LDI16: ITC Part 85% | LDK16: ITC Part 85% | LDM16: ITC Part 85% | LDO16: ITC Part 85% | LDQ16: ITC Part 85% | LDS16: ITC Part 85% | LDU16: ITC Part 85% | LDW16: ITC Part 85% | LDY16: ITC Part 85% | LEA16: ITC Part 85% | LEC16: ITC Part 85% | LEE16: ITC Part 85% | LEG16: ITC Part 85% | LEI16: ITC Part 85% | LEK16: ITC Part 85% | LEM16: ITC Part 85% | LEO16: ITC Part 85% | LEQ16: ITC Part 85% | LES16: ITC Part 85% | LEU16: ITC Part 85% | LEW16: ITC Part 85% | LEY16: ITC Part 85% | LFA16: ITC Part 85% | LFC16: ITC Part 85% | LFE16: ITC Part 85% | LFG16: ITC Part 85% | LFI16: ITC Part 85% | LFK16: ITC Part 85% | LFM16: ITC Part 85% | LFO16: ITC Part 85% | LFQ16: ITC Part 85% | LFS16: ITC Part 85% | LFU16: ITC Part 85% | LFW16: ITC Part 85% | LFY16: ITC Part 85% | LGA16: ITC Part 85% | LGC16: ITC Part 85% | LGE16: ITC Part 85% | LGG16: ITC Part 85% | LGI16: ITC Part 85% | LGK16: ITC Part 85% | LGM16: ITC Part 85% | LGO16: ITC Part 85% | LGQ16: ITC Part 85% | LGS16: ITC Part 85% | LGU16: ITC Part 85% | LGW16: ITC Part 85% | LGY16: ITC Part 85% | LHA16: ITC Part 85% | LHC16: ITC Part 85% | LHE16: ITC Part 85% | LHG16: ITC Part 85% | LHI16: ITC Part 85% | LHK16: ITC Part 85% | LHM16: ITC Part 85% | LHO16: ITC Part 85% | LHQ16: ITC Part 85% | LHS16: ITC Part 85% | LHU16: ITC Part 85% | LHW16: ITC Part 85% | LHY16: ITC Part 85% | LIA16: ITC Part 85% | LIC16: ITC Part 85% | LIE16: ITC Part 85% | LIG16: ITC Part 85% | LII16: ITC Part 85% | LIK16: ITC Part 85% | LIM16: ITC Part 85% | LIO16: ITC Part 85% | LIQ16: ITC Part 85% | LIS16: ITC Part 85% | LIU16: ITC Part 85% | LIW16: ITC Part 85% | LIY16: ITC Part 85% | LJA16: ITC Part 85% | LJC16: ITC Part 85% | LJE16: ITC Part 85% | LJG16: ITC Part 85% | LJI16: ITC Part 85% | LJK16: ITC Part 85% | LJM16: ITC Part 85% | LJO16: ITC Part 85% | LJQ16: ITC Part 85% | LJS16: ITC Part 85% | LJU16: ITC Part 85% | LJW16: ITC Part 85% | LJY16: ITC Part 85% | LKA16: ITC Part 85% | LKC16: ITC Part 85% | LKE16: ITC Part 85% | LKG16: ITC Part 85% | LKI16: ITC Part 85% | LKK16: ITC Part 85% | LKM16: ITC Part 85% | LKO16: ITC Part 85% | LKQ16: ITC Part 85% | LKS16: ITC Part 85% | LKU16: ITC Part 85% | LKW16: ITC Part 85% | LKY16: ITC Part 85% | LLA16: ITC Part 85% | LLC16: ITC Part 85% | LLE16: ITC Part 85% | LLG16: ITC Part 85% | LLI16: ITC Part 85% | LLK16: ITC Part 85% | LLM16: ITC Part 85% | LLO16: ITC Part 85% | LLQ16: ITC Part 85% | LLS16: ITC Part 85% | LLU16: ITC Part 85% | LLW16: ITC Part 85% | LLY16: ITC Part 85% | LMA16: ITC Part 85% | LMC16: ITC Part 85% | LME16: ITC Part 85% | LMG16: ITC Part 85% | LMI16: ITC Part 85% | LMK16: ITC Part 85% | LMM16: ITC Part 85% | LMO16: ITC Part 85% | LMQ16: ITC Part 85% | LMS16: ITC Part 85% | LMU16: ITC Part 85% | LMW16: ITC Part 85% | LMY16: ITC Part 85% | LNA16: ITC Part 85% | LNC16: ITC Part 85% | LNE16: ITC Part 85% | LNG16: ITC Part 85% | LNI16: ITC Part 85% | LNK16: ITC Part 85% | LNM16: ITC Part 85% | LNO16: ITC Part 85% | LNQ16: ITC Part 85% | LNS16: ITC Part 85% | LNU16: ITC Part 85% | LNW16: ITC Part 85% | LNY16: ITC Part 85% | LOA16: ITC Part 85% | LOC16: ITC Part 85% | LOE16: ITC Part 85% | LOG16: ITC Part 85% | LOI16: ITC Part 85% | LOK16: ITC Part 85% | LOM16: ITC Part 85% | LOO16: ITC Part 85% | LOQ16: ITC Part 85% | LOS16: ITC Part 85% | LOU16: ITC Part 85% | LOW16: ITC Part 85% | LOY16: ITC Part 85% | LPA16: ITC Part 85% | LPC16: ITC Part 85% | LPE16: ITC Part 85% | LPG16: ITC Part 85% | LPI16: ITC Part 85% | LPK16: ITC Part 85% | LPM16: ITC Part 85% | LPO16: ITC Part 85% | LPQ16: ITC Part 85% | LPS16: ITC Part 85% | LPU16: ITC Part 85% | LPW16: ITC Part 85% | LPY16: ITC Part 85% | LQA16: ITC Part 85% | LQC16: ITC Part 85% | LQE16: ITC Part 85% | LQG16: ITC Part 85% | LQI16: ITC Part 85% | LQK16: ITC Part 85% | LQM16: ITC Part 85% | LQO16: ITC Part 85% | LQQ16: ITC Part 85% | LQS16: ITC Part 85% | LQU16: ITC Part 85% | LQW16: ITC Part 85% | LQY16: ITC Part 85% | LRA16: ITC Part 85% | LRC16: ITC Part 85% | LRE16: ITC Part 85% | LRG16: ITC Part 85% | LRI16: ITC Part 85% | LRK16: ITC Part 85% | LRM16: ITC Part 85% | LRO16: ITC Part 85% | LRQ16: ITC Part 85% | LRS16: ITC Part 85% | LRU16: ITC Part 85% | LRW16: ITC Part 85% | LRY16: ITC Part 85% | LSA16: ITC Part 85% | LSC16: ITC Part 85% | LSE16: ITC Part 85% | LSG16: ITC Part 85% | LSI16: ITC Part 85% | LSK16: ITC Part 85% | LSM16: ITC Part 85% | LSO16: ITC Part 85% | LSQ16: ITC Part 85% | LSS16: ITC Part 85% | LSU16: ITC Part 85% | LSW16: ITC Part 85% | LSY16: ITC Part 85% | LTA16: ITC Part 85% | LTC16: ITC Part 85% | LTE16: ITC Part 85% | LTG16: ITC Part 85% | LTI16: ITC Part 85% | LTK16: ITC Part 85% | LTM16: ITC Part 85% | LTO16: ITC Part 85% | LTQ16: ITC Part 85% | LTS16: ITC Part 85% | LTU16: ITC Part 85% | LTW16: ITC Part 85% | LTY16: ITC Part 85% | LUA16: ITC Part 85% | LUC16: ITC Part 85% | LUE16: ITC Part 85% | LUG16: ITC Part 85% | LUI16: ITC Part 85% | LUK16: ITC Part 85% | LUM16: ITC Part 85% | LUO16: ITC Part 85% | LUQ16: ITC Part 85% | LUS16: ITC Part 85% | LUU16: ITC Part 85% | LUW16: ITC Part 85% | LUY16: ITC Part 85% | LVA16: ITC Part 85% | LVC16: ITC Part 85% | LVE16: ITC Part 85% | LVG16: ITC Part 85% | LVI16: ITC Part 85% | LVK16: ITC Part 85% | LVM16: ITC Part 85% | LVO16: ITC Part 85% | LVQ16: ITC Part 85% | LVS16: ITC Part 85% | LVU16: ITC Part 85% | LVW16: ITC Part 85% | LVY16: ITC Part 85% | LWA16: ITC Part 85% | LWC16: ITC Part 85% | LWE16: ITC Part 85% | LWG16: ITC Part 85% | LWI16: ITC Part 85% | LWK16: ITC Part 85% | LWM16: ITC Part 85% | LWO16: ITC Part 85% | LWQ16: ITC Part 85% | LWS16: ITC Part 85% | LWU16: ITC Part 85% | LWW16: ITC Part 85% | LWY16: ITC Part 85% | LXA16: ITC Part 85% | LXC16: ITC Part 85% | LXE16: ITC Part 85% | LXG16: ITC Part 85% | LXI16: ITC Part 85% | LXK16: ITC Part 85% | LXM16: ITC Part 85% | LXO16: ITC Part 85% | LXQ16: ITC Part 85% | LXS16: ITC Part 85% | LXU16: ITC Part 85% | LXW16: ITC Part 85% | LXY16: ITC Part 85% | LYA16: ITC Part 85% | LYC16: ITC Part 85% | LYE16: ITC Part 85% | LYG16: ITC Part 85% | LYI16: ITC Part 85% | LYK16: ITC Part 85% | LYM16: ITC Part 85% | LYO16: ITC Part 85% | LYQ16: ITC Part 85% | LYS16: ITC Part 85% | LYU16: ITC Part 85% | LYW16: ITC Part 85% | LYY16: ITC Part 85% | LZA16: ITC Part 85% | LZC16: ITC Part 85% | LZE16: ITC Part 85% | LZG16: ITC Part 85% | LZI16: ITC Part 85% | LZK16: ITC Part 85% | LZM16: ITC Part 85% | LZO16: ITC Part 85% | LZQ16: ITC Part 85% | LZS16: ITC Part 85% | LZU16: ITC Part 85% | LZW16: ITC Part 85% | LZY16: ITC Part 85% | MAA16: ITC Part 85% | MAC16: ITC Part 85% | MAE16: ITC Part 85% | MAG16: ITC Part 85% | MAI16: ITC Part 85% | MAK16: ITC Part 85% | MAM16: ITC Part 85% | MAO16: ITC Part 85% | MAQ16: ITC Part 85% | MAS16: ITC Part 85% | MAU16: ITC Part 85% | MAW16: ITC Part 85% | MAY16: ITC Part 85% | MBA16: ITC Part 85% | MBC16: ITC Part 85% | MBE16: ITC Part 85% | MBG16: ITC Part 85% | MBI16: ITC Part 85% | MBK16: ITC Part 85% | MBM16: ITC Part 85% | MBO16: ITC Part 85% | MBQ16: ITC Part 85% | MBS16: ITC Part 85% | MBU16: ITC Part 85% | MBW16: ITC Part 85% | MBY16: ITC Part 85% | MCA16: ITC Part 85% | MCC16: ITC Part 85% | MCE16: ITC Part 85% | MCG16: ITC Part 85% | MCI16: ITC Part 85% | MCK16: ITC Part 85% | MCM16: ITC Part 85% | MCO16: ITC Part 85% | MCQ16: ITC Part 85% | MCS16: ITC Part 85% | MCU16: ITC Part 85% | MCW16: ITC Part 85% | MCY16: ITC Part 85% | MDA16: ITC Part 85% | MDC16: ITC Part 85% | MDE16: ITC Part 85% | MDG16: ITC Part 85% | MDI16: ITC Part 85% | MDK16: ITC Part 85% | MDM16: ITC Part 85% | MDO16: ITC Part 85% | MDQ16: ITC Part 85% | MDS16: ITC Part 85% | MDU16: ITC Part 85% | MDW16: ITC Part 85% | MDY16: ITC Part 85% | MEA16: ITC Part 85% | MEC16: ITC Part 85% | MEE16: ITC Part 85% | MEG16: ITC Part 85% | MEI16: ITC Part 85% | MEK16: ITC Part 85% | MEM16: ITC Part 85% | MEO16: ITC Part 85% | MEQ16: ITC Part 85% | MES16: ITC Part 85% | MEU16: ITC Part 85% | MEW16: ITC Part 85% | MEY16: ITC Part 85% | MFA16: ITC Part 85% | MFC16: ITC Part 85% | MFE16: ITC Part 85% | MFG16: ITC Part 85% | MFI16: ITC Part 85% | MFK16: ITC Part 85% | MFM16: ITC Part 85% | MFO16: ITC Part 85% | MFQ16: ITC Part 85% | MFS16: ITC Part 85% | MFU16: ITC Part 85% | MFW16: ITC Part 85% | MFY16: ITC Part 85% | MGA16: ITC Part 85% | MGC16: ITC Part 85% | MGE16: ITC Part 85% | MGG16: ITC Part 85% | MGI16: ITC Part 85% | MGK16: ITC Part 85% | MGM16: ITC Part 85% | MGO16: ITC Part 85% | MGQ16: ITC Part 85% | MGS16: ITC Part 85% | MGU16: ITC Part 85% | MGW16: ITC Part 85% | MGY16: ITC Part 85% | MHA16: ITC Part 85% | MHC16: ITC Part 85% | MHE16: ITC Part 85% | MHG16: ITC Part 85% | MHI16: ITC Part 85% | MHK16: ITC Part 85% | MHM16: ITC Part 85% | MHO16: ITC Part 85% | MHQ16: ITC Part 85% | MHS16: ITC Part 85% | MHU16: ITC Part 85% | MHW16: ITC Part 85% | MHY16: ITC Part 85% | MIA16: ITC Part 85% | MIC16: ITC Part 85% | MIE16: ITC Part 85% | MIG16: ITC Part 85% | MII16: ITC Part 85% | MIK16: ITC Part 85% | MIM16: ITC Part 85% | MIO16: ITC Part 85% | MIQ16: ITC Part 85% | MIS16: ITC Part 85% | MIU16: ITC Part 85% | MIW16: ITC Part 85% | MIY16: ITC Part 85% | MJA16: ITC Part 85% | MJC16: ITC Part 85% | MJE16: ITC Part 85% | MJG16: ITC Part 85% | MJI16: ITC Part 85% | MJK16: ITC Part 85% | MJM16: ITC Part 85% | MJO16: ITC Part 85% | MJQ16: ITC Part 85% | MJS16: ITC Part 85% | MJU16: ITC Part 85% | MJW16: ITC Part 85% | MJY16: ITC Part 85% | MKA16: ITC Part 85% | MKC16: ITC Part 85% | MKE16: ITC Part 85% | MKG16: ITC Part 85% | MKI16: ITC Part 85% | MKK16: ITC Part 85% | MKM16: ITC Part 85% | MKO16: ITC Part 85% | MKQ16: ITC Part 85% | MKS16: ITC Part 85% | MKU16: ITC Part 85% | MKW16: ITC Part 85% | MKY16: ITC Part 85% | MLA16: ITC Part 85% | MLC16: ITC Part 85% | MLE16: ITC Part 85% | MLG16: ITC Part 85% | MLI16: ITC Part 85% | MLK16: ITC Part 85% | MLM16: ITC Part 85% | MLO16: ITC Part 85% | MLQ16: ITC Part 85% | MLS16: ITC Part 85% | MLU16: ITC Part 85% | MLW16: ITC Part 85% | MLY16: ITC Part 85% | MMA16: ITC Part 85% | MMC16: ITC Part 85% | MME16: ITC Part 85% | MMG16: ITC Part 85% | MMI16: ITC Part 85% | MMK16: ITC Part 85% | MMM16: ITC Part 85% | MMO16: ITC Part 85% | MMQ16: ITC Part 85% | MMS16: ITC Part 85% | MMU16: ITC Part 85% | MMW16: ITC Part 85% | MMY16: ITC Part 85% | MNA16: ITC Part 85% | MNC16: ITC Part 85% | MNE16: ITC Part 85% | MNG16: ITC Part 85% | MNI16: ITC Part 85% | MNK16: ITC Part 85% | MNM16: ITC Part 85% | MNO16: ITC Part 85% | MNQ16: ITC Part 85% | MNS16: ITC Part 85% | MNU16: ITC Part 85% | MNW16: ITC Part 85% | MNY16: ITC Part 85% | MOA16: ITC Part 85% | MOC16: ITC Part 85% | MOE16: ITC Part 85% | MOG16: ITC Part 85% | MOI16: ITC Part 85% | MOK16: ITC Part 85% | MOM16: ITC Part 85% | MOO16: ITC Part 85% | MOQ16: ITC Part 85% | MOS16: ITC Part 85% | MOU16: ITC Part 85% | MOW16: ITC Part 85% | MOY16: ITC Part 85% | MPA16: ITC Part 85% | MPC16: ITC Part 85% | MPE16: ITC Part 85% | MPG16: ITC Part 85% | MPI16: ITC Part 85% | MPK16: ITC Part 85% | MPM16: ITC Part 85% | MPO16: ITC Part 85% | MPQ16: ITC Part 85% | MPS16: ITC Part 85% | MPU16: ITC Part 85% | MPW16: ITC Part 85% | MPY16: ITC Part 85% | MQA16: ITC Part 85% | MQC16: ITC Part 85% | MQE16: ITC Part 85% | MQG16: ITC Part 85% | MQI16: ITC Part 85% | MQK16: ITC Part 85% | MQM16: ITC Part 85% | MQO16: ITC Part 85% | MQQ16: ITC Part 85% | MQS16: ITC Part 85% | MQU16: ITC Part 85% | MQW16: ITC Part 85% | MQY16: ITC Part 85% | MRA16: ITC Part 85% | MRC16: ITC Part 85% | MRE16: ITC Part 85% | MRG16: ITC Part 85% | MRI16: ITC Part 85% | MRK16: ITC Part 85% | MRM16: ITC Part 85% | MRO16: ITC Part 85% | MRQ16: ITC Part 85% | MRS16: ITC Part 85% | MRU16: ITC Part 85% | MRW16: ITC Part 85% | MRY16: ITC Part 85% | MSA16: ITC Part 85% | MSC16: ITC Part 85% | MSE16: ITC Part 85% | MSG16: ITC Part 85% | MSI16: ITC Part 85% | MSK16: ITC Part 85% | MSM16: ITC Part 85% | MSO16: ITC Part 85% | MSQ16: ITC Part 85% | MSS16: ITC Part 85% | MSU16: ITC Part 85% | MSW16: ITC Part 85% | MSY16: ITC Part 85% | MTA16: ITC Part 85% | MTC16: ITC Part 85% | MTE16: ITC Part 85% | MTG16: ITC Part 85% | MTI16: ITC Part 85% | MTK16: ITC Part 85% | MTM16: ITC Part 85% | MTO16: ITC Part 85% | MTQ16: ITC Part 85% | MTS16: ITC Part 85% | MTU16: ITC Part 85% | MTW16: ITC Part 85% | MTY16: ITC Part 85% | MUA16: ITC Part 85% | MUC16: ITC Part 85% | MUE16: ITC Part 85% | MUG16: ITC Part 85% | MUI16: ITC Part 85% | MUK16: ITC Part 85% | MUM16: ITC Part 85% | MUO16: ITC Part 85% | MUQ16: ITC Part 85% | MUS16: ITC Part 85% | MUU16: ITC Part 85% | MUW16: ITC Part 85% | MUY16: ITC Part 85% | MVA16: ITC Part 85% | MVC16: ITC Part 85% | MVE16: ITC Part 85% | MVG16: ITC Part 85% | MVI16: ITC Part 85% | MVK16: ITC Part 85% | MVM16: ITC Part 85% | MVO16: ITC Part 85% | MVQ16: ITC Part 85% | MVS16: ITC Part 85% | MVU16: ITC Part 85% | MVW16: ITC Part 85% | MVY16: ITC Part 85% | MWA16: ITC Part 85% | MWC16: ITC Part 85% | MWE16: ITC Part 85% | MWG16: ITC Part 85% | MWI16: ITC Part 85% | MWK16: ITC Part 85% | MWM16: ITC Part 85% | MWO16: ITC Part 85% | MWQ16: ITC Part 85% | MWS16: ITC Part 85% | MWU16: ITC Part 85% | MWW16: ITC Part 85% | MWY16: ITC Part 85% | MXA16: ITC Part 85% | MXC16: ITC Part 85% | MXE16: ITC Part 85% | MXG16: ITC Part 85% | MXI16: ITC Part 85% | MXK16: ITC Part 85% | MXM16: ITC Part 85% | MXO16: ITC Part 85% | MXQ16: ITC Part 85% | MXS16: ITC Part 85% | MXU16: ITC Part 85% | MXW16: ITC Part 85% | MXY16: ITC Part 85% | MYA16: ITC Part 85% | MYC16: ITC Part 85% | MYE16: ITC Part 85% | MYG16: ITC Part 85% | MYI16: ITC Part 85% | MYK16: ITC Part 85% | MYM16: ITC Part 85% | MYO16: ITC Part 85% | MYQ16: ITC Part 85% | MYS16: ITC Part 85% | MYU16: ITC Part 85% | MYW16: ITC Part 85% | MYY16: ITC Part 85% | MZA16: ITC Part 85% | MZC16: ITC Part 85% | MZE16: ITC Part 85% | MZG16: ITC Part 85% | MZI16: ITC Part 85% | MZK16: ITC Part 85% | MZM16: ITC Part 85% | MZO16: ITC Part 85% | MZQ16: ITC Part 85% | MZS16: ITC Part 85% | MZU16: ITC Part 85% | MZW16: ITC Part 85% | MZY16: ITC Part 85% | NAA16: ITC Part 85% | NAC16: ITC Part 85% | NAE16: ITC Part 85% | NAG16: ITC Part 85% | NAI16: ITC Part 85% | NAK16: ITC Part 85% | NAM16: ITC Part 85% | NAO16: ITC Part 85% | NAQ16: ITC Part 85% | NAS16: ITC Part 85% | NAU16: ITC Part 85% | NAW16: ITC Part 85% | NAY16: ITC Part 85% | NBA16: ITC Part 85% | NBC16: ITC Part 85% | NBE16: ITC Part 85% | NBG16: ITC Part 85% | NBI16: ITC Part 85% | NBK16: ITC Part 85% | NBM16: ITC Part 85% | NBO16: ITC Part 85% | NBQ16: ITC Part 85% | NBS16: ITC Part 85% | NBU16: ITC Part 85% | NBW16: ITC Part 85% | NBY16: ITC Part 85% | NCA16: ITC Part 85% | NCC16: ITC Part 85% | NCE16: ITC Part 85% | NCG16: ITC Part 85% | NCI16: ITC Part 85% | NCK16: ITC Part 85% | NCM16: ITC Part 85% | NCO16: ITC Part 85% | NCQ16: ITC Part 85% | NCS16: ITC Part 85% | NCU16: ITC Part 85% | NCW16: ITC Part 85% | NCY16: ITC Part 85% | NDA16: ITC Part 85% | NDC16: ITC Part 85% | NDE16: ITC Part 85% | NDG16: ITC Part 85% | NDI16: ITC Part 85% | NDK16: ITC Part 85% | NDM16: ITC Part 85% | NDO16: ITC Part 85% | NDQ16: ITC Part 85% | NDS16: ITC Part 85% | NDU16: ITC Part 85% | NDW16: ITC Part 85% | NDY16: ITC Part 85% | NEA16: ITC Part 85% | NEC16: ITC Part 85% | NEE16: ITC Part 85% | NEG16: ITC Part 85% | NEI16: ITC Part 85% | NEK16: ITC Part 85% | NEM16: ITC Part 85% | NEO16: ITC Part 85% | NEQ16: ITC Part 85% | NES16: ITC Part 85% | NEU16: ITC Part 85% | NEW16: ITC Part 85% | NEY16: ITC Part 85% | NFA16: ITC Part 85% | NFC16: ITC Part 85% | NFE16: ITC Part 85% | NFG16: ITC Part 85% | NFI16: ITC Part 85% | NFK16: ITC Part 85% | NFM16: ITC Part 85% | NFO16: ITC Part 85% | NFQ16: ITC Part 85% | NFS16: ITC Part 85% | NFU16: ITC Part 85% | NFW16: ITC Part 85% | NFY16: ITC Part 85% | NGA16: ITC Part 85% | NGC16: ITC Part 85% | NGE16: ITC Part 85% | NGG16: ITC Part 85% | NGI16: ITC Part 85% | NGK16: ITC Part 85% | NGM16: ITC Part 85% | NGO16: ITC Part 85% | NGQ16: ITC Part 85% | NGS16: ITC Part 85% | NGU16: ITC Part 85% | NGW16: ITC Part 85% | NGY16: ITC Part 85% | NHA16: ITC Part 85% | NHC16: ITC Part 85% | NHE16: ITC Part 85% | NHG16: ITC Part 85% | NHI16: ITC Part 85% | NHK16: ITC Part 85% | NHM16: ITC Part 85% | NHO16: ITC Part 85% | NHQ16: ITC Part 85% | NHS16: ITC Part 85% | NHU16: ITC Part 85% | NHW16: ITC Part 85% | NHY16: ITC Part 85% | NIA16: ITC Part 85% | NIC16: ITC Part 85% | NIE16: ITC Part 85% | NIG16: ITC Part 85% | NII16: ITC Part 85% | NIK16: ITC Part 85% | NIM16: ITC Part 85% | NIO16: ITC Part 85% | NIQ16: ITC Part 85% | NIS16: ITC Part 85% | NIU16: ITC Part 85% | NIW16: ITC Part 85% | NIY16: ITC Part 85% | NJA16: ITC Part 85% | NJC16: ITC Part 85% | NJE16: ITC Part 85% | NJG16: ITC Part 85% | NJI16: ITC Part 85% | NJK16: ITC Part 85% | NJM16: ITC Part 85% | NJO16: ITC Part 85% | NJQ16: ITC Part 85% | NJS16: ITC Part 85% | NJU16: ITC Part 85% | NJW16: ITC Part 85% | NJY16: ITC Part 85% | NKA16: ITC Part 85% | NKC16: ITC Part 85% | NKE16: ITC Part 85% | NKG16: ITC Part 85% | NKI16: ITC Part 85% | NKK16: ITC Part 85% | NKM16: ITC Part 85% | NKO16: ITC Part 85% | NKQ16: ITC Part 85% | NKS16: ITC Part 85% | NKU16: ITC Part 85% | NKW16: ITC Part 85% | NKY16: ITC Part 85% | NLA16: ITC Part 85% | NLC16: ITC Part 85% | NLE16: ITC Part 85% | NLG16: ITC Part 85% | NLI16: ITC Part 85% | NLK16: ITC Part 85% | NLM16: ITC Part 85% | NLO16: ITC Part 85% | NLQ16: ITC Part 85% | NLS16: ITC Part 85% | NLU16: ITC Part 85% | NLW16: ITC Part 85% | NLY16: ITC Part 85% | NMA16: ITC Part 85% | NMC16: ITC Part 85% | NME16: ITC Part 85% | NMG16: ITC Part 85% | NMI16: ITC Part 85% | NMK16: ITC Part 85% | NMM16: ITC Part 85% | NMO16: ITC Part 85% | NMQ16: ITC Part 85% | NMS16: ITC Part 85% | NMU16: ITC Part 85% | NMW16: ITC Part 85% | NMY16: ITC Part 85% | NNA16: ITC Part 85% | NNC16: ITC Part 85% | NNE16: ITC Part 85% | NNG16: ITC Part 85% | NNI16: ITC Part 85% | NNK16: ITC Part 85% | NNM16: ITC Part 85% | NNO16: ITC Part 85% | NNQ16: ITC Part 85% | NNS16: ITC Part 85% | NNU16: ITC Part 85% | NNW16: ITC Part 85% | NNY16: ITC Part 85% | NOA16: ITC Part 85% | NOC16: ITC Part 85% | NOE16: ITC Part 85% | NOG16: ITC Part 85% | NOI16: ITC Part 85% | NOK16: ITC Part 85% | NOM16: ITC Part 85% | NOO16: ITC Part 85% | NOQ16: ITC Part 85% | NOS16: ITC Part 85% | NOU16: ITC Part 85% | NOW16: ITC Part 85% | NOY16: ITC Part 85% | NPA16: ITC Part 85% | NPC16: ITC Part 85% | NPE16: ITC Part 85% | NPG16: ITC Part 85% | NPI16: ITC Part 85% | NPK16: ITC Part 85% | NPM16: ITC Part 85% | NPO16: ITC Part 85% | NPQ16: ITC Part 85% | NPS16: ITC Part 85% | NPU16: ITC Part 85% | NPW16: ITC Part 85% | NPY16: ITC Part 85% | NQA16: ITC Part 85% | NQC16: ITC Part 85% | NQE16: ITC Part 85% | NQG16: ITC Part 85% | NQI16: ITC Part 85% | NQK16: ITC Part 85% | NQM16: ITC Part 85% | NQO16: ITC Part 85% | NQQ16: ITC Part 85% | NQS16: ITC Part 85% | NQU16: ITC Part 85% | NQW16: ITC Part 85% | NQY16: ITC Part 85% | NRA16: ITC Part 85% | NRC16: ITC Part 85% | NRE16: ITC Part 85% | NRG16: ITC Part 85% | NRI16: ITC Part 85% | NRK16: ITC Part 85% | NRM16: ITC Part 85% | NRO16: ITC Part 85% | NRQ16: ITC Part 85% | NRS16: ITC Part 85% | NRU16: ITC Part 85% | NRW16: ITC Part 85% | NRY16: ITC Part 85% | NSA16: ITC Part 85% | NSC16: ITC Part 85% | NSE16: ITC Part 85% | NSG16: ITC Part 85% | NSI16: ITC Part 85% | NSK16: ITC Part 85% | NSM16: ITC Part 85% | NSO16: ITC Part 85% | NSQ16: ITC Part 85% | NSS16: ITC Part 85% | NSU16: ITC Part 85% | NSW16: ITC Part 85% | NSY16: ITC Part 85% | NTA16: ITC Part 85% | NTC16: ITC Part 85% | NTE16: ITC Part 85% | NTG16: ITC Part 85% | NTI16: ITC Part 85% | NTK16: ITC Part 85% | NTM16: ITC Part 85% | NTO16: ITC Part 85% | NTQ16: ITC Part 85% | NTS16: ITC Part 85% | NTU16: ITC Part 85% | NTW16: ITC Part 85% | NTY16: ITC Part 85% | NUA16: ITC Part 85% | NUC16: ITC Part 85% | NUE16: ITC Part 85% | NUG16: ITC Part 85% | NUI16: ITC Part 85% | NUK16: ITC Part 85% | NUM16: ITC Part 85% | NUO16: ITC Part 85% | NUQ16: ITC Part 85% | NUS16: ITC Part 85% | NUU16: ITC Part 85% | NUW16: ITC Part 85% | NUY16: ITC Part 85% | NVA16: ITC Part 85% | NVC16: ITC Part 85% | NVE16: ITC Part 85% | NVG16: ITC Part 85% | NVI16: ITC Part 85% | NVK16: ITC Part 85% | NVM16: ITC Part 85% | NVO16: ITC Part 85% | NVQ16: ITC Part 85% | NVS16: ITC Part 85% | NVU16: ITC Part 85% | NVW16: ITC Part 85% | NVY16: ITC Part 85% | NWA16: ITC Part 85% | NWC16: ITC Part 85% | NWE16: ITC Part 85% | NWG16: ITC Part 85% | NWI16: ITC Part 85% | NWK16: ITC Part 85% | NWM16: ITC Part 85% | NWO16: ITC Part 85% | NWQ16: ITC Part 85% | NWS16: ITC Part 85% | NWU16: ITC Part 85% | NWW16: ITC Part 85% | NWY16: ITC Part 85% | NXA16: ITC Part 85% | NXC16: ITC Part 85% | NXE16: ITC Part 85% | NXG16: ITC Part 85% | NXI16: ITC Part 85% | NXK16: ITC Part 85% | NXM16: ITC Part 85% | NXO16: ITC Part 85% | NXQ16: ITC Part 85% | NXS16: ITC Part 85% | NXU16: ITC Part 85% | NXW16: ITC Part 85% | NXY16: ITC Part 85% | NYA16: ITC Part 85% | NYC16: ITC Part 85% | NYE16: ITC Part 85% | NYG16: ITC Part 85% | NYI16: ITC Part 85% | NYK16: ITC Part 85% | NYM16: ITC Part 85% | NYO16: ITC Part 85% | NYQ16: ITC Part 85% | NYS16: ITC Part 85% | NYU16: ITC Part 85% | NYW16: ITC Part 85% | NYY16: ITC Part 85% | NZA16: ITC Part 85% | NZC16: ITC Part 85% | NZE16: ITC Part 85% | NZG16: ITC Part 85% | NZI16: ITC Part 85% | NZK16: ITC Part 85% | NZM16: ITC Part 85% | NZO16: ITC Part 85% | NZQ16: ITC Part 85% | NZS16: ITC Part 85% | NZU16: ITC Part 85% | NZW16: ITC Part 85% | NZY16: ITC Part 85% | OAA16: ITC Part 85% | OAC16: ITC Part 85% | OAE16: ITC Part 85% | OAG16: ITC Part 85% | OAI16: ITC Part 85% | OAK16: ITC Part 85% | OAM16: ITC Part 85% | OAO16: ITC Part 85% | OAQ16: ITC Part 85% | OAS16: ITC Part 85% | OAU16: ITC Part 85% | OAW16: ITC Part 85% | OAY16: ITC Part 85% | OBA16: ITC Part 85% | OBC16: ITC Part 85% | OBE16: ITC Part 85% | OBG16: ITC Part 85% | OBI16: ITC Part 85% | OBK16: ITC Part 85% | OBM16: ITC Part 85% | OBO16: ITC Part 85% | OBQ16: ITC Part 85% | OBS16: ITC Part 85% | OBU16: ITC Part 85% | OBW16: ITC Part 85% | OBY16: ITC Part 85% | OCA16: ITC Part 85% | OCC16: ITC Part 85% | OCE16: ITC Part 85% | OCG16: ITC Part 85% | OCI16: ITC Part 85% | OCK16: ITC Part 85% | OCM16: ITC Part 85% | OCO16: ITC Part 85% | OCQ16: ITC Part 85% | OCS16: ITC Part 85% | OCU16: ITC Part 85% | OCW16: ITC Part 85% | OCY16: ITC Part 85% | ODA16: ITC Part 85% | ODC16: ITC Part 85% | ODE16: ITC Part 85% | ODG16: ITC Part 85% | ODI16: ITC Part 85% | ODK16: ITC Part 85% | ODM16: ITC Part 85% | ODO16: ITC Part 85% | ODQ16: ITC Part 85% | ODS16: ITC Part 85% | ODU16: ITC Part 85% | ODW16: ITC Part 85% | ODY16: ITC Part 85% | OEA16: ITC Part 85% | OEC16: ITC Part 85% | OEE16: ITC Part 85% | OEG16: ITC Part 85% | OEI16: ITC Part 85% | OEK16: ITC Part 85% | OEM16: ITC Part 85% | OEO16: ITC Part 85% | OEQ16: ITC Part 85% | OES16: ITC Part 85% | OEU16: ITC Part 85% | OEW16: ITC Part 85% | OEY16: ITC Part 85% | OFA16: ITC Part 85% | OFC16: ITC Part 85% | OFE16: ITC Part 85% | OFG16: ITC Part 85% | OFI16: ITC Part 85% | OFK16: ITC Part 85% | OFM16: ITC Part 85% | OFO16: ITC Part 85% | OFQ16: ITC Part 85% | OFS16: ITC Part 85% | OFU16: ITC Part 85% | OFW16: ITC Part 85% | OFY16: ITC Part 85% | OGA16: ITC Part 85% | OGC16: ITC Part 85% | OGE16: ITC Part 85% | OGG16: ITC Part 85% | OGI16: ITC Part 85% | OGK16: ITC Part 85% | OGM16: ITC Part 85% | OGO16: ITC Part 85% | OGQ16: ITC Part 85% | OGS16: ITC Part 85% | OGU16: ITC Part 85% | OGW16: ITC Part 85% | OGY16: ITC Part 85% | OHA16: ITC Part 85% | OHC16: ITC Part 85% | OHE16: ITC Part 85% | OHG16: ITC Part 85% | OHI16: ITC Part 85% | OHK16: ITC Part 85% | OHM16: ITC Part 85% | OHO16: ITC Part 85% | OHQ16: ITC Part 85% | OHS16: ITC Part 85% | OHU16: ITC Part 85% | OHW16: ITC Part 85% | OHY16: ITC Part 85% | OIA16: ITC Part 85% | OIC16: ITC Part 85% | OIE16: ITC Part 85% | OIG16: ITC Part 85% | OII16: ITC Part 85% | OIK16: ITC Part 85% | OIM16: ITC Part 85% | OIO16: ITC Part 85% | OIQ16: ITC Part 85% | OIS16: ITC Part 85% | OIU16: ITC Part 85% | OIW16: ITC Part 85% | OIY16: ITC Part 85% | OJA16: ITC Part 85% | OJC16: ITC Part 85% | OJE16: ITC Part 85% | OJG16: ITC Part 85% | OJI16: ITC Part 85% | OJK16: ITC Part 85% | OJM16: ITC Part 85% | OJO16: ITC Part 85% | OJQ16: ITC Part 85% | OJS16: ITC Part 85% | OJU16: ITC Part 85% | OJW16: ITC Part 85% | OJY16: ITC Part 85% | OKA16: ITC Part 85% | OKC16: ITC Part 85% | OKE16: ITC Part 85% | OKG16: ITC Part 85% | OKI16: ITC Part 85% | OKK16: ITC Part 85% | OKM16: ITC Part 85% | OKO16: ITC Part 85% | OKQ16: ITC Part 85% | OKS16: ITC Part 85% | OKU16: ITC Part 85% | OKW16: ITC Part 85% | OKY16: ITC Part 85% | OLA16: ITC Part 85% | OLC16: ITC Part 85% | OLE16: ITC Part 85% | OLG16: ITC Part 85% | OLI16: ITC Part 85% | OLK16: ITC Part 85% | OLM16: ITC Part 85% | OLO16: ITC Part 85% | OLQ16: ITC Part 85% | OLS16: ITC Part 85% | OLU16: ITC Part 85% | OLW16: ITC Part 85% | OLY16: ITC Part 85% | OMA16: ITC Part 85% | OMC16: ITC Part 85% | OME16: ITC Part 85% | OMG16: ITC Part 85% | OMI16: ITC Part 85% | OMK16: ITC Part 85% | OMM16: ITC Part 85% | OMO16: ITC Part 85% | OMQ16: ITC Part 85% | OMS16: ITC Part 85% | OMU16: ITC Part 85% | OMW16: ITC Part 85% | OMY16: ITC Part 85% | ONA16: ITC Part 85% | ONC16: ITC Part 85% | ONE16: ITC Part 85% | ONG16: ITC Part 85% | ONI16: ITC Part 85% | ONK16: ITC Part 85% | ONM16: ITC Part 85% | ONO16: ITC Part 85% | ONQ16: ITC Part 85% | ONS16: ITC Part 85% | ONU16: ITC Part 85% | ONW16: ITC Part 85% | ONY16: ITC Part 85% | OOA16: ITC Part 85% | OOC16: ITC Part 85% | OOE16: ITC Part 85% | OOG16: ITC Part 85% | OOI16: ITC Part 85% | OOK16: ITC Part 85% | OOM16: ITC Part 85% | OOO16: ITC Part 85% | OOQ16: ITC Part 85% | OOS16: ITC Part 85% | OOU16: ITC Part 85% | OOW16: ITC Part 85% | OOY16: ITC Part 85% | OPA16: ITC Part 85% | OPC16: ITC Part 85% | OPE16: ITC Part 85% | OPG16: ITC Part 85% | OPI16: ITC Part 85% | OPK16: ITC Part 85% | OPM16: ITC Part 85% | OPO16: ITC Part 85% | OPQ16: ITC Part 85% | OPS16: ITC Part 85% | OPU16: ITC Part 85% | OPW16: ITC Part 85% | OPY16: ITC Part 85% | OQA16: ITC Part 85% | OQC16: ITC Part 85% | OQE16: ITC Part 85% | OQG16: ITC Part 85% | OQI16: ITC Part 85% | OQK16: ITC Part 85% | OQM16: ITC Part 85% | OQO16: ITC Part 85% | OQQ16: ITC Part 85% | OQS16: ITC Part 85% | OQU16: ITC Part 85% | OQW16: ITC Part 85% | OQY16: ITC Part 85% | ORA16: ITC Part 85% | ORC16: ITC Part 85% | ORE16: ITC Part 85% | ORG16: ITC Part 85% | ORI16: ITC Part 85% | ORK16: ITC Part 85% | ORM16: ITC Part 85% | ORO16: ITC Part 85% | ORQ16: ITC Part 85% | ORS16: ITC Part 85% | ORU16: ITC Part 85% | ORW16: ITC Part 85% | ORY16: ITC Part 85% | OSA16: ITC Part 85% | OSC16: ITC Part 85% | OSE16: ITC Part 85% | OSG16: ITC Part 85% | OSI16: ITC Part 85% | OSK16: ITC Part 85% | OSM16: ITC Part 85% | OSO16: ITC Part 85% | OSQ16: ITC Part 85% | OSS16: ITC Part 85% | OSU16: ITC Part 85% | OSW16: ITC Part 85% | OSY16: ITC Part 85% | OTA16: ITC Part 85% | OTC16: ITC Part 85% | OTE16: ITC Part 85% | OTG16: ITC Part 85% | OTI16: ITC Part 85% | OTK16: ITC Part 85% | OTM16: ITC Part 85% | OTO16: ITC Part 85% | OTQ16: ITC Part 85% | OTS16: ITC Part 85% | OTU16: ITC Part 85% | OTW16: ITC Part 85% | OTY16: ITC Part 85% | OUA16: ITC Part 85% | OUC16: ITC Part 85% | OUE16: ITC Part 85% | OUG16: ITC Part 85% | OUI16: ITC Part 85% | OUK16: ITC Part 85% | OUM16: ITC Part 85% | OUO16: ITC Part 85% | OUQ16: ITC Part 85% | OUS16: ITC Part 85% | OUU16: ITC Part 85% | OUW16: ITC Part 85% | OUY16: ITC Part 85% | OVA16: ITC Part 85% | OVC16: ITC Part 85% | OVE16: ITC Part 85% | OVG16: ITC Part 85% | OVI16: ITC Part 85% | OVK16: ITC Part 85% | OVM16: ITC Part 85% | OVO16: ITC Part 85% | OVQ16: ITC Part 85% | OVS16: ITC Part 85% | OVU16: ITC Part 85% | OVW16: ITC Part 85% | OVY16: ITC Part 85% | OWA16: ITC Part 85% | OWC16: ITC Part 85% | OWE16: ITC Part 85% | OWG16: ITC Part 85% | OWI16: ITC Part 85% | OWK16: ITC Part 85% | OWM16: ITC Part 85% | OWO16: ITC Part 85% | OWQ16: ITC Part 85% | OWS16: ITC Part 85% | OWU16: ITC Part 85% | OWW16: ITC Part 85% | OWY16: ITC Part 85% | OXA16: ITC Part 85% | OXC16: ITC Part 85% | OXE16: ITC Part 85% | OXG16: ITC Part 85% | OXI16: ITC Part 85% | OXK16: ITC Part 85% | OXM16: ITC Part 85% | OXO16: ITC Part 85% | OXQ16: ITC Part 85% | OXS16: ITC Part 85% | OXU16: ITC Part 85% | OXW16: ITC Part 85% | OXY16: ITC Part 85% | OYA16: ITC Part 85% | OYC16: ITC Part 85% | OYE16: ITC Part 85% | OYG16: ITC Part 85% | OYI16: ITC Part 85% | OYK16: ITC Part 85% | OYM16: ITC Part 85% | OYO16: ITC Part 85% | OYQ16: ITC Part 85% | OYS16: ITC Part 85% | OYU16: ITC Part 85% | OYW16: ITC Part 85% | OYY16: ITC Part 85% | OZA16: ITC Part 85% | OZC16: ITC Part 85% | OZE16: ITC Part 85% | OZG16: ITC Part 85% | OZI16: ITC Part 85% | OZK16: ITC Part 85% | OZM16: ITC Part 85% | OZO16: ITC Part 85% | OZQ16: ITC Part 85% | OZS16: ITC Part 85% | OZU16: ITC Part 85% | OZW16: ITC Part 85% | OZY16: ITC Part 85% | PAA16: ITC Part 85% | PAC16: ITC Part 85% | PAE16: ITC Part 85% | PAG16: ITC Part 85% | PAI16: ITC Part 85% | PAK16: ITC Part 85% | PAM16: ITC Part 85% | PAO16: ITC Part 85% | PAQ16: ITC Part 85% | PAS16: ITC Part 85% | PAU16: ITC Part 85% | PAW16: ITC Part 85% | PAY16: ITC Part 85% | PBA16: ITC Part 85% | PBC16: ITC Part 85% | PBE16: ITC Part 85% | PBG16: ITC Part 85% | PBI16: ITC Part 85% | PBK16: ITC Part 85% | PBM16: ITC Part 85% | PBO16: ITC Part 85% | PBQ16: ITC Part 85% | PBS16: ITC Part 85% | PBU16: ITC Part 85% | PBW16: ITC Part 85% | PBY16: ITC Part 85% | PCA16: ITC Part 85% | PCC16: ITC Part 85% | PCE16: ITC Part 85% | PCG16: ITC Part 85% | PCI16: ITC Part 85% | PCK16: ITC Part 85% | PCM16: ITC Part 85% | PCO16: ITC Part 85% | PCQ16: ITC Part 85% | PCS16: ITC Part 85% | PCU16: ITC Part 85% | PCW16: ITC Part 85% | PCY16: ITC Part 85% | PDA16: ITC Part 85% | PDC16: ITC Part 85% | PDE16: ITC Part 85% | PDG16: ITC Part 85% | PDI16: ITC Part 85% | PDK16: ITC Part 85% | PDM16: ITC Part 85% | PDO16: ITC Part 85% | PDQ16: ITC Part 85% | PDS16: ITC Part 85% | PDU16: ITC Part 85% | PDW16: ITC Part 85% | PDY16: ITC Part 85% | PEA16: ITC Part 85% | PEC16: ITC Part 85% | PEE16: ITC Part 85% | PEG16: ITC Part 85% | PEI16: ITC Part 85% | PEK16: ITC Part 85% | PEM16: ITC Part 85% | PEO16: ITC Part 85% | PEQ16: ITC Part 85% | PES16: ITC Part 85% | PEU16: ITC Part 85% | PEW16: ITC Part 85% | PEY16: ITC Part 85% | PFA16: ITC Part 85% | PFC16: ITC Part 85% | PFE16: ITC Part 85% | PFG16: ITC Part 85% | PFI16: ITC Part 85% | PFK16: ITC Part 85% | PFM16: ITC Part 85% | PFO16: ITC Part 85% | PFQ16: ITC Part 85% | PFS16: ITC Part 85% | PFU16: ITC Part 85% | PFW16: ITC Part 85% | PFY16: ITC Part 85% | PGA16: ITC Part 85% | PGC16: ITC Part 85% | PGE16: ITC Part 85% | PGG16: ITC Part 85% | PGI16: ITC Part 85% | PGK16: ITC Part 85% | PGM16: ITC Part 85% | PGO16: ITC Part 85% | PGQ16: ITC Part 85% | PGS16: ITC Part 85% | PGU16: ITC Part 85% | PGW16: ITC Part 85% | PGY16: ITC Part 85% | PHA16: ITC Part 85% | PHC16: ITC Part 85% | PHE16: ITC Part 85% | PHG16: ITC Part 85% | PHI16: ITC Part 85% | PHK16: ITC Part 85% | PHM16: ITC Part 85% | PHO16: ITC Part 85% | PHQ16: ITC Part 85% | PHS16: ITC Part 85% | PHU16: ITC Part 85% | PHW16: ITC Part 85% | PHY16: ITC Part 85% | PIA16: ITC Part 85% | PIC16: ITC Part 85% | PIE16: ITC Part 85% | PIG16: ITC Part 85% | PII16: ITC Part 85% | PIK16: ITC Part 85% | PIM16: ITC Part 85% | PIO16: ITC Part 85% | PIQ16: ITC Part 85% | PIS16: ITC Part 85% | PIU16: ITC Part 85% | PIW16: ITC Part 85% | PIY16: ITC Part 85% | PJA16: ITC Part 85% | PJC16: ITC Part 85% | PJE16: ITC Part 85% | PJG16: ITC Part 85% | PJI16: ITC Part 85% | PJK16: ITC Part 85% | PJM16: ITC Part 85% | PJO16: ITC Part 85% | PJQ16: ITC Part 85% | PJS16: ITC Part 85% | PJU16: ITC Part 85% | PJW16: ITC Part 85% | PJY16: ITC Part 85% | PKA16: ITC Part 85% | PKC16: ITC Part 85% | PKE16: ITC Part 85% | PKG16: ITC Part 85% | PKI16: ITC Part 85% | PKK16: ITC Part 85% | PKM16: ITC Part 85% | PKO16: ITC Part 85% | PKQ16: ITC Part 85% | PKS16: ITC Part 85% | PKU16: ITC Part 85% | PKW16: ITC Part 85% | PKY16: ITC Part 85% | PLA16: ITC Part 85% | PLC16: ITC Part 85% | PLE16: ITC Part 85% | PLG16: ITC Part 85% | PLI16: ITC Part 85% | PLK16: ITC Part 85% | PLM16: ITC Part 85% | PLO16: ITC Part 85% | PLQ16: ITC Part 85% | PLS16: ITC Part 85% | PLU16: ITC Part 85% | PLW16: ITC Part 85% | PLY16: ITC Part 85% | PMA16: ITC Part 85% | PMC16: ITC Part 85% | PME16: ITC Part 85% | PMG16: ITC Part 85% | PMI16: ITC Part 85% | PMK16: ITC Part 85% | PMM16: ITC Part 85% | PMO16: ITC Part 85% | PMQ16: ITC Part 85% | PMS16: ITC Part 85% | PMU16: ITC Part 85% | PMW16: ITC Part 85% | PMY16: ITC Part 85% | PNA16: ITC Part 85% | PNC16: ITC Part 85% | PNE16: ITC Part 85% | PNG16: ITC Part 85% | PNI16: ITC Part 85% | PNK16: ITC Part 85% | PNM16: ITC Part 85% | PNO16: ITC Part 85% | PNQ16: ITC Part 85% | PNS16: ITC Part 85% | PNU16: ITC Part 85% | PNW16: ITC Part 85% | PNY16: ITC Part 85% | POA16: ITC Part 85% | POC16: ITC Part 85% | POE16: ITC Part 85% | POG16: ITC Part 85% | POI16: ITC Part 85% | POK16: ITC Part 85% | POM16: ITC Part 85% | POO16: ITC Part 85% | POQ16: ITC Part 85% | POS16: ITC Part 85% | POU16: ITC Part 85% | POW16: ITC Part 85% | POY16: ITC Part 85% | PPA16: ITC Part 85% | PPC16: ITC Part 85% | PPE16: ITC Part 85% | PPG16: ITC Part 85% | PPI16: ITC Part 85% | PPK16: ITC Part 85% | PPM16: ITC Part 85% | PPO16: ITC Part 85% | PPQ16: ITC Part 85% | PPS16: ITC Part 85% | PPU16: ITC Part 85% | PPW16: ITC Part 85% | PPY16: ITC Part 85% | PQA16: ITC Part 85% | PQC16: ITC Part 85% | PQE16: ITC Part 85% | PQG16: ITC Part 85% | PQI16: ITC Part 85% | PQK16: ITC Part 85% | PQM16: ITC Part 85% | PQO16: ITC Part 85% | PQQ16: ITC Part 85% | PQS16: ITC Part 85% | PQU16: ITC Part 85% | PQW16: ITC Part 85% | PQY16: ITC Part 85% | PRA16: ITC Part 85% | PRC16: ITC Part 85% | PRE16: ITC Part 85% | PRG16: ITC Part 85% | PRI16: ITC Part 85% | PRK16: ITC Part 85% | PRM16: ITC Part 85% | PRO16: ITC Part 85% | PRQ16: ITC Part 85% | PRS16: ITC Part 85% | PRU16: ITC Part 85% | PRW16: ITC Part 85% | PRY16: ITC Part 85% | PSA16: ITC Part 85% | PSC16: ITC Part 85% | PSE16: ITC Part 85% | PSG16: ITC Part 85% | PSI16: ITC Part 85% | PSK16: ITC Part 85% | PSM16: ITC Part 85% | PSO16: ITC Part 85% | PSQ16: ITC Part 85% | PSS16: ITC Part 85% | PSU16: ITC Part 85% | PSW16: ITC Part 85% | PSY16: ITC Part 85% | PTA16: ITC Part 85% | PTC16: ITC Part 85% | PTE16: ITC Part 85% | PTG16: ITC Part 85% | PTI16: ITC Part 85% | PTK16: ITC Part 85% | PTM16: ITC Part 85% | PTO16: ITC Part 85% | PTQ16: ITC Part 85% | PTS16: ITC Part 85% | PTU16: ITC Part 85% | PTW16: ITC Part 85% | PTY16: ITC Part 85% | PUA16: ITC Part 85% | PUC16: ITC Part 85% | PUE16: ITC Part 85% | PUG16: ITC Part 85% | PUI16: ITC Part 85% | PUK16: ITC Part 85% | PUM16: ITC Part 85% | PUO16: ITC Part 85% | PUQ16: ITC Part 85% | PUS16: ITC Part 85% | PUU16: ITC Part 85% | PUW16: ITC Part 85% | PUY16: ITC Part 85% | PVA16: ITC Part 85% | PVC16: ITC Part 85% | PVE16: ITC Part 85% | PVG16: ITC Part 85% | PVI16: ITC Part 85% | PVK16: ITC Part 85% | PVM16: ITC Part 85% | PVO16: ITC Part 85% | PVQ16: ITC Part 85% | PVS16: ITC Part 85% | PVU16: ITC Part 85% | PVW16: ITC Part 85% | PVY16: ITC Part 85% | PWA16: ITC Part 85% | PWC16: ITC Part 85% | PWE16: ITC Part 85% | PWG16: ITC Part 85% | PWI16: ITC Part 85% | PWK16: ITC Part 85% | PWM16: ITC Part 85% | PWO16: ITC Part 85% | PWQ16: ITC Part 85% | PWS16: ITC Part 85% | PWU16: ITC Part 85% | PWW16: ITC Part 85% | PWY16: ITC Part 85% | PXA16: ITC Part 85% | PXC16: ITC Part 85% | PXE16: ITC Part 85% | PXG16: ITC Part 85% | PXI16: ITC Part 85% | PXK16: ITC Part 85% | PXM16: ITC Part 85% | PXO16: ITC Part 85% | PXQ16: ITC Part 85% | PXS16: ITC Part 85% | PXU16: ITC Part 85% | PXW16: ITC Part 85% | PXY16: ITC Part 85% | PYA16: ITC Part 85% | PYC16: ITC Part 85% | PYE16: ITC Part 85% | PYG16: ITC Part 85% | PYI16: ITC Part 85% | PYK16: ITC Part 85% | PYM16: ITC Part 85% | PYO16: ITC Part 85% | PYQ16: ITC Part 85% | PYS16: ITC Part 85% | PYU16: ITC Part 85% | PYW16: ITC Part 85% | PYY16: ITC Part 85% | PZA16: ITC Part 85% | PZC16: ITC Part 85% | PZE16: ITC Part 85% | PZG16: ITC Part 85% | PZI16: ITC Part 85% | PZK16: ITC Part 85% | PZM16: ITC Part 85% | PZO16: ITC Part 85% | PZQ16: ITC Part 85% | PZS16: ITC Part 85% | PZU16: ITC Part 85% | PZW16: ITC Part 85% | PZY16: ITC Part 85% | QAA16: ITC Part 85% | QAC16: ITC Part 85% | QAE16: ITC Part 85% | QAG16: ITC Part 85% | QAI16: ITC Part 85% | QAK16: ITC Part 85% | QAM16: ITC Part 85% | QAO16: ITC Part 85% | QAQ16: ITC Part 85% | QAS16: ITC Part 85% | QAU16: ITC Part 85% | QAW16: ITC Part 85% | QAY16: ITC Part 85% | QBA16: ITC Part 85% | QBC16: ITC Part 85% | QBE16: ITC Part 85% | QBG16: ITC Part 85% | QBI16: ITC Part 85% | QBK16: ITC Part 85% | QBM16: ITC Part 85% | QBO16: ITC Part 85% | QBQ16: ITC Part 85% | QBS16: ITC Part 85% | QBU16: ITC Part 85% | QBW16: ITC Part 85% | QBY16: ITC Part 85% | QCA16: ITC Part 85% | QCC16: ITC Part 85% | QCE16: ITC Part 85% | QCG16: ITC Part 85% | QCI16: ITC Part 85% | QCK16: ITC Part 85% | QCM16: ITC Part 85% | QCO16: ITC Part 85% | QCQ16: ITC Part 85% | QCS16: ITC Part 85% | QCU16: ITC Part 85% | QCW16: ITC Part 85% | QCY16: ITC Part 85% | QDA16: ITC Part 85% | QDC16: ITC Part 85% | QDE16: ITC Part 85% | QDG16: ITC Part 85% | QDI16: ITC Part 85% | QDK16: ITC Part 85% | QDM16: ITC Part 85% | QDO16: ITC Part 85% | QDQ16: ITC Part 85% | QDS16: ITC Part 85% | QDU16: ITC Part 85% | QDW16: ITC Part 85% | QDY16: ITC Part 85% | QEA16: ITC Part 85% | QEC16: ITC Part 85% | QEE16: ITC Part 85% | QEG16: ITC Part 85% | QEI16: ITC Part 85% | QEK16: ITC Part 85% | QEM16: ITC Part 85% | QEO16: ITC Part 85% | QEQ16: ITC Part 85% | QES16: ITC Part 85% | QEU16: ITC Part 85% | QEW16: ITC Part 85% | QEY16: ITC Part 85% | QFA16: ITC Part 85% | QFC16: ITC Part 85% | QFE16: ITC Part 85% | QFG16: ITC Part 85% | QFI16: ITC Part 85% | QFK16: ITC Part 85% | QFM16: ITC Part 85% | QFO16: ITC Part 85% | QFQ16: ITC Part 85% | QFS16: ITC Part 85% | QFU16: ITC Part 85% | QFW16: ITC Part 85% | QFY16: ITC Part 85% | QGA16: ITC Part 85% | QGC16: ITC Part 85% | QGE16: ITC Part 85% | QGG16: ITC Part 85% | QGI16: ITC Part 85% | QGK16: ITC Part 85% | QGM16: ITC Part 85% | QGO16: ITC Part 85% | QGQ16: ITC Part 85% | QGS16: ITC Part 85% | QGU16: ITC Part 85% | QGW16: ITC Part 85% | QGY16: ITC Part 85% | QHA16: ITC Part 85% | QHC16: ITC Part 85% | QHE16: ITC Part 85% | QHG16: ITC Part 85% | QHI16: ITC Part 85% | QHK16: ITC Part 85% | QHM16: ITC Part 85% | QHO16: ITC Part 85% | QHQ16: ITC Part 85% | QHS16: ITC Part 85% | QHU16: ITC Part 85% | QHW16: ITC Part 85% | QHY16: ITC Part 85% | QIA16: ITC Part 85% | QIC16: ITC Part 85% | QIE16: ITC Part 85% | QIG16: ITC Part 85% | QII16: ITC Part 85% | QIK16: ITC Part 85% | QIM16: ITC Part 85% | QIO16: ITC Part 85% | QIQ16: ITC Part 85% | QIS16: ITC Part 85% | QIU16: ITC Part 85% | QIW16: ITC Part 85% | QIY16: ITC Part 85% | QJA16: ITC Part 85% | QJC16: ITC Part 85% | QJE16: ITC Part 85% | QJG16: ITC Part 85% | QJI16: ITC Part 85% | QJK16: ITC Part 85% | QJM16: ITC Part 85% | QJO16: ITC Part 85% | QJQ16: ITC Part 85% | QJS16: ITC Part 85% | QJU16: ITC Part 85% | QJW16: ITC Part 85% | QJY16: ITC Part 85% | QKA16: ITC Part 85% | QKC16: ITC Part 85% | QKE16: ITC Part 85% | QKG16: ITC Part 85% | QKI16: ITC Part 85% | QKK16: ITC Part 85% | QKM16: ITC Part 85% | QKO16: ITC Part 85% | QKQ16: ITC Part 85% | QKS16: ITC Part 85% | QKU16: ITC Part 85% | QKW16: ITC Part 85% | QKY16: ITC Part 85% | QLA16: ITC Part 85% | QLC16: ITC Part 85% | QLE16: ITC Part 85% | QLG16: ITC Part 85% | QLI16: ITC Part 85% | QLK16: ITC Part 85% | QLM16: ITC Part 85% | QLO16: ITC Part 85% | QLQ16: ITC Part 85% | QLS16: ITC Part 85% | QLU16: ITC Part 85% | QLW16: ITC Part 85% | QLY16: ITC Part 85% | QMA16: ITC Part 85% | QMC16: ITC Part 85% | QME16: ITC Part 85% | QMG16: ITC Part 85% | QMI16: ITC Part 85% | QMK16: ITC Part 85% | QMM16: ITC Part 85% | QMO16: ITC Part 85% | QMQ16: ITC Part 85% | QMS16: ITC Part 85% | QMU16: ITC Part 85% | QMW16: ITC Part 85% | QMY16: ITC Part 85% | QNA16: ITC Part 85% | QNC16: ITC Part 85% | QNE16: ITC Part 85% | QNG16: ITC Part 85% | QNI16: ITC Part 85% | QNK16: ITC Part 85% | QNM16: ITC Part 85% | QNO16: ITC Part 85% | QNQ16: ITC Part 85% | QNS16: ITC Part 85% | QNU16: ITC Part 85% | QNW16: ITC Part 85% | QNY16: ITC Part 85% | QOA16: ITC Part 85% | QOC16: ITC Part 85% | QOE16: ITC Part 85% | QOG16: ITC Part 85% | QOI16: ITC Part 85% | QOK16: ITC Part 85% | QOM16: ITC Part 85% | QOO16: ITC Part 85% | QOQ16: ITC Part 85% | QOS16: ITC Part 85% | QOU16: ITC Part 85% | QOW16: ITC Part 85% | QOY16: ITC Part 85% | QPA16: ITC Part 85% | QPC16: ITC Part 85% | QPE16: ITC Part 85% | QPG16: ITC Part 85% | QPI16: ITC Part 85% | QPK16: ITC Part 85% | QPM16: ITC Part 85% | QPO16: ITC Part 85% | QPQ16: ITC Part 85% | QPS16: ITC Part 85% | QPU16: ITC Part 85% | QPW16: ITC Part 85% | QPY16: ITC Part 85% | QQA16: ITC Part 85% | QQC16: ITC Part 85% | QQE16: ITC Part 85% | QQG16: ITC Part 85% | QQI16: ITC Part 85% | QQK16: ITC Part 85% | QQM16: ITC Part 85% | QQO16: ITC Part 85% | QQQ16: ITC Part 85% | QQS16: ITC Part 85% | QQU16: ITC Part 85% | QQW16: ITC Part 85% | QQY16: ITC Part 85% | QRA16: ITC Part 85% | QRC16: ITC Part 85% | QRE16: ITC Part 85% | QRG16: ITC Part 85% | QRI16: ITC Part 85% | QRK16: ITC Part 85% | QRM16: ITC Part 85% | QRO16: ITC Part 85% | QRQ16: ITC Part 85% | QRS16: ITC Part 85% | QRU16: ITC Part 85% | QRW16: ITC Part 85% | QRY16: ITC Part 85% | QSA16: ITC Part 85% | QSC16: ITC Part 85% | QSE16: ITC Part 85% | QSG16: ITC Part 85% | QSI16: ITC Part 85% | QSK16: ITC Part 85% | QSM16: ITC Part 85% | QSO16: ITC Part 85% | QSQ16: ITC Part 85% | QSS16: ITC Part 85% | QSU16: ITC Part 85% | QSW16: ITC Part 85% | QSY16: ITC Part 85% | QTA16: ITC Part 85% | QTC16: ITC Part 85% | QTE16: ITC Part 85% | QTG16: ITC Part 85% | QTI16: ITC Part 85% | QTK16: ITC Part 85% | QTM16: ITC Part 85% | QTO16: ITC Part 85% | QTQ16: ITC Part 85% | QTS16: ITC Part 85% | QTU16: ITC Part 85% | QTW16: ITC Part 85% | QTY16: ITC Part 85% | QUA16: ITC Part 85% | QUC16: ITC Part 85% | QUE16: ITC Part 85% | QUG16: ITC Part 85% | QUI16: ITC Part 85% | QUK16: ITC Part 85% | QUM16: ITC Part 85% | QUO16: ITC Part 85% | QUQ16: ITC Part 85% | QUS16: ITC Part 85% | QUU16: ITC Part 85% | QUW16: ITC Part 85% | QUY16: ITC Part 85% | QVA16: ITC Part 85% | QVC16: ITC Part 85% | QVE16: ITC Part 85% | QVG16: ITC Part 85% | QVI16: ITC Part 85% | QVK16: ITC Part 85% | QVM16: ITC Part 85% | QVO16: ITC Part 85% | QVQ16: ITC Part 85% | QVS16: ITC Part 85% | QVU16: ITC Part 85% | QVW16: ITC Part 85% | QVY16: ITC Part 85% | QWA16: ITC Part 85% | QWC16: ITC Part 85% | QWE16: ITC Part 85% | QWG16: ITC Part 85% | QWI16: ITC Part 85% | QWK16: ITC Part 85% | QWM16: ITC Part 85% | QWO16: ITC Part 85% | QWQ16: ITC Part 85% | QWS16: ITC Part 85% | QWU16: ITC Part 85% | QWW16: ITC Part 85% | QWY16: ITC Part 85% | QXA16: ITC Part 85% | QXC16: ITC Part 85% | QXE16: ITC Part 85% | QXG16: ITC Part 85% | QXI16: ITC Part 85% | QXK16: ITC Part 85% | QXM16: ITC Part 85% | QXO16: ITC Part 85% | QXQ16: ITC Part 85% | QXS16: ITC Part 85% | QXU16: ITC Part 85% | QXW16: ITC Part 85% | QXY16: ITC Part 85% | QYA16: ITC Part 85% | QYC16: ITC Part 85% | QYE16: ITC Part 85% | QYG16: ITC Part 85% | QYI16: ITC Part 85% | QYK16: ITC Part 85% | QYM16: ITC Part 85% | QYO16: ITC Part 85% | QYQ16: ITC Part 85% | QYS16: ITC Part 85% | QYU16: ITC Part 85% | QYW16: ITC Part 85% | QYY16: ITC Part 85% | QZA16: ITC Part 85% | QZC16: ITC Part 85% | QZE16: ITC Part 85% | QZG16: ITC Part 85% | QZI16: ITC Part 85% | QZK16: ITC Part 85% | QZM16: ITC Part 85% | QZO16: ITC Part 85% | QZQ16: ITC Part 85% | QZS16: ITC Part 85% | QZU16: ITC Part 85% | QZW16: ITC Part 85% | QZY16: ITC Part 85% | RAA16: ITC Part 85% | RAC16: ITC Part 85% | RAE16: ITC Part 85% | RAG16: ITC Part 85% | RAI16: ITC Part 85% | RAK16: ITC Part 85% | RAM16: ITC Part 85% | RAO16: ITC Part 85% | RAQ16: ITC Part 85% | RAS16: ITC Part 85% | RAU16: ITC Part 85% | RAW16: ITC Part 85% | RAY16: ITC Part 85% | RBA16: ITC Part 85% | RBC16: ITC Part 85% | RBE16: ITC Part 85% | RBG16: ITC Part 85% | RBI16: ITC Part 85% | RBK16: ITC Part 85% | RBM16: ITC Part 85% | RBO16: ITC Part 85% | RBQ16: ITC Part 85% | RBS16: ITC Part 85% | RBU16: ITC Part 85% | RBW16: ITC Part 85% | RBY16: ITC Part 85% | RCA16: ITC Part 85% | RCC16: ITC Part 85% | RCE16: ITC Part 85% | RCG16: ITC Part 85% | RCI16: ITC Part 85% | RCK16: ITC Part 85% | RCM16: ITC Part 85% | RCO16: ITC Part 85% | RCQ16: ITC Part 85% | RCS16: ITC Part 85% | RCU16: ITC Part 85% | RCW16: ITC Part 85% | RCY16: ITC Part 85% | RDA16: ITC Part 85% | RDC16: ITC Part 85% | RDE16: ITC Part 85% | RDG16: ITC Part 85% | RDI16: ITC Part 85% | RDK16: ITC Part 85% | RDM16: ITC Part 85% | RDO16: ITC Part 85% | RDQ16: ITC Part 85% | RDS16: ITC Part 85% | RDU16: ITC Part 85% | RDW16: ITC Part 85% | RDY16: ITC Part 85% | REA16: ITC Part 85% | REC16: ITC Part 85% | REE16: ITC Part 85% | REG16: ITC Part 85% | REI16: ITC Part 85% | REK16: ITC Part 85% | REM16: ITC Part 85% | REO16: ITC Part 85% | REQ16: ITC Part 85% | RES16: ITC Part 85% | REU16: ITC Part 85% | REW16: ITC Part 85% | REY16: ITC Part 85% | RFA16: ITC Part 85% | RFC16: ITC Part 85% | RFE16: ITC Part 85% | RFG16: ITC Part 85% | RFI16: ITC Part 85% | RFK16: ITC Part 85% | RFM16: ITC Part 85% | RFO16: ITC Part 85% | RFQ16: ITC Part 85% | RFS16: ITC Part 85% | RFU16: ITC Part 85% | RFW16: ITC Part 85% | RFY16: ITC Part 85% | RGA16: ITC Part 85% | RGC16: ITC Part 85% | RGE16: ITC Part 85% | RGG16: ITC Part 85% | RGI16: ITC Part 85% | RGK16: ITC Part 85% | RGM16: ITC Part 85% | RGO16: ITC Part 85% | RGQ16: ITC Part 85% | RGS16: ITC Part 85% | RGU16: ITC Part 85% | RGW16: ITC Part 85% | RGY16: ITC Part 85% | RHA16: ITC Part 85% | RHC16: ITC Part 85% | RHE16: ITC Part 85% | RHG16: ITC Part 85% | RHI16: ITC Part 85% | RHK16: ITC Part 85% | RHM16: ITC Part 85% | RHO16: ITC Part 85% | RHQ16: ITC Part 85% | RHS16: ITC Part 85% | RHU16: ITC Part 85% | RHW16: ITC Part 85% | RHY16: ITC Part 85% | RIA16: ITC Part 85% | RIC16: ITC Part 85% | RIE16: ITC Part 85% | RIG16: ITC Part 85% | RII16: ITC Part 85% | RIK16: ITC Part 85% | RIM16: ITC Part 85% | RIO16: ITC Part 85% | RIQ16: ITC Part 85% | RIS16: ITC Part 85% | RIU16: ITC Part 85% | RIW16: ITC Part 85% | RIY16: ITC Part 85% | RJA16: ITC Part 85% | RJC16: ITC Part 85% | RJE16: ITC Part 85% | RJG16: ITC Part 85% | RJI16: ITC Part 85% | RJK16: ITC Part 85% | RJM16: ITC Part 85% | RJO16: ITC Part 85% | RJQ16: ITC Part 85% | RJS16: ITC Part 85% | RJU16: ITC Part 85% | RJW16: ITC Part 85% | RJY16: ITC Part 85% | RKA16: ITC Part 85% | RKC16: ITC Part 85% | RKE16: ITC Part 85% | RKG16: ITC Part 85% | RKI16: ITC Part 85% | RKK16: ITC Part 85% | RKM16: ITC Part 85% | RKO16: ITC Part 85% | RKQ16: ITC Part 85% | RKS16: ITC Part 85% | RKU16: ITC Part 85% | RKW16: ITC Part 85% | RKY16: ITC Part 85% | RLA16: ITC Part 85% | RLC16: ITC Part 85% | RLE16: ITC Part 85% | RLG16: ITC Part 85% | RLI16: ITC Part 85% | RLK16: ITC Part 85% | RLM16: ITC Part 85% | RLO16: ITC Part 85% | RLQ16: ITC Part 85% | RLS16: ITC Part 85% | RLU16: ITC Part 85% | RLW16: ITC Part 85% | RLY16: ITC Part 85% | RMA16: ITC Part 85% | RMC16: ITC Part 85% | RME16: ITC Part 85% | RMG16: ITC Part 85% | RMI16: ITC Part 85% | RMK16: ITC Part 85% | RMM16: ITC Part 85% | RMO16: ITC Part 85% | RMQ16: ITC Part 85% | RMS16: ITC Part 85% | RMU16: ITC Part 85% | RMW16: ITC Part 85% | RMY16: ITC Part 85% | RNA16: ITC Part 85% | RNC16: ITC Part 85% | RNE16: ITC Part 85% | RNG16: ITC Part 85% | RNI16: ITC Part 85% | RNK16: ITC Part 85% | RNM16: ITC Part 85% | RNO16: ITC Part 85% | RNQ16: ITC Part 85% | RNS16: ITC Part 85% | RNU16: ITC Part 85% | RNW16: ITC Part 85% | RNY16: ITC Part 85% | ROA16: ITC Part 85% | ROC16: ITC Part 85% | ROE16: ITC Part 85% | ROG16: ITC Part 85% | ROI16: ITC Part 85% | ROK16: ITC Part 85% | ROM16: ITC Part 85% | ROO16: ITC Part 85% | ROQ16: ITC Part 85% | ROS16: ITC Part 85% | ROU16: ITC Part 85% | ROW16: ITC Part 85% | ROY16: ITC Part 85% | RPA16: ITC Part 85% | RPC16: ITC Part 85% | RPE16: ITC Part 85% | RPG16: ITC Part 85% | RPI16: ITC Part 85% | RPK16: ITC Part 85% | RPM16: ITC Part 85% | RPO16: ITC Part 85% | RPQ16: ITC Part 85% | RPS16: ITC Part 85% | RPU16: ITC Part 85% | RPW16: ITC Part 85% | RPY16: ITC Part 85% | RQA16: ITC Part 85% | RQC16: ITC Part 85% | RQE16: ITC Part 85% | RQG16: ITC Part 85% | RQI16: ITC Part 85% | RQK16: ITC Part 85% | RQM16: ITC Part 85% | RQO16: ITC Part 85% | RQQ16: ITC Part 85% | RQS16: ITC Part 85% | RQU16: ITC Part 85% | RQW16: ITC Part 85% | RQY16: ITC Part 85% | RRA16: ITC Part 85% | RRC16: ITC Part 85% | RRE16: ITC Part 85% | RRG16: ITC Part 85% | RRI16: ITC Part 85% | RRK16: ITC Part 85% | RRM16: ITC Part 85% | RRO16: ITC Part 85% | RRQ16: ITC Part 85% | RRS16: ITC Part 85% | RRU16: ITC Part 85% | RRW16: ITC Part 85% | RRY16: ITC Part 85% | RSA16: ITC Part 85% | RSC16: ITC Part 85% | RSE16: ITC Part 85% | RSG16: ITC Part 85% | RSI16: ITC Part 85% | RSK16: ITC Part 85% | RSM16: ITC Part 85% | RSO16: ITC Part 85% | RSQ16: ITC Part 85% | RSS16: ITC Part 85% | RSU16: ITC Part 85% | RSW16: ITC Part 85% | RSY16: ITC Part 85% | RTA16: ITC Part 85% | RTC16: ITC Part 85% | RTE16: ITC Part 85% | RTG16: ITC Part 85% | RTI16: ITC Part 85% | RTK16: ITC Part 85% | RTM16: ITC Part 85% | RTO16: ITC Part 85% | RTQ16: ITC Part 85% | RTS16: ITC Part 85% | RTU16: ITC Part 85% | RTW16: ITC Part 85% | RTY16: ITC Part 85% | RUA16: ITC Part 85% | RUC16: ITC Part 85% | RUE16: ITC Part 85% | RUG16: ITC Part 85% | RUI16: ITC Part 85% | RUK16: ITC Part 85% | RUM16: ITC Part 85% | RUO16: ITC Part 85% | RUQ16: ITC Part 85% | RUS16: ITC Part 85% | RUU16: ITC Part 85% | RUW16: ITC Part 85% | RUY16: ITC Part 85% | RVA16: ITC Part 85% | RVC16: ITC Part 85% | RVE16: ITC Part 85% | RVG16: ITC Part 85% | RVI16: ITC Part 85% | RVK16: ITC Part 85% | RVM16: ITC Part 85% | RVO16: ITC Part 85% | RVQ16: ITC Part 85% | RVS16: ITC Part 85% | RVU16: ITC Part 85% | RVW16: ITC Part 85% | RVY16: ITC Part 85% | RWA16: ITC Part 85% | RWC16: ITC Part 85% | RWE16: ITC Part 85% | RWG16: ITC Part 85% | RWI16: ITC Part 85% | RWK16: ITC Part 85% | RWM16: ITC Part 85% | RWO16: ITC Part 85% | RWQ16: ITC Part 85% | RWS16: ITC Part 85% | RWU16: ITC Part 85% | RWW16: ITC Part 85% | RWY16: ITC Part 85% | RXA16: ITC Part 85% | RXC16: ITC Part 85% | RXE16: ITC Part 85% | RXG16: ITC Part 85% | RXI16: ITC Part 85% | RXK16: ITC Part 85% | RXM16: ITC Part 85% | RXO16: ITC Part 85% | RXQ16: ITC Part 85% | RXS16: ITC Part 85% | RXU16: ITC Part 85% | RXW16: ITC Part 85% | RXY16: ITC Part 85% | RYA16: ITC Part 85% | RYC16: ITC Part 85% | RYE16: ITC Part 85% | RYG16: ITC Part 85% | RYI16: ITC Part 85% | RYK16: ITC Part 85% | RYM16: ITC Part 85% | RYO16: ITC Part 85% | RYQ16: ITC Part 85% | RYS16: ITC Part 85% | RYU16: ITC Part 85% | RYW16: ITC Part 85% | RYY16: ITC Part 85% | RZA16: ITC Part 85% | RZC16: ITC Part 85% | RZE16: ITC Part 85% | RZG16: ITC Part 85% | RZI16: ITC Part 85% | RZK16: ITC Part 85% | RZM16: ITC Part 85% | RZO16: ITC Part 85% | RZQ16: ITC Part 85% | RZS16: ITC Part 85% | RZU16: ITC Part 85% | RZW16: ITC Part 85% | RZY16: ITC Part 85% | SAA16: ITC Part 85% | SAC16: ITC Part 85% | SAE16: ITC Part 85% | SAG16: ITC Part 85% | SAI16: ITC Part 85% | SAK16: ITC Part 85% | SAM16: ITC Part 85% | SAO16: ITC Part 85% | SAQ16: ITC Part 85% | SAS16: ITC Part 85% | SAU16: ITC Part 85% | SAW16: ITC Part 85% | SAY16: ITC Part 85% | SBA16: ITC Part 85% | SBC16: ITC Part 85% | SBE16: ITC Part 85% | SBG16: ITC Part 85% | SBI16: ITC Part 85% | SBK16: ITC Part 85% | SBM16: ITC Part 85% | SBO16: ITC Part 85% | SBQ16: ITC Part 85% | SBS16: ITC Part 85% | SBU16: ITC Part 85% | SBW16: ITC Part 85% | SBY16: ITC Part 85% | SCA16: ITC Part 85% | SCC16: ITC Part 85% | SCE16: ITC Part 85% | SCG16: ITC Part 85% | SCI16: ITC Part 85% | SCK16: ITC Part 85% | SCM16: ITC Part 85% | SCO16: ITC Part 85% | SCQ16: ITC Part 85% | SCS16: ITC Part 85% | SCU16: ITC Part 85% | SCW16: ITC Part 85% | SCY16: ITC Part 85% | SDA16: ITC Part 85% | SDC16: ITC Part 85% | SDE16: ITC Part 85% | SDG16: ITC Part 85% | SDI16: ITC Part 85% | SDK16: ITC Part 85% | SDM16: ITC Part 85% | SDO16: ITC Part 85% | SDQ16: ITC Part 85% | SDS16: ITC Part 85% | SDU16: ITC Part 85% | SDW16: ITC Part 85% | SDY16: ITC Part 85% | SEA16: ITC Part 85% | SEC16: ITC Part 85% | SEE16: ITC Part 85% | SEG16: ITC Part 85% | SEI16: ITC Part 85% | SEK16: ITC Part 85% | SEM16: ITC Part 85% | SEO16: ITC Part 85% | SEQ16: ITC Part 85% | SES16: ITC Part 85% | SEU16: ITC Part 85% | SEW16: ITC Part 85% | SEY16: ITC Part 85% | SFA16: ITC Part 85% | SFC16: ITC Part 85% | SFE16: ITC Part 85% | SFG16: ITC Part 85% | SFI16: ITC Part 85% | SFK16: ITC Part 85% | SFM16: ITC Part 85% | SFO16: ITC Part 85% | SFQ16: ITC Part 85% | SFS16: ITC Part 85% | SFU16: ITC Part 85% | SFW16: ITC Part 85% | SFY16: ITC Part 85% | SGA16: ITC Part 85% | SGC16: ITC Part 85% | SGE16: ITC Part 85% | SGG16: ITC Part 85% | SGI16: ITC Part 85% | SGK16: ITC Part 85% | SGM16: ITC Part 85% | SGO16: ITC Part 85% | SGQ16: ITC Part 85% | SGS16: ITC Part 85% | SGU16: ITC Part 85% | SGW16: ITC Part 85% | SGY16: ITC Part 85% | SHA16: ITC Part 85% | SHC16: ITC Part 85% | SHE16: ITC Part 85% | SHG16: ITC Part 85% | SHI16: ITC Part 85% | SHK16: ITC Part 85% | SHM16: ITC Part 85% | SHO16: ITC Part 85% | SHQ16: ITC Part 85% | SHS16: ITC Part 85% | SHU16: ITC Part 85% | SHW16: ITC Part 85% | SHY16: ITC Part 85% | SIA16: ITC Part 85% | SIC16: ITC Part 85% | SIE16: ITC Part 85% | SIG16: ITC Part 85% | SII16: ITC Part 85% | SIK16: ITC Part 85% | SIM16: ITC Part 85% | SIO16: ITC Part 85% | SIQ16: ITC Part 85% | SIS16: ITC Part 85% | SIU16: ITC Part 85% | SIW16: ITC Part 85% | SIY16: ITC Part 85% | SJA16: ITC Part 85% | SJC16: ITC Part 85% | SJE16: ITC Part 85% | SJG16: ITC Part 85% | SJI16: ITC Part 85% | SJK16: ITC Part 85% | SJM16: ITC Part 85% | SJO16: ITC Part 85% | SJQ16: ITC Part 85% | SJS16: ITC Part 85% | SJU16: ITC Part 85% | SJW16: ITC Part 85% | SJY16: ITC Part 85% | SKA16: ITC Part 85% | SKC16: ITC Part 85% | SKE16: ITC Part 85% | SKG16: ITC Part 85% | SKI16: ITC Part 85% | SKK16: ITC Part 85% | SKM16: ITC Part 85% | SKO16: ITC Part 85% | SKQ16: ITC Part 85% | SKS16: ITC Part 85% | SKU16: ITC Part 85% | SKW16: ITC Part 85% | SKY16: ITC Part 85% | SLA16: ITC Part 85% | SLC16: ITC Part 85% | SLE16: ITC Part 85% | SLG16: ITC Part 85% | SLI16: ITC Part 85% | SLK16: ITC Part 85% | SLM16: ITC Part 85% | SLO16: ITC Part 85% | SLQ16: ITC Part 85% | SLS16: ITC Part 85% | SLU16: ITC Part 85% | SLW16: ITC Part 85% | SLY16: ITC Part 85% | SMA16: ITC Part 85% | SMC16: ITC Part 85% | SME16: ITC Part 85% | SMG16: ITC Part 85% | SMI16: ITC Part 85% | SMK16: ITC Part 85% | SMM16: ITC Part 85% | SMO16: ITC Part 85% | SMQ16: ITC Part 85% | SMS16: ITC Part 85% | SMU16: ITC Part 85% | SMW16: ITC Part 85% | SMY16: ITC Part 85% | SNA16: ITC Part 85% | SNC16: ITC Part 85% | SNE16: ITC Part 85% | SNG16: ITC Part 85% | SNI16: ITC Part 85% | SNK16: ITC Part 85% | SNM16: ITC Part 85% | SNO16: ITC Part 85% | SNQ16: ITC Part 85% | SNS16: ITC Part 85% | SNU16: ITC Part 85% | SNW16: ITC Part 85% | SNY16: ITC Part 85% | SOA16: ITC Part 85% | SOC16: ITC Part 85% | SOE16: ITC Part 85% | SOG16: ITC Part 85% | SOI16: ITC Part 85% | SOK16: ITC Part 85% | SOM16: ITC Part 85% | SOO16: ITC Part 85% | SOQ16: ITC Part 85% | SOS16: ITC Part 85% | SOU16: ITC Part 85% | SOW16: ITC Part 85% | SOY16: ITC Part 85% | SPA16: ITC Part 85% | SPC16: ITC Part 85% | SPE16: ITC Part 85% | SPG16: ITC Part 85% | SPI16: ITC Part 85% | SPK16: ITC Part 85% | SPM16: ITC Part 85% | SPO16: ITC Part 85% | SPQ16: ITC Part 85% | SPS16: ITC Part 85% | SPU16: ITC Part 85% | SPW16: ITC Part 85% | SPY16: ITC Part 85% | SQA16: ITC Part 85% | SQC16: ITC Part 85% | SQE16: ITC Part 85% | SQG16: ITC Part 85% | SQI16: ITC Part 85% | SQK16: ITC Part 85% | SQM16: ITC Part 85% | SQO16: ITC Part 85% | SQQ16: ITC Part 85% | SQS16: ITC Part 85% | SQU16: ITC Part 85% | SQW16: ITC Part 85% | SQY16: ITC Part 85% | SRA16: ITC Part 85% | SRC16: ITC Part 85% | SRE16: ITC Part 85% | SRG16: ITC Part 85% | SRI16: ITC Part 85% | SRK16: ITC Part 85% | SRM16: ITC Part 85% | SRO16: ITC Part 85% | SRQ16: ITC Part 85% | SRS16: ITC Part 85% | SRU16: ITC Part 85% | SRW16: ITC Part 85% | SRY16: ITC Part 85% | SSA16: ITC Part 85% | SSC16: ITC Part 85% | SSE16: ITC Part 85% | SSG16: ITC Part 85% | SSI16: ITC Part 85% | SSK16: ITC Part 85% | SSM16: ITC Part 85% | SSO16: ITC Part 85% | SSQ16: ITC Part 85% | SSS16: ITC Part 85% | SSU16: ITC Part 85% | SSW16: ITC Part 85% | SSY16: ITC Part 85% | STA16: ITC Part 85% | STC16: ITC Part 85% | STE16: ITC Part 85% | STG16: ITC Part 85% | STI16: ITC Part 85% | STK16: ITC Part 85% | STM16: ITC Part 85% | STO16: ITC Part 85% | STQ16: ITC Part 85% | STS16: ITC Part 85% | STU16: ITC Part 85% | STW16: ITC Part 85% | STY16: ITC Part 85% | SUA16: ITC Part 85% | SUC16: ITC Part 85% | SUE16: ITC Part 85% | SUG16: ITC Part 85% | SUI16: ITC Part 85% | SUK16: ITC Part 85% | SUM16: ITC Part 85% | SUO16: ITC Part 85% | SUQ16: ITC Part 85% | SUS16: ITC Part 85% | SUU16: ITC Part 85% | SUW16: ITC Part 85% | SUY16: ITC Part 85% | SVA16: ITC Part 85% | SVC16: ITC Part 85% | SVE16: ITC Part 85% | SVG16: ITC Part 85% | SVI16: ITC Part 85% | SVK16: ITC Part 85% | SVM16: ITC Part 85% | SVO16: ITC Part 85% | SVQ16: ITC Part 85% | SVS16: ITC Part 85% | SVU16: ITC Part 85% | SVW16: ITC Part 85% | SVY16: ITC Part 85% | SWA16: ITC Part 85% | SWC16: ITC Part 85% | SWE16: ITC Part 85% | SWG16: ITC Part 85% | SWI16: ITC Part 85% | SWK16: ITC Part 85% | SWM16: ITC Part 85% | SWO16: ITC Part 85% | SWQ16: ITC Part 85% | SWS16: ITC Part 85% | SWU16: ITC Part 85% | SWW16: ITC Part 85% | SWY16: ITC Part 85% | SXA16: ITC Part 85% | SXC16: ITC Part 85% | SXE16: ITC Part 85% | SXG16: ITC Part 85% | SXI16: ITC Part 85% | SXK16: ITC Part 85% | SXM16: ITC Part 85% | SXO16: ITC Part 85% | SXQ16: ITC Part 85% | SXS16: ITC Part 85% | SXU16: ITC Part 85% | SXW16: ITC Part 85% | SXY16: ITC Part 85% | SYA16: ITC Part 85% | SYC16: ITC Part 85% | SYE16: ITC Part 85% | SYG16: ITC Part 85% | SYI16: ITC Part 85% | SYK16: ITC Part 85% | SYM16: ITC Part 85% | SYO16: ITC Part 85% | SYQ16: ITC Part 85% | SYS16: ITC Part 85% | SYU16: ITC Part 85% | SYW16: ITC Part 85% | SYY16: ITC Part 85% | SZA16: ITC Part 85% | SZC16: ITC Part 85% | SZE16: ITC Part 85% | SZG16: ITC Part 85% | SZI16: ITC Part 85% | SZK16: ITC Part 85% | SZM16: ITC Part 85% | SZO16: ITC Part 85% | SZQ16: ITC Part 85% | SZS16: ITC Part 85% | SZU16: ITC Part 85% | SZW16: ITC Part 85% | SZY16: ITC Part 85% | TAA16: ITC Part 85% | TAC16: ITC Part 85% | TAE16: ITC Part 85% | TAG16: ITC Part 85% | TAI16: ITC Part 85% | TAK16: ITC Part 85% | TAM16: ITC Part 85% | TAO16: ITC Part 85% | TAQ16: ITC Part 85% | TAS16: ITC Part 85% | TAU16: ITC Part 85% | TAW16: ITC Part 85% | TAY16: ITC Part 85% | TBA16: ITC Part 85% | TBC16: ITC Part 85% | TBE16: ITC Part 85% | TBG16: ITC Part 85% | TBI16: ITC Part 85% | TBK16: ITC Part 85% | TBM16: ITC Part 85% | TBO16: ITC Part 85% | TBQ16: ITC Part 85% | TBS16: ITC Part 85% | TBU16: ITC Part 85% | TBW16: ITC Part 85% | TBY16: ITC Part 85% | TCA16: ITC Part 85% | TCC16: ITC Part 85% | TCE16: ITC Part 85% | TCG16: ITC Part 85% | TCI16: ITC Part 85% | TCK16: ITC Part 85% | TCM16: ITC Part 85% | TCO16: ITC Part 85% | TCQ16: ITC Part 85% | TCS16: ITC Part 85% | TCU16: ITC Part 85% | TCW16: ITC Part 85% | TCY16: ITC Part 85% | TDA16: ITC Part 85% | TDC16: ITC Part 85% | TDE16: ITC Part 85% | TDG16: ITC Part 85% | TDI16: ITC Part 85% | TDK16: ITC Part 85% | TDM16: ITC Part 85% | TDO16: ITC Part 85% | TDQ16: ITC Part 85% | TDS16: ITC Part 85% | TDU16: ITC Part 85% | TDW16: ITC Part 85% | TDY16: ITC Part 85% | TEA16: ITC Part 85% | TEC16: ITC Part 85% | TEE16: ITC Part 85% | TEG16: ITC Part 85% | TEI16: ITC Part 85% | TEK16: ITC Part 85% | TEM16: ITC Part 85% | TEO16: ITC Part 85% | TEQ16: ITC Part 85% | TES16: ITC Part 85% | TEU16: ITC Part 85% | TEW16: ITC Part 85% | TEY16: ITC Part 85% | TFA16: ITC Part 85% | TFC16: ITC Part 85% | TFE16: ITC Part 85% | TFG16: ITC Part 85% | TFI16: ITC Part 85% | TFK16: ITC Part 85% | TFM16: ITC Part 85% | TFO16: ITC Part 85% | TFQ16: ITC Part 85% | TFS16: ITC Part 85% | TFU16: ITC Part 85% | TFW16: ITC Part 85% | TFY16: ITC Part 85% | TGA16: ITC Part 85% | TGC16: ITC Part 85% | TGE16: ITC Part 85% | TGG16: ITC Part 85% | TGI16: ITC Part 85% | TGK16: ITC Part 85% | TGM16: ITC Part 85% | TGO16: ITC Part 85% | TGQ16: ITC Part 85% | TGS16: ITC Part 85% | TGU16: ITC Part 85% | TGW16: ITC Part 85% | TGY16: ITC Part 85% | THA16: ITC Part 85% | THC16: ITC Part 85% | THE16: ITC Part 85% | THG16: ITC Part 85% | THI16: ITC Part 85% | THK16: ITC Part 85% | THM16: ITC Part 85% | THO16: ITC Part 85% | THQ16: ITC Part 85% | THS16: ITC Part 85% | THU16: ITC Part 85% | THW16: ITC Part 85% | THY16: ITC Part 85% | TIA16: ITC Part 85% | TIC16: ITC Part 85% | TIE16: ITC Part 85% | TIG16: ITC Part 85% | TII16: ITC Part 85% | TIK16: ITC Part 85% | TIM16: ITC Part 85% | TIO16: ITC Part 85% | TIQ16: ITC Part 85% | TIS16: ITC Part 85% | TIU16: ITC Part 85% | TIW16: ITC Part 85% | TIY16: ITC Part 85% | TJA16: ITC Part 85% | TJC16: ITC Part 85% | TJE16: ITC Part 85% | TJG16: ITC Part 85% | TJI16: ITC Part 85% | TJK16: ITC Part 85% | TJM16: ITC Part 85% | TJO16: ITC Part 85% | TJQ16: ITC Part 85% | TJS16: ITC Part 85% | TJU16: ITC Part 85% | TJW16: ITC Part 85% | TJY16: ITC Part 85% | TKA16: ITC Part 85% | TKC16: ITC Part 85% | TKE16: ITC Part 85% | TKG16: ITC Part 85% | TKI16: ITC Part 85% | TKK16: ITC Part 85% | TKM16: ITC Part 85% | TKO16: ITC Part 85% | TKQ16: ITC Part 85% | TKS16: ITC Part 85% | TKU16: ITC Part 85% | TKW16: ITC Part 85% | TKY16: ITC Part 85% | TLA16: ITC Part 85% | TLC16: ITC Part 85% | TLE16: ITC Part 85% | TLG16: ITC Part 85% | TLI16: ITC Part 85% | TLK16: ITC Part 85% | TLM16: ITC Part 85% | TLO16: ITC Part 85% | TLQ16: ITC Part 85% | TLS16: ITC Part 85% | TLU16: ITC Part 85% | TLW16: ITC Part 85% | TLY16: ITC Part 85% | TMA16: ITC Part 85% | TMC16: ITC Part 85% | TME16: ITC Part 85% | TMG16: ITC Part 85% | TMI16: ITC Part 85% | TMK16: ITC Part 85% | TMM16: ITC Part 85% | TMO16: ITC Part 85% | TMQ16: ITC Part 85% | TMS16: ITC Part 85% | TMU16: ITC Part 85% | TMW16: ITC Part 85% | TMY16: ITC Part 85% | TNA16: ITC Part 85% | TNC16: ITC Part 85% | TNE16: ITC Part 85% | TNG16: ITC Part 85% | TNI16: ITC Part 85% | TNK16: ITC Part 85% | TNM16: ITC Part 85% | TNO16: ITC Part 85% | TNQ16: ITC Part 85% | TNS16: ITC Part 85% | TNU16: ITC Part 85% | TNW16: ITC Part 85% | TNY16: ITC Part 85% | TOA16: ITC Part 85% | TOC16: ITC Part 85% | TOE16: ITC Part 85% | TOG16: ITC Part 85% | TOI16: ITC Part 85% | TOK16: ITC Part 85% | TOM16: ITC Part 85% | TOO16: ITC Part 85% | TOQ16: ITC Part 85% | TOS16: ITC Part 85% | TOU16: ITC Part 85% | TOW16: ITC Part 85% | TOY16: ITC Part 85% | TPA16: ITC Part 85% | TPC16: ITC Part 85% | TPE16: ITC Part 85% | TPG16: ITC Part 85% | TPI16: ITC Part 85% | TPK16: ITC Part 85% | TPM16: ITC Part 85% | TPO16: ITC Part 85% | TPQ16: ITC Part 85% | TPS16: ITC Part 85% | TPU16: ITC Part 85% | TPW16: ITC Part 85% | TPY16: ITC Part 85% | TQA16: ITC Part 85% | TQC16: ITC Part 85% | TQE16: ITC Part 85% | TQG16: ITC Part 85% | TQI16: ITC Part 85% | TQK16: ITC Part 85% | TQM16: ITC Part 85% | TQO16: ITC Part 85% | TQQ16: ITC Part 85% | TQS16: ITC Part 85% | TQU16: ITC Part 85% | TQW16: ITC Part 85% | TQY16: ITC Part 85% | TRA16: ITC Part 85% | TRC16: ITC Part 85% | TRE16: ITC Part 85% | TRG16: ITC Part 85% | TRI16: ITC Part 85% | TRK16: ITC Part 85% | TRM16: ITC Part 85% | TRO16: ITC Part 85% | TRQ16: ITC Part 85% | TRS16: ITC Part 85% | TRU16: ITC Part 85% | TRW16: ITC Part 85% | TRY16: ITC Part 85% | TSA16: ITC Part 85% | TSC16: ITC Part 85% | TSE16: ITC Part 85% | TSG16: ITC Part 85% | TSI16: ITC Part 85% | TSK16: ITC Part 85% | TSM16: ITC Part 85% | TSO16: ITC Part 85% | TSQ16: ITC Part 85% | TSS16: ITC Part 85% | TSU16: ITC Part 85% | TSW16: ITC Part 85% | TSY16: ITC Part 85% | TTA16: ITC Part 85% | TTC16: ITC Part 85% | TTE16: ITC Part 85% | TTG16: ITC Part 85% | TTI16: ITC Part 85% | TTK16: ITC Part 85% | TTM16: ITC Part 85% | TTO16: ITC Part 85% | TTQ16: ITC Part 85% | TTS16: ITC Part 85% | TTU16: ITC Part 85% | TTW16: ITC Part 85% | TTY16: ITC Part 85% | TUA16: ITC Part 85% | TUC16: ITC Part 85% | TUE16: ITC Part 85% | TUG16: ITC Part 85% | TUI16: ITC Part 85% | TUK16: ITC Part 85% | TUM16: ITC Part 85% | TUO16: ITC Part 85% | TUQ16: ITC Part 85% | TUS16: ITC Part 85% | TUU16: ITC Part 85% | TUW16: ITC Part 85% | TUY16: ITC Part 85% | TVA16: ITC Part 85% | TVC16: ITC Part 85% | TVE16: ITC Part 85% | TVG16: ITC Part 85% | TVI16: ITC Part 85% | TVK16: ITC Part 85% | TVM16: ITC Part 85% | TVO16: ITC Part 85% | TVQ16: ITC Part 85% | TVS16: ITC Part 85% | TVU16: ITC Part 85% | TVW16: ITC Part 85% | TVY16: ITC Part 85% | TWA16: ITC Part 85% | TWC16: ITC Part 85% | TWE16: ITC Part 85% | TWG16: ITC Part 85% | TWI16: ITC Part 85% | TWK16: ITC Part 85% | TWM16: ITC Part 85% | TWO16: ITC Part 85% | TWQ16: ITC Part 85% | TWS16: ITC Part 85% | TWU16: ITC Part 85% | TWW16: ITC Part 85% | TWY16: ITC Part 85% | TXA16: ITC Part 85% | TXC16: ITC Part 85% | TXE16: ITC Part 85% | TXG16: ITC Part 85% | TXI16: ITC Part 85% | TXK16: ITC Part 85% | TXM16: ITC Part 85% | TXO16: ITC Part 85% | TXQ16: ITC Part 85% | TXS16: ITC Part 85% | TXU16: ITC Part 85% | TXW16: ITC Part 85% | TXY16: ITC Part 85% | TYA16: ITC Part 85% | TYC16: ITC Part 85% | TYE16: ITC Part 85% | TYG16: ITC Part 85% | TYI16: ITC Part 85% | TYK16: ITC Part 85% | TYM16: ITC Part 85% | TYO16: ITC Part 85% | TYQ16: ITC Part 85% | TYS16: ITC Part 85% | TYU16: ITC Part 85% | TYW16: ITC Part 85% | TYY16: ITC Part 85% | TZA16: ITC Part 85% | TZC16: ITC Part 85% | TZE16: ITC Part 85% | TZG16: ITC Part 85% | TZI16: ITC Part 85% | TZK16: ITC Part 85% | TZM16: ITC Part 85% | TZO16: ITC Part 85% | TZQ16: ITC Part 85% | TZS16: ITC Part 85% | TZU16: ITC Part 85% | TZW16: ITC Part 85% | TZY16: ITC Part 85% | UAA16: ITC Part 85% | UAC16: ITC Part 85% | UAE16: ITC Part 85% | UAG16: ITC Part 85% | UAI16: ITC Part 85% | UAK16: ITC Part 85% | UAM16: ITC Part 85% | UAO16: ITC Part 85% | UAQ16: ITC Part 85% | UAS16: ITC Part 85% | UAU16: ITC Part 85% | UAW16: ITC Part 85% | UAY16: ITC Part 85% | UBA16: ITC Part 85% | UBC16: ITC Part 85% | UBE16: ITC Part 85% | UBG16: ITC Part 85% | UBI16: ITC Part 85% | UBK16: ITC Part 85% | UBM16: ITC Part 85% | UBO16: ITC Part 85% | UBQ16: ITC Part 85% | UBS16: ITC Part 85% | UBU16: ITC Part 85% | UBW16: ITC Part 85% | UBY16: ITC Part 85% | UCA16: ITC Part 85% | UCC16: ITC Part 85% | UCE16: ITC Part 85% | UCG16: ITC Part 85% | UCI16: ITC Part 85% | UCK16: ITC Part 85% | UCM16: ITC Part 85% | UCO16: ITC Part 85% | UCQ16: ITC Part 85% | UCS16: ITC Part 85% | UCU16: ITC Part 85% | UCW16: ITC Part 85% | UCY16: ITC Part 85% | UDA16: ITC Part 85% | UDC16: ITC Part 85% | UDE16: ITC Part 85% | UDG16: ITC Part 85% | UDI16: ITC Part 85% | UDK16: ITC Part 85% | UDM16: ITC Part 85% | UDO16: ITC Part 85% | UDQ16: ITC Part 85% | UDS16: ITC Part 85% | UDU16: ITC Part 85% | UDW16: ITC Part 85% | UDY16: ITC Part 85% | UEA16: ITC Part 85% | UEC16: ITC Part 85% | UEE16: ITC Part 85% | UEG16: ITC Part 85% | UEI16: ITC Part 85% | UEK16: ITC Part 85% | UEM16: ITC Part 85% | UEO16: ITC Part 85% | UEQ16: ITC Part 85% | UES16: ITC Part 85% | UEU16: ITC Part 85% | UEW16: ITC Part 85% | UEY16: ITC Part 85% | UFA16: ITC Part 85% | UFC16: ITC Part 85% | UFE16: ITC Part 85% | UFG16: ITC Part 85% | UFI16: ITC Part 85% | UFK16: ITC Part 85% | UFM16: ITC Part 85% | UFO16: ITC Part 85% | UFQ16: ITC Part 85% | UFS16: ITC Part 85% | UFU16: ITC Part 85% | UFW16: ITC Part 85% | UFY16: ITC Part 85% | UGA16: ITC Part 85% | UGC16: ITC Part 85% | UGE16: ITC Part 85% | UGG16: ITC Part 85% | UGI16: ITC Part 85% | UGK16: ITC Part 85% | UGM16: ITC Part 85% | UGO16: ITC Part 85% | UGQ16: ITC Part 85% | UGS16: ITC Part 85% | UGU16: ITC Part 85% | UGW16: ITC Part 85% | UGY16: ITC Part 85% | UHA16: ITC Part 85% | UHC16: ITC Part 85% | UHE16: ITC Part 85% | UHG16: ITC Part 85% | UHI16: ITC Part 85% | UHK16: ITC Part 85% | UHM16: ITC Part 85% | UHO16: ITC Part 85% | UHQ16: ITC Part 85% | UHS16: ITC Part 85% | UHU16: ITC Part 85% | UHW16: ITC Part 85% | UHY16: ITC Part 85% | UIA16: ITC Part 85% | UIC16: ITC Part 85% | UIE16: ITC Part 85% | UIG16: ITC Part 85% | UII16: ITC Part 85% | UIK16: ITC Part 85% | UIM16: ITC Part 85% | UIO16: ITC Part 85% | UIQ16: ITC Part 85% | UIS16: ITC Part 85% | UIU16: ITC Part 85% | UIW16: ITC Part 85% | UIY16: ITC Part 85% | UJA16: ITC Part 85% | UJC16: ITC Part 85% | UJE16: ITC Part 85% | UJG16: ITC Part 85% | UJI16: ITC Part 85% | UJK16: ITC Part 85% | UJM16: ITC Part 85% | UJO16: ITC Part 85% | UJQ16: ITC Part 85% | UJS16: ITC Part 85% | UJU16: ITC Part 85% | UJW16: ITC Part 85% | UJY16: ITC Part 85% | UKA16: ITC Part 85% | UKC16: ITC Part 85% | UKE16: ITC Part 85% | UKG16: ITC Part 85% | UKI16: ITC Part 85% | UKK16: ITC Part 85% | UKM16: ITC Part 85% | UKO16: ITC Part 85% | UKQ16: ITC Part 85% | UKS16: ITC Part 85% | UKU16: ITC Part 85% | UKW16: ITC Part 85% | UKY16: ITC Part 85% | ULA16: ITC Part 85% | ULC16: ITC Part 85% | ULE16: ITC Part 85% | ULG16: ITC Part 85% | ULI16: ITC Part 85% | ULK16: ITC Part 85% | ULM16: ITC Part 85% | ULO16: ITC Part 85% | ULQ16: ITC Part 85% | ULS16: ITC Part 85% | ULU16: ITC Part 85% | ULW16: ITC Part 85% | ULY16: ITC Part 85% | UMA16: ITC Part 85% | UMC16: ITC Part 85% | UME16: ITC Part 85% | UMG16: ITC Part 85% | UMI16: ITC Part 85% | UMK16: ITC Part 85% | UMM16: ITC Part 85% | UMO16: ITC Part 85% | UMQ16: ITC Part 85% | UMS16: ITC Part 85% | UMU16: ITC Part 85% | UMW16: ITC Part 85% | UMY16: ITC Part 85% | UNA16: ITC Part 85% | UNC16: ITC Part 85% | UNE16: ITC Part 85% | UNG16: ITC Part 85% | UNI16: ITC Part 85% | UNK16: ITC Part 85% | UNM16: ITC Part 85% | UNO16: ITC Part 85% | UNQ16: ITC Part 85% | UNS16: ITC Part 85% | UNU16: ITC Part 85% | UNW16: ITC Part 85% | UNY16: ITC Part 85% | UOA16: ITC Part 85% | UOC16: ITC Part 85% | UOE16: ITC Part 85% | UOG16: ITC Part 85% | UOI16: ITC Part 85% | UOK16: ITC Part 85% | UOM16: ITC Part 85% | UOO16: ITC Part 85% | UOQ16: ITC Part 85% | UOS16: ITC Part 85% | UOU16: ITC Part 85% | UOW16: ITC Part 85% | UOY16: ITC Part 85% | UPA16: ITC Part 85% | UPC16: ITC Part 85% | UPE16: ITC Part 85% | UPG16: ITC Part 85% | UPI16: ITC Part 85% | UPK16: ITC Part 85% | UPM16: ITC Part 85% | UPO16: ITC Part 85% | UPQ16: ITC Part 85% | UPS16: ITC Part 85% | UPU16: ITC Part 85% | UPW16: ITC Part 85% | UPY16: ITC Part 85% | UQA16: ITC Part 85% | UQC16: ITC Part 85% | UQE16: ITC Part 85% | UQG16: ITC Part 85% | UQI16: ITC Part 85% | UQK16: ITC Part 85% | UQM16: ITC Part 85% | UQO16: ITC Part 85% | UQQ16: ITC Part 85% | UQS16: ITC Part 85% | UQU16: ITC Part 85% | UQW16: ITC Part 85% | UQY16: ITC Part 85% | URA16: ITC Part 85% | URC16: ITC Part 85% | URE16: ITC Part 85% | URG16: ITC Part 85% | URI16: ITC Part 85% | URK16: ITC Part 85% | URM16: ITC Part 85% | URO16: ITC Part 85% | URQ16: ITC Part 85% | URS16: ITC Part 85% | URU16: ITC Part 85% | URW16: ITC Part 85% | URY16: ITC Part 85% | USA16: ITC Part 85% | USC16: ITC Part 85% | USE16: ITC Part 85% | USG16: ITC Part 85% | USI16: ITC Part 85% | USK16: ITC Part 85% | USM16: ITC Part 85% | USO16: ITC Part 85% | USQ16: ITC Part 85% | USS16: ITC Part 85% | USU16: ITC Part 85% | USW16: ITC Part 85% | USY16: ITC Part 85% | UTA16: ITC Part 85% | UTC16: ITC Part 85% | UTE16: ITC Part 85% | UTG16: ITC Part 85% | UTI16: ITC Part 85% | UTK16: ITC Part 85% | UTM16: ITC Part 85% | UTO16: ITC Part 85% | UTQ16: ITC Part 85% | UTS16: ITC Part 85% | UTU16: ITC Part 85% | UTW16: ITC Part 85% | UTY16: ITC Part 85% | UUA16: ITC Part 85% | UUC16: ITC Part 85% | UUE16: ITC Part 85% | UUG16: ITC Part 85% | UUI16: ITC Part 85% | UUK16: ITC Part 85% | UUM16: ITC Part 85% | UUO16: ITC Part 85% | UUQ16: ITC Part 85% | UUS16: ITC Part 85% | UUU16: ITC Part 85% | UUW16: ITC Part 85% | UUY16: ITC Part 85% | UVA16: ITC Part 85% | UVC16: ITC Part 85% | UVE16: ITC Part 85% | UVG16: ITC Part 85% | UVI16: ITC Part 85% | UVK16: ITC Part 85% | UVM16: ITC Part 85% | UVO16: ITC Part 85% | UVQ16: ITC Part 85% | UVS16: ITC Part 85% | UVU16: ITC Part 85% | UVW16: ITC Part 85% | UVY16: ITC Part 85% | UWA16: ITC Part 85% | UWC16: ITC Part 85% | UWE16: ITC Part 85% | UWG16: ITC Part 85% | UWI16: ITC Part 85% | UWK16: ITC Part 85% | UWM16: ITC Part 85% | UWO16: ITC Part 85% | UWQ16: ITC Part 85% | UWS16: ITC Part 85% | UWU16: ITC Part 85% | UWW16: ITC Part 85% | UWY16: ITC Part 85% | UXA16: ITC Part 85% | UXC16: ITC Part 85% | UXE16: ITC Part 85% | UXG16: ITC Part 85% | UXI16: ITC Part 85% | UXK16: ITC Part 85% | UXM16: ITC Part 85% | UXO16: ITC Part 85% | UXQ16: ITC Part 85% | UXS16: ITC Part 85% | UXU16: ITC Part 85% | UXW16: ITC Part 85% | UXY16: ITC Part 85% | UYA16: ITC Part 85% | UYC16: ITC Part 85% | UYE16: ITC Part 85% | UYG16: ITC Part 85% | UYI16: ITC Part 85% | UYK16: ITC Part 85% | UYM16: ITC Part 85% | UYO16: ITC Part 85% | UYQ16: ITC Part 85% | UYS16: ITC Part 85% | UYU16: ITC Part 85% | UYW16: ITC Part 85% | UYY16: ITC Part 85% | UZA16: ITC Part 85% | UZC16: ITC Part 85% | UZE16: ITC Part 85% | UZG16: ITC Part 85% | UZI16: ITC Part 85% | UZK16: ITC Part 85% | UZM16: ITC Part 85% | UZO16: ITC Part 85% | UZQ16: ITC Part 85% | UZS16: ITC Part 85% | UZU16: ITC Part 85% | UZW16: ITC Part 85% | UZY16: ITC Part 85% | VAA16: ITC Part 85% | VAC16: ITC Part 85% | VAE16: ITC Part 85% | VAG16: ITC Part 85% | VAI16: ITC Part 85% | VAK16: ITC Part 85% | VAM16: ITC Part 85% | VAO16: ITC Part 85% | VAQ16: ITC Part 85% | VAS16: ITC Part 85% | VAU16: ITC Part 85% | VAW16: ITC Part 85% | VAY16: ITC Part 85% | VBA16: ITC Part 85% | VBC16: ITC Part 85% | VBE16: ITC Part 85% | VBG16: ITC Part 85% | VBI16: ITC Part 85% | VBK16: ITC Part 85% | VBM16: ITC Part 85% | VBO16: ITC Part 85% | VBQ16: ITC Part 85% | VBS16: ITC Part 85% | VBU16: ITC Part 85% | VBW16: ITC Part 85% | VBY16: ITC Part 85% | VCA16: ITC Part 85% | VCC16: ITC Part 85% | VCE16: ITC Part 85% | VCG16: ITC Part 85% | VCI16: ITC Part 85% | VCK16: ITC Part 85% | VCM16: ITC Part 85% | VCO16: ITC Part 85% | VCQ16: ITC Part 85% | VCS16: ITC Part 85% | VCU16: ITC Part 85% | VCW16: ITC Part 85% | VCY16: ITC Part 85% | VDA16: ITC Part 85% | VDC16: ITC Part 85% | VDE16: ITC Part 85% | VDG16: ITC Part 85% | VDI16: ITC Part 85% | VDK16: ITC Part 85% | VDM16: ITC Part 85% | VDO16: ITC Part 85% | VDQ16: ITC Part 85% | VDS16: ITC Part 85% | VDU16: ITC Part 85% | VDW16: ITC Part 85% | VDY16: ITC Part 85% | VEA16: ITC Part 85% | VEC16: ITC Part 85% | VEE16: ITC Part 85% | VEG16: ITC Part 85% | VEI16: ITC Part 85% | VEK16: ITC Part 85% | VEM16: ITC Part 85% | VEO16: ITC Part 85% | VEQ16: ITC Part 85% | VES16: ITC Part 85% | VEU16: ITC Part 85% | VEW16: ITC Part 85% | VEY16: ITC Part 85% | VFA16: ITC Part 85% | VFC16: ITC Part 85% | VFE16: ITC Part 85% | VFG16: ITC Part 85% | VFI16: ITC Part 85% | VFK16: ITC Part 85% | VFM16: ITC Part 85% | VFO16: ITC Part 85% | VFQ16: ITC Part 85% | VFS16: ITC Part 85% | VFU16: ITC Part 85% | VFW16: ITC Part 85% | VFY16: ITC Part 85% | VGA16: ITC Part 85% | VGC16: ITC Part 85% | VGE16: ITC Part 85% | VGG16: ITC Part 85% | VGI16: ITC Part 85% | VGK16: ITC Part 85% | VGM16: ITC Part 85% | VGO16: ITC Part 85% | VGQ16: ITC Part 85% | VGS16: ITC Part 85% | VGU16: ITC Part 85% | VGW16: ITC Part 85% | VGY16: ITC Part 85% | VHA16: ITC Part 85% | VHC16: ITC Part 85% | VHE16: ITC Part 85% | VHG16: ITC Part 85% | VHI16: ITC Part 85% | VHK16: ITC Part 85% | VHM16: ITC Part 85% | VHO16: ITC Part 85% | VHQ16: ITC Part 85% | VHS16: ITC Part 85% | VHU16: ITC Part 85% | VHW16: ITC Part 85% | VHY16: ITC Part 85% | VIA16: ITC Part 85% | VIC16: ITC Part 85% | VIE16: ITC Part 85% | VIG16: ITC Part 85% | VII16: ITC Part 85% | VIK16: ITC Part 85% | VIM16: ITC Part 85% | VIO16: ITC Part 85% | VIQ16: ITC Part 85% | VIS16: ITC Part 85% | VIU16: ITC Part 85% | VIW16: ITC Part 85% | VIY16: ITC Part 85% | VJA16: ITC Part 85% | VJC16: ITC Part 85% | VJE16: ITC Part 85% | VJG16: ITC Part 85% | VJI16: ITC Part 85% | VJK16: ITC Part 85% | VJM16: ITC Part 85% | VJO16: ITC Part 85% | VJQ16: ITC Part 85% | VJS16: ITC Part 85% | VJU16: ITC Part 85% | VJW16: ITC Part 85% | VJY16: ITC Part 85% | VKA16: ITC Part 85% | VKC16: ITC Part 85% | VKE16: ITC Part 85% | VKG16: ITC Part 85% | VKI16: ITC Part 85% | VKK16: ITC Part 85% | VKM16: ITC Part 85% | VKO16: ITC Part 85% | VKQ16: ITC Part 85% | VKS16: ITC Part 85% | VKU16: ITC Part 85% | VKW16: ITC Part 85% | VKY16: ITC Part 85% | VLA16: ITC Part 85% | VLC16: ITC Part 85% | VLE16: ITC Part 85% | VLG16: ITC Part 85% | VLI16: ITC Part 85% | VLK16: ITC Part 85% | VLM16: ITC Part 85% | VLO16: ITC Part 85% | VLQ16: ITC Part 85% | VLS16: ITC Part 85% | VLU16: ITC Part 85% | VLW16: ITC Part 85% | VLY16: ITC Part 85% | VMA16: ITC Part 85% | VMC16: ITC Part 85% | VME16: ITC Part 85% | VMG16: ITC Part 85% | VMI16: ITC Part 85% | VMK16: ITC Part 85% | VMM16: ITC Part 85% | VMO16: ITC Part 85% | VMQ16: ITC Part 85% | VMS16: ITC Part 85% | VMU16: ITC Part 85% | VMW16: ITC Part 85% | VMY16: ITC Part 85% | VNA16: ITC Part 85% | VNC16: ITC Part 85% | VNE16: ITC Part 85% | VNG16: ITC Part 85% | VNI16: ITC Part 85% | VNK16: ITC Part 85% | VNM16: ITC Part 85% | VNO16: ITC Part 85% | VNQ16: ITC Part 85% | VNS16: ITC Part 85% | VNU16: ITC Part 85% | VNW16: ITC Part 85% | VNY16: ITC Part 85% | VOA16: ITC Part 85% | VOC16: ITC Part 85% | VOE16: ITC Part 85% | VOG16: ITC Part 85% | VOI16: ITC Part 85% | VOK16: ITC Part 85% | VOM16: ITC Part 85% | VOO16: ITC Part 85% | VOQ16: ITC Part 85% | VOS16: ITC Part 85% | VOU16: ITC Part 85% | VOW16: ITC Part 85% | VOY16: ITC Part 85% | VPA16: ITC Part 85% | VPC16: ITC Part 85% | VPE16: ITC Part 85% | VPG16: ITC Part 85% | VPI16: ITC Part 85% | VPK16: ITC Part 85% | VPM16: ITC Part 85% | VPO16: ITC Part 85% | VPQ16: ITC Part 85% | VPS16: ITC Part 85% | VPU16: ITC Part 85% | VPW16: ITC Part 85% | VPY16: ITC Part 85% | VQA16: ITC Part 85% | VQC16: ITC Part 85% | VQE16: ITC Part 85% | VQG16: ITC Part 85% | VQI16: ITC Part 85% | VQK16: ITC Part 85% | VQM16: ITC Part 85% | VQO16: ITC Part 85% | VQQ16: ITC Part 85% | VQS16: ITC Part 85% | VQU16: ITC Part 85% | VQW16: ITC Part 85% | VQY16: ITC Part 85% | VRA16: ITC Part 85% | VRC16: ITC Part 85% | VRE16: ITC Part 85% | VRG16: ITC Part 85% | VRI16: ITC Part 85% | VRK16: ITC Part 85% | VRM16: ITC Part 85% | VRO16: ITC Part 85% | VRQ16: ITC Part 85% | VRS16: ITC Part 85% | VRU16: ITC Part 85% | VRW16: ITC Part 85% | VRY16: ITC Part 85% | VSA16: ITC Part 85% | VSC16: ITC Part 85% | VSE16: ITC Part 85% | VSG16: ITC Part 85% | VSI16: ITC Part 85% | VSK16: ITC Part 85% | VSM16: ITC Part 85% | VSO16: ITC Part 85% | VSQ16: ITC Part 85% | VSS16: ITC Part 85% | VSU16: ITC Part 85% | VSW16: ITC Part 85% | VSY16: ITC Part 85% | VTA16: ITC Part 85% | VTC16: ITC Part 85% | VTE16: ITC Part 85% | VTG16: ITC Part 85% | VTI16: ITC Part 85% | VTK16: ITC Part 85% | VTM16: ITC Part 85% | VTO16: ITC Part 85% | VTQ16: ITC Part 85% | VTS16: ITC Part 85% | VTU16: ITC Part 85% | VTW16: ITC Part 85% | VTY16: ITC Part 85% | VUA16: ITC Part 85% | VUC16: ITC Part 85% | VUE16: ITC Part 85% | VUG16: ITC Part 85% | VUI16: ITC Part 85% | VUK16: ITC Part 85% | VUM16: ITC Part 85% | VUO16: ITC Part 85% | VUQ16: ITC Part 85% | VUS16: ITC Part 85% | VUU16: ITC Part 85% | VUW16: ITC Part 85% | VUY16: ITC Part 85% | VVA16: ITC Part 85% | VVC16: ITC Part 85% | VVE16: ITC Part 85% | VVG16: ITC Part 85% | VVI16: ITC Part 85% | VVK16: ITC Part 85% | VVM16: ITC Part 85% | VVO16: ITC Part 85% | VVQ16: ITC Part 85% | VVS16: ITC Part 85% | VVU16: ITC Part 85% | VVW16: ITC Part 85% | VVY16: ITC Part 85% | VWA16: ITC Part 85% | VWC16: ITC Part 85% | VWE16: ITC Part 85% | VWG16: ITC Part 85% | VWI16: ITC Part 85% | VWK16: ITC Part 85% | VWM16: ITC Part 85% | VWO16: ITC Part 85% | VWQ16: ITC Part 85% | VWS16: ITC Part 85% | VWU16: ITC Part 85% | VWW16: ITC Part 85% | VWY16: ITC Part 85% | VXA16: ITC Part 85% | VXC16: ITC Part 85% | VXE16: ITC Part 85% | VXG16: ITC Part 85% | VXI16: ITC Part 85% | VXK16: ITC Part 85% | VXM16: ITC Part 85% | VXO16: ITC Part 85% | VXQ16: ITC Part 85% | VXS16: ITC Part 85% | VXU16: ITC Part 85% | VXW16: ITC Part 85% | VXY16: ITC Part 85% | VYA16: ITC Part 85% | VYC16: ITC Part 85% | VYE16: ITC Part 85% | VYG16: ITC Part 85% | VYI16: ITC Part 85% | VYK16: ITC Part 85% | VYM16: ITC Part 85% | VYO16: ITC Part 85% | VYQ16: ITC Part 85% | VYS16: ITC Part 85% | VYU16: ITC Part 85% | VYW16: ITC Part 85% | VYY16: ITC Part 85% | VZA16: ITC Part 85% | VZC16: ITC Part 85% | VZE16: ITC Part 85% | VZG16: ITC Part 85% | VZI16: ITC Part 85% | VZK16: ITC Part 85% | VZM16: ITC Part 85% | VZO16: ITC Part 85% | VZQ16: ITC Part 85% | VZS16: ITC Part 85% | VZU16: ITC Part 85% | VZW16: ITC Part 85% | VZY16: ITC Part 85% | WAA16: ITC Part 85% | WAC16: ITC Part 85% | WAE16: ITC Part 85% | WAG16: ITC Part 85% | WAI16: ITC Part 85% | WAK16: ITC Part 85% | WAM16: ITC Part 85% | WAO16: ITC Part 85% | WAQ16: ITC Part 85% | WAS16: ITC Part 85% | WAU16: ITC Part 85% | WAW16: ITC Part 85% | WAY16: ITC Part 85% | WBA16: ITC Part 85% | WBC16: ITC Part 85% | WBE16: ITC Part 85% | WBG16: ITC Part 85% | WBI16: ITC Part 85% | WBK16: ITC Part 85% | WBM16: ITC Part 85% | WBO16: ITC Part 85% | WBQ16: ITC Part 85% | WBS16: ITC Part 85% | WBU16: ITC Part 85% | WBW16: ITC Part 85% | WBY16: ITC Part 85% | WCA16: ITC Part 85% | WCC16: ITC Part 85% | WCE16: ITC Part 85% | WCG16: ITC Part 85% | WCI16: ITC Part 85% | WCK16: ITC Part 85% | WCM16: ITC Part 85% | WCO16: ITC Part 85% | WCQ16: ITC Part 85% | WCS16: ITC Part 85% | WCU16: ITC Part 85% | WCW16: ITC Part 85% | WCY16: ITC Part 85% | WDA16: ITC Part 85% | WDC16: ITC Part 85% | WDE16: ITC Part 85% | WDG16: ITC Part 85% | WDI16: ITC Part 85% | WDK16: ITC Part 85% | WDM16: ITC Part 85% | WDO16: ITC Part 85% | WDQ16: ITC Part 85% | WDS16: ITC Part 85% | WDU16: ITC Part 85% | WDW16: ITC Part 85% | WDY16: ITC Part 85% | WEA16: ITC Part 85% | WEC16: ITC Part 85% | WEE16: ITC Part 85% | WEG16: ITC Part 85% | WEI16: ITC Part 85% | WEK16: ITC Part 85% | WEM16: ITC Part 85% | WEO16: ITC Part 85% | WEQ16: ITC Part 85% | WES16: ITC Part 85% | WEU16: ITC Part 85% | WEW16: ITC Part 85% | WEY16: ITC Part 85% | WFA16: ITC Part 85% | WFC16: ITC Part 85% | WFE16: ITC Part 85% | WFG16: ITC Part 85% | WFI16: ITC Part 85% | WFK16: ITC Part 85% | WFM16: ITC Part 85% | WFO16: ITC Part 85% | WFQ16: ITC Part 85% | WFS16: ITC Part 85% | WFU16: ITC Part 85% | WFW16: ITC Part 85% | WFY16: ITC Part 85% | WGA16: ITC Part 85% | WGC16: ITC Part 85% | WGE16: ITC Part 85% | WGG16: ITC Part 85% | WGI16: ITC Part 85% | WGK16: ITC Part 85% | WGM16: ITC Part 85% | WGO16: ITC Part 85% | WGQ16: ITC Part 85% | WGS16: ITC Part 85% | WGU16: ITC Part 85% | WGW16: ITC Part 85% | WGY16: ITC Part 85% | WHA16: ITC Part 85% | WHC16: ITC Part 85% | WHE16: ITC Part 85% | WHG16: ITC Part 85% | WHI16: ITC Part 85% | WHK16: ITC Part 85% | WHM16: ITC Part 85% | WHO16: ITC Part 85% | WHQ16: ITC Part 85% | WHS16: ITC Part 85% | WHU16: ITC Part 85% | WHW16: ITC Part 85% | WHY16: ITC Part 85% | WIA16: ITC Part 85% | WIC16: ITC Part 85% | WIE16: ITC Part 85% | WIG16: ITC Part 85% | WII16: ITC Part 85% | WIK16: ITC Part 85% | WIM16: ITC Part 85% | WIO16: ITC Part 85% | WIQ16: ITC Part 85% | WIS16: ITC Part 85% | WIU16: ITC Part 85% | WIW16: ITC Part 85% | WIY16: ITC Part 85% | WJA16: ITC Part 85% | WJC16: ITC Part 85% | WJE16: ITC Part 85% | WJG16: ITC Part 85% | WJI16: ITC Part 85% | WJK16: ITC Part 85% | WJM16: ITC Part 85% | WJO16: ITC Part 85% | WJQ16: ITC Part 85% | WJS16: ITC Part 85% | WJU16: ITC Part 85% | WJW16: ITC Part 85% | WJY16: ITC Part 85% | WKA16: ITC Part 85% | WKC16: ITC Part 85% | WKE16: ITC Part 85% | WKG16: ITC Part 85% | WKI16: ITC Part 85% | WKK16: ITC Part 85% | WKM16: ITC Part 85% | WKO16: ITC Part 85% | WKQ16: ITC Part 85% | WKS16: ITC Part 85% | WKU16: ITC Part 85% | WKW16: ITC Part 85% | WKY16: ITC Part 85% | WLA16: ITC Part 85% | WLC16: ITC Part 85% | WLE16: ITC Part 85% | WLG16: ITC Part 85% | WLI16: ITC Part 85% | WLK16: ITC Part 85% | WLM16: ITC Part 85% | WLO16: ITC Part 85% | WLQ16: ITC Part 85% | WLS16: ITC Part 85% | WLU16: ITC Part 85% | WLW16: ITC Part 85% | WLY16: ITC Part 85% | WMA16: ITC Part 85% | WMC16: ITC Part 85% | WME16: ITC Part 85% | WMG16: ITC Part 85% | WMI16: ITC Part 85% | WMK16: ITC Part 85% | WMM16: ITC Part 85% | WMO16: ITC Part 85% | WMQ16: ITC Part 85% | WMS16: ITC Part 85% | WMU16: ITC Part 85% | WMW16: ITC Part 85% | WMY16: ITC Part 85% | WNA16: ITC Part 85% | WNC16: ITC Part 85% | WNE16: ITC Part 85% | WNG16: ITC Part 85% | WNI16: ITC Part 85% | WNK16: ITC Part 85% | WNM16: ITC Part 85% | WNO16: ITC Part 85% | WNQ16: ITC Part 85% | WNS16: ITC Part 85% | WNU16: ITC Part 85% | WNW16: ITC Part 85% | WNY16: ITC Part 85% | WOA16: ITC Part 85% | WOC16: ITC Part 85% | WOE16: ITC Part 85% | WOG16: ITC Part 85% | WOI16: ITC Part 85% | WOK16: ITC Part 85% | WOM16: ITC Part 85% | WOO16: ITC Part 85% | WOQ16: ITC Part 85% | WOS16: ITC Part 85% | WOU16: ITC Part 85% | WOW16: ITC Part 85% | WOY16: ITC Part 85% | WPA16: ITC Part 85% | WPC16: ITC Part 85% | WPE16: ITC Part 85% | WPG16: ITC Part 85% | WPI16: ITC Part 85% | WPK16: ITC Part 85% | WPM16: ITC Part 85% | WPO16: ITC Part 85% | WPQ16: ITC Part 85% | WPS16: ITC Part 85% | WPU16: ITC Part 85% | WPW16: ITC Part 85% | WPY16: ITC Part 85% | WQA16: ITC Part 85% | WQC16: ITC Part 85% | WQE16: ITC Part 85% | WQG16: ITC Part 85% | WQI16: ITC Part 85% | WQK16: ITC Part 85% | WQM16: ITC Part 85% | WQO16: ITC Part 85% | WQQ16: ITC Part 85% | WQS16: ITC Part 85% | WQU16: ITC Part 85% | WQW16: ITC Part 85% | WQY16: ITC Part 85% | WRA16: ITC Part 85% | WRC16: ITC Part 85% | WRE16: ITC Part 85% | WRG16: ITC Part 85% | WRI16: ITC Part 85% | WRK16: ITC Part 85% | WRM16: ITC Part 85% | WRO16: ITC Part 85% | WRQ16: ITC Part 85% | WRS16: ITC Part 85% | WRU16: ITC Part 85% | WRW16: ITC Part 85% | WRY16: ITC Part 85% | WSA16: ITC Part 85% | WSC16: ITC Part 85% | WSE16: ITC Part 85% | WSG16: ITC Part 85% | WSI16: ITC Part 85% | WSK16: ITC Part 85% | WSM16: ITC Part 85% | WSO16: ITC Part 85% | WSQ16: ITC Part 85% | WSS16: ITC Part 85% | WSU16: ITC Part 85% | WSW16: ITC Part 85% | WSY16: ITC Part 85% | WTA16: ITC Part 85% | WTC16: ITC Part 85% | WTE16: ITC Part 85% | WTG16: ITC Part 85% | WTI16: ITC Part 85% | WTK16: ITC Part 85% | WTM16: ITC Part 85% | WTO16: ITC Part 85% | WTQ16: ITC Part 85% | WTS16: ITC Part 85% | WTU16: ITC Part 85% | WTW16: ITC Part 85% | WTY16: ITC Part 85% | WUA16: ITC Part 85% | WUC16: ITC Part 85% | WUE16: ITC Part 85% | WUG16: ITC Part 85% | WUI16: ITC Part 85% | WUK16: ITC Part 85% | WUM16: ITC Part 85% | WUO16: ITC Part 85% | WUQ16: ITC Part 85% | WUS16: ITC Part 85% | WUU16: ITC Part 85% | WUW16: ITC Part 85% | WUY16: ITC Part 85% | WVA16: ITC Part 85% | WVC16: ITC Part 85% | WVE16: ITC Part 85% | WVG16: ITC Part 85% | WVI16: ITC Part 85% | WVK16: ITC Part 85% | WVM16: ITC Part 85% | WVO16: ITC Part 85% | WVQ16: ITC Part 85% | WVS16: ITC Part 85% | WVU16: ITC Part 85% | WVW16: ITC Part 85% | WVY16: ITC Part 85% | WWA16: ITC Part 85% | WWC16: ITC Part 85% | WWE16: ITC Part 85% | WWG16: ITC Part 85% | WWI16: ITC Part 85% | WWK16: ITC Part 85% | WWM16: ITC Part 85% | WWO16: ITC Part 85% | WWQ16: ITC Part 85% | WWS16: ITC Part 85% | WWU16: ITC Part 85% | WWW16: ITC Part 85% | WWY16: ITC Part 85% | WXA16: ITC Part 85% | WXC16: ITC Part 85% | WXE16: ITC Part 85% | WXG16: ITC Part 85% | WXI16: ITC Part 85% | WXK16: ITC Part 85% | WXM16: ITC Part 85% | WXO16: ITC Part 85% | WXQ16: ITC Part 85% | WXS16: ITC Part 85% | WXU16: ITC Part 85% | WXW16: ITC Part 85% | WXY16: ITC Part 85% | WYA16: ITC Part 85% | WYC16: ITC Part 85% | WYE16: ITC Part 85% | WYG16: ITC Part 85% | WYI16: ITC Part 85% | WYK16: ITC Part 85% | WYM16: ITC Part 85% | WYO16: ITC Part 85% | WYQ16: ITC Part 85% | WYS16: ITC Part 85% | WYU16: ITC Part 85% | WYW16: ITC Part 85% | WYY16: ITC Part 85% | WZA16: ITC Part 85% | WZC16: ITC Part 85% | WZE16: ITC Part 85% | WZG16: ITC Part 85% | WZI16: ITC Part 85% | WZK16: ITC Part 85% | WZM16: ITC Part 85% | WZO16: ITC Part 85% | WZQ16: ITC Part 85% | WZS16: ITC Part 85% | WZU16: ITC Part 85% | WZW16: ITC Part 85% | WZY16: ITC Part 85% | XAA16: ITC Part 85% | XAC16: ITC Part 85% | XAE16: ITC Part 85% | XAG16: ITC Part 85% | XAI16: ITC Part 85% | XAK16: ITC Part 85% | XAM16: ITC Part 85% | XAO16: ITC Part 85% | XAQ16: ITC Part 85% | XAS16: ITC Part 85% | XAU16: ITC Part 85% | XAW16: ITC Part 85% | XAY16: ITC Part 85% | XBA16: ITC Part 85% | XBC16: ITC Part 85% | XBE16: ITC Part 85% | XBG16: ITC Part 85% | XBI16: ITC Part 85% | XBK16: ITC Part 85% | XBM16: ITC Part 85% | XBO16: ITC Part 85% | XBQ16: ITC Part 85% | XBS16: ITC Part 85% | XBU16: ITC Part 85% | XBW16: ITC Part 85% | XBY16: ITC Part 85% | XCA16: ITC Part 85% | XCC16: ITC Part 85% | XCE16: ITC Part 85% | XCG16: ITC Part 85% | XCI16: ITC Part 85% | XCK16: ITC Part 85% | XCM16: ITC Part 85% | XCO16: ITC Part 85% | XCQ16: ITC Part 85% | XCS16: ITC Part 85% | XCU16: ITC Part 85% | XCW16: ITC Part 85% | XCY16: ITC Part 85% | XDA16: ITC Part 85% | XDC16: ITC Part 85% | XDE16: ITC Part 85% | XDG16: ITC Part 85% | XDI16: ITC Part 85% | XDK16: ITC Part 85% | XDM16: ITC Part 85% | XDO16: ITC Part 85% | XDQ16: ITC Part 85% | XDS16: ITC Part 85% | XDU16: ITC Part 85% | XDW16: ITC Part 85% | XDY16: ITC Part 85% | XEA16: ITC Part 85% | XEC16: ITC Part 85% | XEE16: ITC Part 85% | XEG16: ITC Part 85% | XEI16: ITC Part 85% | XEK16: ITC Part 85% | XEM16: ITC Part 85% | XEO16: ITC Part 85% | XEQ16: ITC Part 85% | XES16: ITC Part 85% | XEU16: ITC Part 85% | XEW16: ITC Part 85% | XEY16: ITC Part 85% | XFA16: ITC Part 85% | XFC16: ITC Part 85%
A17: Local Contribution (Kind/Cash) (15%) | C17: =C14*15% -> 0.00
A19: GST 18% (On PPHF Contribution only) | C19: =C16*18% -> 0.00

Sheet SCOPE OF WORK
A1: SCOPE OF WORK
A2: S.No | B2: Description
A3: 1 | B3: Minor OT
A4: 2 | B4: Labour delivery room with Attached Toilet
A5: 3 | B5: Changing room with attached toilet
A6: 4 | B6: Female ward with water closet and Bathroom
A7: 5 | B7: Passage (back side)
A8: 6 | B8: Boundary wall, 47m

Sheet WORK COST
A1: WORK COST
A2: S. No. | B2: Work | C2: Amount
A3: 01 | B3: Earth Work | C3: ='ABSTRACT OF GROUND FLOOR'!G7 -> 0.00
A4: 02 | B4: Concrete Work | C4: ='ABSTRACT OF GROUND FLOOR'!G12 -> 0.00
A5: 03 | B5: RCC Work | C5: ='ABSTRACT OF GROUND FLOOR'!G23 -> 0.00
A6: 04 | B6: Brick Work | C6: ='ABSTRACT OF GROUND FLOOR'!G27 -> 0.00
A7: 05 | B7: Wood and PVC Work | C7: ='ABSTRACT OF GROUND FLOOR'!G38 -> 0.00
A8: 06 | B8: Steel Work | C8: ='ABSTRACT OF GROUND FLOOR'!G45 -> 0.00
A9: 07 | B9: Flooring | C9: ='ABSTRACT OF GROUND FLOOR'!G47 -> 0.00
A10: 08 | B10: Finishing | C10: ='ABSTRACT OF GROUND FLOOR'!G57 -> 0.00
A11: 09 | B11: TOTAL A | C11: =SUM(C3:C10) -> 0.00
A12: 10 | B12: (B) Electrical Work Total (A) 08% | C12: =C11*8% -> 0.00
A13: 11 | B13: (C) Water Supply | C13: ='ABSTRACT OF WATER SUPPLY'!G8 -> 0.00
A14: 12 | B14: (D)Sanitary work | C14: ='ABSTRACT OF SANITARY WORKE'!G10 -> 0.00
A15: 13 | B15: (E) Boundary Wall | C15: ='ABSTRACT OF BOUNDARY WALL'!G24 -> 0.00
A16: 14 | B16: TOTAL (A+B+C+D) | C16: =SUM(C11:C15) -> 0.00
A17: 15 | B17: GST (18%) | C17: ='COST OF ABSTRACT'!C19:D19 -> 0.00 | D17: 0
A18: 16 | B18: GRAND TOTAL | C18: =SUM(C16:C17) -> 0.00

Sheet ABSTRACT OF GROUND FLOOR
A1: WORK- P.H.C SUMAN NAGAR
A2: ABSTRACT OF COST
A3: SL. No. | B3: DSR/SOR NO. 2023 | C3: Description | D3: Quantity | E3: Unit | F3: Rate | G3: Amount
B4: (A) | C4: EARTH WORK
A5: 1 | B5: SOR MOTH 12-1-1-A-1 2019 | C5: Earth work in excavation of foundation of structures as per drawing and technical specification, including setting out, construction of shoring and bracing, removal of stumps and other deleterious matter, dressing of sides and bottom and backfilling with approved material. 12-1-1 Ordinary soil | D5: 78.80 | E5: Cum | F5: 0.00 | G5: =D5*F5 -> 0.00
A6: 3 | B6: SOR MORD 12-10-1 | C6: Supplying and filling in plinth with sand under floors, including watering,ramming, consolidating and dressing complete. | D6: 23.50 | E6: Cum | F6: 0.00 | G6: =D6*F6 -> 0.00
B7: TOTAL | G7: =SUM(G5:XFD6) -> 0.00
B8: (B) | C8: CONCRETE WORK
A9: 4 | B9: SOR MORD 11-4-1-2 2019 | C9: Providing and laying in position cement concrete of specified grade excluding the cost of centering and shuttering - All work up to plinth level 1:4:8 (1 Cement : 4 coarse sand : 8 graded stone aggregate 40 mm nominal size). | D9: 25.01 | E9: Cum | F9: 0.00 | G9: =D9*F9 -> 0.00
A10: 5 | B10: DSR VOL 1 4.1 | C10: Providing and laying damp-proof course 40mm thick with cement concrete 1:2:4 (1 cement : 2 coarse sand : 4 graded stone aggregate 12.5mm nominal size). | D10: 26.42 | E10: Sqm | F10: 0.00 | G10: =D10*F10 -> 0.00
A11: 6 | B11: DSR VOL 1 4.17 | C11: Making plinth protection 50 mm thick of cement concrete 1:3:6 (1 cement :3 coarse sand : 6 graded stone aggregate 20 mm nominal size) over 75 mm bed by dry brick ballast 40 mm nominal size well rammed and consolidated and grouted with fine sand including finishing the top smooth | D11: 26.42 | E11: Sqm | F11: 0.00 | G11: 0.00
B12: TOTAL | G12: =SUM(G9:G11) -> 0.00
B13: (C) | C13: REINFORCED CEMENT CONCRETE WORK
A14: 7 | B14: SOR MORD 12-8-C | C14: Providing concrete for plain/ reinforced concrete in open foundations complete as per drawings and technical specifications Clause 802, 803, 1202 & 1203, R.C.C grade M 20
C15: 1:1.5:3 (1 cement : 1.5 coarse sand (zone-III): 3 graded stone aggregate 20 mm nominal size) | D15: 24.17 | E15: Cum | F15: 0.00 | G15: 0.00
A16: 8 | B16: SOR MORD 14-1-A-1-1-P 2019 | C16: Providing and laying reinforced cement concrete in superstructure as per drawing and technical specifications Clauses 800, 1205.4 and 1205.5 ,R.C.C grade M 20, height upto 5m | D16: 38.25 | E16: Cum | F16: 0.00 | G16: 0.00
A17: 9 | B17: SOR MORD 11-8 | C17: Steel reinforcement for R.C.C. work including straightening, cutting, bending, placing in position and binding all complete upto plinth level. Thermo- Mechanically Treated bars of grade Fe-500D or more | D17: 7222.00 | E17: Kg | F17: 0.00 | G17: =D17*F17 -> 0.00
A18: 10 | B18: DSR VOL1 5.9 | C18: Centring and shuttering including strutting,ropping etc. and removal of form for
A19: (a) | B19: 5.9.1 | C19: Foundations, footings, bases of columns, etc. for mass concrete. | D19: 40.80 | E19: Sqm | F19: 0.00 | G19: 0.00
A20: (b) | B20: 5.9.6 | C20: Columns, Pillars, Piers, Abutments, Posts and Struts. | D20: 81.23 | E20: Sqm | F20: 0.00 | G20: 0.00
A21: (c) | B21: 5.9.5 | C21: Lintels, beams, plinth beams, girders, bressumers and cantilevers. | D21: 66.23 | E21: Sqm | F21: 0.00 | G21: 0.00
A22: (d) | B22: 5.9.3 | C22: Suspended floors, roofs, landings, balconies and access platform. | D22: 183.90 | E22: Sqm | F22: 0.00 | G22: 0.00
B23: TOTAL | G23: =SUM(G15:G22) -> 0.00
B24: (D) | C24: BRICK WORK
A25: 11 | B25: SOR MORD 11-5-1 2019 | C25: Brick masonry work in cement mortar in foundation complete excluding pointing and plastering as per drawing and technical specifications Clauses 600, 1202 & 1203 | D25: 18.91 | E25: Cum | F25: 0.00 | G25: 0.00
A26: 12 | B26: SOR MORD 13-1-2 | C26: Brick masonry work in cement mortar in substructure complete excepting pointing and plastering, as per drawing and technical specification Clauses 602, 603, 604, 1202 & 1204 | D26: 59.74 | E26: Cum | F26: 0.00 | G26: 0.00
B27: TOTAL | G27: =SUM(G25:G26) -> 0.00
B28: (E) | C28: WOOD & P.V.C WORK
A29: 13 | B29: DSR VOL1 9.21.1 | C29: Providing and fixing ISI marked flush door shutters conforming to IS: 2202 (Part I) non-decorative type, core of block board construction with frame of 1st class hard wood and well matched commercial 3 ply veneering with vertical grains or cross bands and face veneers on both faces of shutters 35 mm thick including ISI marked Stainless Steel butt hinges with necessary screws. | D29: 48.24 | E29: Sqm | F29: 0.00 | G29: 0.00
A30: 14 | B30: DSR VOL1 9.100.1 | C30: Providing and fixing aluminium handles ISI marked anodised (anodic coating not less than grade AC 10 as per IS : 1868) transparent or dyed to required colour or shade with necessary screws etc. complete : 125 mm | D30: 28.00 | E30: Nos | F30: 0.00 | G30: 0.00
A31: 15 | B31: DSR VOL1 9.96 | C31: Providing and fixing aluminium sliding door bolts ISI marked anodised (anodic coating not less than grade AC 10 as per IS : 1868) transparent or dyed to required colour or shade with nuts and screws etc. complete
B32: 9.96.1 | C32: 300x16 mm | D32: 24.00 | E32: Nos | F32: 0.00 | G32: 0.00
A33: 16 | B33: DSR VOL1 9.97 | C33: Providing and fixing aluminium tower bolts ISI marked anodised (anodic coating not less than grade AC 10 as per IS : 1868 ) transparent or dyed to required colour or shade with necessary screws etc. complete
A34: (a) | B34: 9.97.2 | C34: 250x10 mm | D34: 24.00 | E34: Nos | F34: 0.00 | G34: 0.00
A35: (b) | B35: 9.97.4 | C35: 150X10 MM | D35: 8.00 | E35: Nos | F35: 0.00 | G35: 0.00
A36: 17 | B36: DSR VOL1 9.101.1 | C36: Providing and fixing aluminium hanging floor door stopper ISI marked anodised (anodic coating not less than grade AC 10 as per IS : 1868) transparent or dyed to required colour and shade with necessary screws etc. complete. Single rubber stopper | D36: 14.00 | E36: Each | F36: 0.00 | G36: 0.00
A37: 18 | B37: DSR VOL1 9.51.2 | C37: Providing and fixing fly proof galvanised M.S wire gauze to windows and clerestory windows using galvanised M.S. wire gauge with average width of aperture 1.4 mm in both directions with wire of dia. 0.63 mm. With 12 mm mild steel U beading. | D37: 11.50 | E37: sqm | F37: 0.00 | G37: 0.00
B38: TOTAL | G38: =SUM(G29:G37) -> 0.00
B39: (F) | C39: STEEL WORK
A40: 19 | B40: DSR VOL1 10.14 | C40: Providing and fixing pressed steel door frames confirming to IS: 4351 manufactured from commercial mild steel sheet of 1.25 mm thickness including hinges jamb, lock jamb, bead and if required angle threshold of mild steel angle of section 50x25mm, or base ties of 1.25mm pressed mild steel welded or rigidly fixed together by mechanical means, adjustable lugs with split end tail to each jamb including steel butt hinges 2.5mm thick with mortar guards, lock strike-plate and shock absorbers as specified and applying a coat of approved steel primer after pre-treatment of the surface as directed by Engineer-in-charge
A41: (a) | B41: 10.14.1 | C41: Profile 'B' (Single Pattam) | D41: 91.74 | E41: Rm | F41: 0.00 | G41: 0.00
A42: 20 | B42: DSR VOL1 10.25.2 | C42: Steel work welded in built up section/framed work including cutting, hoisting, fixing in position and applying a priming coat of approved steel primer using steel etc. as required. In gratings, frames, guard bar, ladder, railings, brackets, gates and similar works. | D42: 190.80 | E42: kg | F42: 0.00 | G42: 0.00
A43: 21 | B43: DSR VOL1 10.03 | C43: Providing and fixing in position collapsible steel shutters with vertical channels 20x10x2 mm and braced with flat iron diagonals 20x5 mm size, with top and bottom rail of T-iron 40x40x6 mm, with 40 mm dia steel pulleys, complete with bolts, nuts, locking arrangement, stoppers, | D43: 7.20 | E43: Sqm | F43: 0.00 | G43: 0.00
A44: 22 | B44: DSR VOL1 10.30.2 | C44: Providing & fixing glass panes with putty and glazing clips in steel doors, windows, clerestory windows, all complete with : 5.5 mm thick glass panes | D44: 10.40 | E44: Sqm | F44: 0.00 | G44: 0.00
B45: TOTAL | G45: =SUM(G41:G44) -> 0.00
B46: (G) | C46: FLOORING
A47: 23 | B47: DSR VOL1 11.21 | C47: Providing and fixing 10 mm thick acid and/or alkali resistant tiles of approved make and colour using acid and/or alkali resisting mortar bedding, and joints filled with acid and/or alkali resisting cement as per IS : 4457, complete as per the direction of Engineer-in- Charge. In flooring on a bed of 10 mm thick mortar 1:4 (1 acid proof cement : 4 coarse sand) Acid and alkali resistant tile | D47: 156.69 | E47: Sqm | F47: 0.00 | G47: 0.00
B49: (H) | C49: FINISHING
A50: 24 | B50: SOR MORD 12-3 | C50: 12 mm cement plaster of mix : 1:6 (1 cement: 6 fine sand) | D50: 326.34 | E50: sqm | F50: 0.00 | G50: 0.00
A51: 25 | B51: SOR MORD 12-3 | C51: Plastering with cement mortar (1:4), 15 mm thick on brickwork in substructure as per | D51: 167.42 | E51: sqm | F51: 0.00 | G51: 0.00
A52: 26 | B52: DSR VOL1 8.31 | C52: Providing and fixing Ist quality ceramic glazed wall tiles conforming to IS : 15622 (thickness to be specified by the manufacture ) of approved make in all colours, shades except burgundy, bottle green, black of any size as approved by Engineer-in- Charge in skirting, risers of steps and dados over 12 mm thick bed of cement Mortar 1:3 (1 cement : 3 coarse sand) and jointing with grey cement slurry @ 3.3kg per sqm including pointing in white cement mixed with pigment of matching shade complete. | D52: 152.97 | E52: sqm | F52: 0.00 | G52: 0.00
A53: 27 | B53: DSR VOL2 13.8 | C53: Providing and applying white cement based putty of average thickness 1 mm, of approved brand and manufacturer, over the plastered wall surface to prepare the surface even and smooth complete. | D53: 650.45 | E53: Sqm | F53: 0.00 | G53: 0.00
A54: 28 | B54: DSR VOL2 13.41.1 | C54: Distempering with oil bound washable distemper of approved brand and manufacture to give an even shade (New work (two or more coats) over and including priming coat with cement primer) in Ceiling Area | D54: 650.45 | E54: sqm | F54: 0.00 | G54: 0.00
A55: 30 | B55: DSR VOL2 13.62.1 | C55: Painting with synthetic enamel paint of approved brand and manufacture of required colour to give an even shade : Two or more coats on new work over an under coat of suitable shade with ordinary paint of approved brand and manufacture | D55: 226.48 | E55: sqm | F55: 0.00 | G55: =D55*F55 -> 0.00
A56: 31 | B56: AS per market | C56: TLM painting work | D56: 75.00 | E56: sqm | F56: 0.00 | G56: =D56*F56 -> 0.00
C57: TOTAL | G57: =SUM(G50:G56) -> 0.00
C58: TOTAL ABSTRACT COST | G58: =G57+G47+G45+G38+G27+G23+G12+G7 -> 0.00

Sheet MEASUREMENT GROUND FLOOR
A1: DETAILED ESTIMATE REPORT FOR P.H.C. CENTER, SUMAN NAGAR, HARIDWAR
A2: ABSTRACT OF COST-
A3: DETAILS OF MEASUREMENTS
A4: SL. NO. | B4: Particulars Items | C4: Measurements | G4: Quantity or Contents
C5: No. | D5: L. | E5: B. | F5: H.
A6: 1 | B6: 2 | C6: 3 | D6: 4 | E6: 5 | F6: 6 | G6: 7
A7: (A) | B7: EARTH WORK
A8: 1 | B8: Earth work in excavation of foundation of structures as per drawing and technical specification, including setting out, construction of shoring and bracing, removal of stumps and other deleterious matter, dressing of sides and bottom and backfilling with approved material. 12-1-1 Ordinary soil
B9: Column footings
C10: 17 | D10: 1.20 | E10: 1.200 | F10: 1.50 | G10: =C10*D10*E10*F10 -> 36.72
B11: Tie beams | G11: =C11*D11*E11*F11 -> 0.00
B12: X-X Axis | G12: 0.00
B13: PB1 | C13: 3 | D13: 4.82 | E13: 0.60 | F13: 0.60 | G13: 5.21
B14: PB1 | C14: 3 | D14: 4.49 | E14: 0.60 | F14: 0.60 | G14: 4.85
B15: PB1 | C15: 3 | D15: 3.27 | E15: 0.60 | F15: 0.60 | G15: 3.53
B16: PB1 | C16: 2 | D16: 2.47 | E16: 0.60 | F16: 0.60 | G16: =C16*D16*E16*F16 -> 1.78
B17: PB1 | C17: 2 | D17: 4.63 | E17: 0.60 | F17: 0.60 | G17: =C17*D17*E17*F17 -> 3.33
B18: PB1 | C18: 1 | D18: 11.63 | E18: 0.60 | F18: 0.60 | G18: 4.19
B19: PB1 | C19: 1 | D19: 1.45 | E19: 0.6 | F19: 0.6 | G19: 0.52
B20: PB3 | C20: 3 | D20: 2.47 | E20: 0.6 | F20: 0.6 | G20: 2.67
B21: Y-Y Axis | G21: 0.00
B22: PB1 | C22: 4 | D22: 4.79 | E22: 0.60 | F22: 0.60 | G22: 6.90
B23: PB1 | C23: 2 | D23: 6.21 | E23: 0.60 | F23: 0.60 | G23: 4.47
B24: PB1 | C24: 2 | D24: 4.41 | E24: 0.60 | F24: 0.60 | G24: 3.18
B25: PB1 | C25: 1 | D25: 2.05 | E25: 0.60 | F25: 0.60 | G25: 0.74
G26: =SUM(G10:G25) -> 78.08 | I26: CUM
A28: 2 | B28: Filling available excavated earth (excluding rock) in trenches, plinth, sides of foundations etc. in layers not exceeding 20cm in depth, consolidating each deposited layer by ramming and watering, lead up to 50 m and lift upto 1.5 m.
C29: 1 | D29: 0.80 | E29: 47.95 | G29: =C29*D29*E29 -> 38.36
F30: Total | G30: 38.36 | I30: Cum
A31: 3 | B31: Supplying and filling in plinth with sand under floors, including watering,ramming, consolidating and dressing complete.
B32: Minor OT | C32: 1 | D32: 4.57 | E32: 4.57 | F32: 0.15 | G32: =C32*D32*E32*F32 -> 3.13
B33: Labour delivery room | C33: 1 | D33: 16.92 | E33: 1.00 | F33: 0.15 | G33: =C33*D33*E33*F33 -> 2.54
B34: Changing room | C34: 1 | D34: 3.05 | E34: 3.05 | F34: 0.15 | G34: 1.40
B35: Changing room toilat | C35: 1 | D35: 2.13 | E35: 1.20 | F35: 0.15 | G35: =C35*D35*E35*F35 -> 0.38
B36: female word | C36: 1 | D36: 4.52 | E36: 6.36 | F36: 0.15 | G36: =C36*D36*E36*F36 -> 4.31
B37: wc | C37: 1 | D37: 1.20 | E37: 1.60 | F37: 0.15 | G37: 0.29
B38: bath room | C38: 1 | D38: 1.20 | E38: 1.60 | F38: 0.15 | G38: 0.29
B39: Passage (back side) | C39: 1 | D39: 14.10 | E39: 4.95 | F39: 0.15 | G39: 10.47
C40: 1 | D40: 3.27 | E40: 1.42 | F40: 0.15 | G40: =C40*D40*E40*F40 -> 0.70
F41: Total | G41: =SUM(G32:G40) -> 23.50 | I41: Cum
A43: (B) | B43: CONCRETE WORK
A44: 4 | B44: Providing concrete for plain/ reinforced concrete in open foundations complete as per drawings and technical specifications Clause 802, 803, 1202 & 1203.P.C.C grade M 10, Nominal mix 1:3:6
B45: Column footings
B46: F1 | C46: 17 | D46: 1.20 | E46: 1.200 | F46: 0.10 | G46: =C46*D46*E46*F46 -> 2.45
B47: Tie beams | G47: =C47*D47*E47*F47 -> 0.00
B48: X-X Axis | G48: 0.00
B49: PB1 | C49: 3 | D49: 4.82 | E49: 0.60 | F49: 0.10 | G49: 0.87
B50: PB1 | C50: 3 | D50: 4.49 | E50: 0.60 | F50: 0.10 | G50: 0.81
B51: PB1 | C51: 3 | D51: 3.27 | E51: 0.60 | F51: 0.10 | G51: 0.59
B52: PB1 | C52: 2 | D52: 2.47 | E52: 0.60 | F52: 0.10 | G52: 0.30
B53: PB1 | C53: 2 | D53: 4.63 | E53: 0.60 | F53: 0.10 | G53: 0.56
B54: PB1 | C54: 1 | D54: 11.63 | E54: 0.60 | F54: 0.10 | G54: 0.70
B55: PB1 | C55: 1 | D55: 1.45 | E55: 0.60 | F55: 0.10 | G55: 0.09
B56: PB3 | C56: 3 | D56: 2.47 | E56: 0.60 | F56: 0.10 | G56: 0.44
B57: Y-Y Axis | G57: 0.00
B58: PB1 | C58: 4 | D58: 4.79 | E58: 0.60 | F58: 0.10 | G58: 1.15
B59: PB1 | C59: 2 | D59: 6.21 | E59: 0.60 | F59: 0.10 | G59: 0.75
B60: PB1 | C60: 2 | D60: 4.41 | E60: 0.60 | F60: 0.10 | G60: 0.53
B61: PB1 | C61: 1 | D61: 2.05 | E61: 0.60 | F61: 0.10 | G61: 0.12
B62: Flooring base | G62: 0.00
B63: Minor OT | C63: 1 | D63: 4.57 | E63: 4.57 | F63: 0.10 | G63: 2.09
B64: Labour delivery room | C64: 1 | D64: 16.92 | E64: 1.00 | F64: 0.10 | G64: 1.69
B65: Changing room | C65: 1 | D65: 3.05 | E65: 3.05 | F65: 0.10 | G65: 0.93
B66: Changing room toilat | C66: 1 | D66: 2.13 | E66: 1.20 | F66: 0.10 | G66: 0.26
B67: female word | C67: 1 | D67: 4.52 | E67: 6.36 | F67: 0.10 | G67: 2.87
B68: wc | C68: 1 | D68: 1.20 | E68: 1.60 | F68: 0.10 | G68: 0.19
B69: bath room | C69: 1 | D69: 1.20 | E69: 1.60 | F69: 0.10 | G69: 0.19
B70: Passage (back side) | C70: 1 | D70: 14.10 | E70: 4.95 | F70: 0.10 | G70: 6.98
C71: 1 | D71: 3.27 | E71: 1.42 | F71: 0.10 | G71: 0.46
F72: Total | G72: =SUM(G46:G71) -> 25.01 | I72: CUM
A74: 5 | B74: Providing and laying damp-proof course 40mm thick with cement concrete 1:2:4 (1 cement : 2 coarse sand : 4 graded stone aggregate 12.5mm nominal size).
B75: X-X Axis
B76: PB1 | C76: 3 | D76: 4.82 | E76: 0.23 | G76: =C76*D76*E76 -> 3.33
B77: PB1 | C77: 3 | D77: 4.49 | E77: 0.23 | G77: =C77*D77*E77 -> 3.10
B78: PB1 | C78: 3 | D78: 3.27 | E78: 0.23 | G78: 2.26
B79: PB1 | C79: 2 | D79: 2.47 | E79: 0.23 | G79: 1.14
B80: PB1 | C80: 2 | D80: 4.63 | E80: 0.23 | G80: 2.13
B81: PB1 | C81: 1 | D81: 11.63 | E81: 0.23 | G81: =C81*D81*E81 -> 2.67
B82: PB1 | C82: 1 | D82: 1.45 | E82: 0.23 | G82: 0.33
B83: PB3 | C83: 3 | D83: 2.47 | E83: 0.23 | G83: 1.70
B84: Y-Y Axis
B85: PB1 | C85: 4 | D85: 4.79 | E85: 0.23 | G85: 4.41
B86: PB1 | C86: 2 | D86: 6.21 | E86: 0.23 | G86: 2.86
B87: PB1 | C87: 2 | D87: 4.41 | E87: 0.23 | G87: 2.03
B88: PB1 | C88: 1 | D88: 2.05 | E88: 0.23 | G88: =C88*D88*E88 -> 0.47
F89: Total | G89: =SUM(G76:G88) -> 26.42 | I89: Sqm
A91: 6 | B91: Making plinth protection 50 mm thick of cement concrete 1:3:6 (1 cement :3 coarse sand : 6 graded stone aggregate 20 mm nominal size) over 75 mm bed by dry brick ballast 40 mm nominal size well rammed and consolidated and grouted with fine sand including finishing the top smooth
B92: outer side of building | C92: 1 | D92: 26.42 | G92: 26.42
F93: Total | G93: 26.42 | I93: Sqm
A95: (C) | B95: REINFORCED CEMENT CONCRETE WORK
A96: 7 | B96: Providing concrete for plain/ reinforced concrete in open foundations complete as per drawings and technical specifications Clause 802, 803, 1202 & 1203, R.C.C grade M 20
A97: (a) | B97: 1:1.5:3 (1 cement : 1.5 coarse sand (zone-III): 3 graded stone aggregate 20 mm nominal size)
B98: Footing
B99: F1 | C99: 17 | D99: 1.20 | E99: 1.200 | F99: 0.50 | G99: =C99*D99*E99*F99 -> 12.24 | I99: CUM
A100: (b) | B100: Columns up to plinth level
B101: C1 | C101: 8 | D101: 0.23 | E101: 0.40 | F101: 1.00 | G101: =C101*D101*E101*F101 -> 0.74
B102: C2 | C102: 7 | D102: 0.30 | E102: 0.23 | F102: 1.00 | G102: =C102*D102*E102*F102 -> 0.48
B103: C3 | C103: 2 | D103: 0.23 | E103: 0.23 | F103: 1.00 | G103: 0.11
A104: (c) | G104: =SUM(G101:G103) -> 1.32 | I104: CUM
B106: Tie beams
B107: X-X Axis
B108: PB1 | C108: 3 | D108: 4.82 | E108: 0.23 | F108: 0.45 | G108: =C108*D108*E108*F108 -> 1.50
B109: PB1 | C109: 3 | D109: 4.49 | E109: 0.23 | F109: 0.45 | G109: =C109*D109*E109*F109 -> 1.39
B110: PB1 | C110: 3 | D110: 3.27 | E110: 0.23 | F110: 0.45 | G110: 1.02
B111: PB1 | C111: 2 | D111: 2.47 | E111: 0.23 | F111: 0.45 | G111: 0.51
B112: PB1 | C112: 2 | D112: 4.63 | E112: 0.23 | F112: 0.45 | G112: 0.96
B113: PB1 | C113: 1 | D113: 11.63 | E113: 0.23 | F113: 0.45 | G113: =C113*D113*E113*F113 -> 1.20
B114: PB1 | C114: 1 | D114: 1.45 | E114: 0.23 | F114: 0.45 | G114: 0.15
B115: PB3 | C115: 3 | D115: 2.47 | E115: 0.23 | F115: 0.45 | G115: 0.77
B116: Y-Y Axis
B117: PB1 | C117: 4 | D117: 4.79 | E117: 0.23 | F117: 0.45 | G117: =C117*D117*E117*F117 -> 1.98
B118: PB1 | C118: 2 | D118: 4.41 | E118: 0.23 | F118: 0.45 | G118: =C118*D118*E118*F118 -> 0.91
B119: PB1 | C119: 1 | D119: 2.05 | E119: 0.23 | F119: 0.45 | G119: =C119*D119*E119*F119 -> 0.21
G120: =SUM(G108:G119) -> 10.60 | I120: Cum
D121: (a+b+c) | F121: total | G121: =SUM(G120+G104+G99) -> 24.17 | I121: CUM
A122: 8 | B122: Providing and laying reinforced cement concrete in superstructure as per drawing and technical specifications Clauses 800, 1205.4 and 1205.5 ,R.C.C grade M 20, height upto 5m
A123: (a) | B123: Columns up to roof slab
B124: C1 | C124: 8 | D124: 0.23 | E124: 0.40 | F124: 3.20 | G124: =C124*D124*E124*F124 -> 2.36
B125: C2 | C125: 7 | D125: 0.30 | E125: 0.23 | F125: 3.20 | G125: =C125*D125*E125*F125 -> 1.55
B126: C3 | C126: 2 | D126: 0.23 | E126: 0.23 | F126: 3.20 | G126: 0.34
G127: =SUM(G124:G126) -> 4.24 | I127: CUM
B128: Slab beams
B129: X-X Axis
B130: PB1 | C130: 3 | D130: 4.82 | E130: 0.23 | F130: 0.45 | G130: 1.50
B131: PB1 | C131: 3 | D131: 4.49 | E131: 0.23 | F131: 0.45 | G131: 1.39
B132: PB1 | C132: 3 | D132: 3.27 | E132: 0.23 | F132: 0.45 | G132: 1.02
B133: PB1 | C133: 2 | D133: 2.47 | E133: 0.23 | F133: 0.45 | G133: 0.51
B134: PB1 | C134: 2 | D134: 4.63 | E134: 0.23 | F134: 0.45 | G134: 0.96
B135: PB1 | C135: 1 | D135: 11.63 | E135: 0.23 | F135: 0.45 | G135: =C135*D135*E135*F135 -> 1.20
B136: PB1 | C136: 1 | D136: 1.45 | E136: 0.23 | F136: 0.45 | G136: 0.15
B137: PB3 | C137: 3 | D137: 2.47 | E137: 0.23 | F137: 0.45 | G137: 0.77
B138: Y-Y Axis | G138: 0.00
B139: PB1 | C139: 4 | D139: 4.79 | E139: 0.23 | F139: 0.45 | G139: 1.98
B140: PB1 | C140: 2 | D140: 4.41 | E140: 0.23 | F140: 0.45 | G140: 0.91
B141: PB1 | C141: 1 | D141: 2.05 | E141: 0.23 | F141: 0.45 | G141: 0.21
G142: =SUM(G130:G141) -> 10.60 | I142: CUM
A143: (c) | B143: Roof slab
B144: S1 | C144: 1 | D144: 4.80 | E144: 4.79 | F144: 0.150 | G144: 3.45
B145: S1 | C145: 1 | D145: 4.49 | E145: 4.79 | F145: 0.150 | G145: 3.23
B146: S1 | C146: 1 | D146: 5.74 | E146: 4.79 | F146: 0.150 | G146: 4.12
B147: S1 | C147: 1 | D147: 4.61 | E147: 6.21 | F147: 0.150 | G147: 4.29
B148: S1 | C148: 1 | D148: 3.96 | E148: 4.41 | F148: 0.150 | G148: 2.62
B149: S1 | C149: 1 | D149: 6.14 | E149: 4.41 | F149: 0.150 | G149: 4.06
D150: 4.09 | E150: 4.41 | F150: 0.150 | G150: =SUM(G144:G149) -> 21.77 | I150: CUM
A151: (d) | B151: Lintel
B152: D | C152: 2 | D152: 2.70 | E152: 0.23 | F152: 0.15 | G152: 0.19
B153: D1 | C153: 4 | D153: 2.10 | E153: 0.23 | F153: 0.15 | G153: 0.29
B154: D2 | C154: 3 | D154: 1.50 | E154: 0.23 | F154: 0.15 | G154: 0.16
B155: D3 | C155: 3 | D155: 1.20 | E155: 0.23 | F155: 0.15 | G155: =C155*D155*E155*F155 -> 0.12
B156: W | C156: 4 | D156: 2.10 | E156: 0.23 | F156: 0.15 | G156: 0.29
B157: V | C157: 4 | D157: 1.05 | E157: 0.23 | F157: 0.15 | G157: 0.14
G158: =SUM(G152:G157) -> 1.19 | I158: CUM
A159: (e) | B159: Chajja
B162: W | C162: 3 | D162: 2.10 | E162: 0.60 | F162: 0.10 | G162: 0.38
B163: V | C163: 1 | D163: 1.05 | E163: 0.60 | F163: 0.10 | G163: =C163*D163*E163*F163 -> 0.06
G164: =SUM(G162:G163) -> 0.44 | I164: CUM
D165: (a+b+c+d+e) | G165: =SUM(G164+G158+G150+G142+G127) -> 38.25 | I165: Cum
A167: 9 | B167: Steel reinforcement for R.C.C. work including straightening, cutting, bending, placing in position and binding all complete upto plinth level. Thermo Mechanically Treated bars of grade Fe-500D or more
B168: Footing @1.0% | F168: 12.24 | G168: 0.12 | I168: density of steel 78.5q per cum
B169: Columns @2.5% | F169: 5.56 | G169: 0.14
B170: Beams @ 2.0% | F170: 21.20 | G170: 0.42
B171: Slab @ 1.0% | F171: 21.77 | G171: 0.22
B172: Lintels @ 1.0% | F172: 1.19 | G172: 0.01
B173: Chajjas @ 1.0% | F173: 0.44 | G173: 0.00
F174: Sub Total | G174: =SUM(G168:G173) -> 0.92
C175: 1 | D175: 0.92 | E175: 78.50 | G175: =D175*E175 -> 72.22
F176: Total | G176: 72.22 | I176: Qtl
F177: Total | G177: 7222.00 | I177: kg
A178: 10 | B178: Centring and shuttering including strutting,ropping etc. and removal of form for
A179: (a) | B179: Foundations, footings, bases of columns, etc. for mass concrete.
B180: F1 | C180: 17 | D180: 4.80 | F180: 0.50 | G180: =C180*D180*F180 -> 40.80 | I180: sqm
A182: (b) | B182: Columns, Pillars, Piers, Abutments, Posts and Struts.
B183: Columns
B184: Upto tie bems
B185: C1 | C185: 8 | D185: 1.26 | F185: 1.00 | G185: =C185*D185*F185 -> 10.08
B186: C2 | C186: 7 | D186: 1.06 | F186: 1.00 | G186: =C186*D186*F186 -> 7.42
B187: C3 | C187: 2 | D187: 0.92 | F187: 1.00 | G187: 1.84
B188: Columns up to roof slab | G188: 0.00
B189: C1 | C189: 8 | D189: 1.26 | F189: 3.20 | G189: 32.26
B190: C2 | C190: 7 | D190: 1.06 | F190: 3.20 | G190: 23.74
B191: C3 | C191: 2 | D191: 0.92 | F191: 3.20 | G191: 5.89
G192: =SUM(G185:G191) -> 81.23 | I192: Sqm
A194: (c) | B194: Lintels, beams, plinth beams, girders, bressumers and cantilevers.
B195: Tie Beam (two sides)
B196: X-X Axis
B197: PB1 | C197: 3 | D197: 4.82 | F197: 0.45 | G197: =C197*D197*F197 -> 6.51
B198: PB1 | C198: 3 | D198: 4.49 | F198: 0.45 | G198: =C198*D198*F198 -> 6.06
B199: PB1 | C199: 3 | D199: 3.27 | F199: 0.45 | G199: 4.41
B200: PB1 | C200: 2 | D200: 2.47 | F200: 0.45 | G200: 2.22
B201: PB1 | C201: 2 | D201: 4.63 | F201: 0.45 | G201: 4.17
B202: PB1 | C202: 1 | D202: 11.63 | F202: 0.45 | G202: =C202*D202*F202 -> 5.23
B203: PB1 | C203: 1 | D203: 1.45 | F203: 0.45 | G203: 0.65
B204: PB3 | C204: 3 | D204: 2.47 | F204: 0.45 | G204: 3.33
B206: Y-Y Axis | G206: 0.00
B207: PB1 | C207: 4 | D207: 4.79 | F207: 0.45 | G207: =C210*D207*F207 -> 0.00
B208: PB1 | C208: 2 | D208: 4.41 | F208: 0.45 | G208: 3.97
B209: PB1 | C209: 1 | D209: 2.05 | F209: 0.45 | G209: 0.92
B211: Slab beam (two side)
B212: Slab beam (bottom side)
B213: X-X Axis
... 186 more rows

Sheet ABSTRACT OF BOUNDARY WALL
A1: DETAILED ESTIMATE REPORT FOR P.H.C. CENTER, SUMAN NAGAR, HARIDWAR
A2: ABSTRACT OF COST - BOUNDARY WALL (47 M)
A3: SL. No. | B3: DSR/SOR NO. 2023 | C3: Description | D3: Quantity | E3: Unit | F3: Rate | G3: Amount
B4: (A) | C4: EARTH WORK
A5: 1 | B5: SOR MORTH 12-1-1-A-1 2019 | C5: Earth work in excavation of foundation of structures as per drawing and technical specification, including setting out, construction of shoring and bracing, removal of stumps and other deleterious matter, dressing of sides and bottom and backfilling with approved material. 12-1-1 Ordinary soil | D5: ='BOUNDARY WALL MEASUREMENT'!G13 -> 21.66 | E5: Cum | F5: 0.00 | G5: =D5*F5 -> 0.00
B6: (B) | C6: CONCRETE WORK
A7: 3 | B7: SOR MORD 11-4-1-1 | C7: Providing and laying in position cement concrete of specified grade excluding the cost of centering and shuttering - All work up to plinth level 1:4:8 (1 Cement : 4 coarse sand : 8 graded stone aggregate 40 mm nominal size). | D7: ='BOUNDARY WALL MEASUREMENT'!G25 -> 3.19 | E7: Cum | F7: 0.00 | G7: =D7*F7 -> 0.00
A8: 4 | B8: DSR VOL1 4.1 | C8: Providing and laying damp-proof course 40mm thick with cement concrete 1:2:4 (1 cement : 2 coarse sand : 4 graded stone aggregate 12.5mm nominal size). | D8: ='BOUNDARY WALL MEASUREMENT'!G30 -> 10.81 | E8: Sqm | F8: 0.00 | G8: 0.00
B9: (C) | C9: REINFORCED CEMENT CONCRETE WORK
A10: 5 | B10: SOR MORD 11-4-4 | C10: Providing concrete for plain/ reinforced concrete in open foundations complete as per drawings and technical specifications Clause 802, 803, 1202 & 1203, R.C.C grade M 20
C11: 1:1.5:3 (1 cement : 1.5 coarse sand (zone-III): 3 graded stone aggregate 20 mm nominal size) | D11: ='BOUNDARY WALL MEASUREMENT'!G45 -> 3.98 | E11: Cum | F11: 0.00 | G11: 0.00
A12: 6 | B12: SOR MORD 13-1-1-1-A | C12: Providing and laying reinforced cement concrete in superstructure as per drawing and technical specifications Clauses 800, 1205.4 and 1205.5 ,R.C.C grade M 20, height upto 5m | D12: ='BOUNDARY WALL MEASUREMENT'!G49 -> 1.11 | E12: Cum | F12: 0.00 | G12: 0.00
A13: 7 | B13: SOR MORD 11-8 | C13: Steel reinforcement for R.C.C. work including straightening, cutting, bending, placing in position and binding all complete upto plinth level. Thermo- Mechanically Treated bars of grade Fe-500D or more | D13: ='BOUNDARY WALL MEASUREMENT'!G58 -> 748.00 | E13: Kg | F13: 0.00 | G13: 0.00
A14: 8 | B14: DSR VOL1 5.9 | C14: Centring and shuttering including strutting,ropping etc. and removal of form for
A15: (a) | B15: 5.9.1 | C15: Foundations, footings, bases of columns, etc. for mass concrete. | D15: ='BOUNDARY WALL MEASUREMENT'!G62 -> 13.44 | E15: Sqm | F15: 0.00 | G15: 0.00
A16: (b) | B16: 5.9.6 | C16: Columns, Pillars, Piers, Abutments, Posts and Struts. | D16: ='BOUNDARY WALL MEASUREMENT'!G70 -> 23.77 | E16: Sqm | F16: 0.00 | G16: 0.00
B18: (D) | C18: BRICK WORK
A19: 9 | B19: SOR MORD 11-5-1 2019 | C19: Brick masonry work in cement mortar in foundation complete excluding pointing and plastering as per drawing and technical specifications Clauses 600, 1202 & 1203 | D19: ='BOUNDARY WALL MEASUREMENT'!G77 -> 4.01 | E19: Cum | F19: 0.00 | G19: 0.00
A20: 10 | B20: SOR MORD 11-5-1 2019 | C20: Brick masonry work in cement mortar in substructure complete excepting pointing and plastering, as per drawing and technical specification Clauses 602, 603, 604, 1202 & 1204 | D20: ='BOUNDARY WALL MEASUREMENT'!G86 -> 12.23 | E20: Cum | F20: 0.00 | G20: 0.00
B22: (e) | C22: FINISHING
A23: 11 | B23: SOR MORD 12-3 | C23: 15 mm cement plaster of mix : 1:6 (1 cement: 6 fine sand) | D23: ='BOUNDARY WALL MEASUREMENT'!G96 -> 118.50 | E23: sqm | F23: 0.00 | G23: 0.00
E24: TOTAL | G24: =SUM(G5:G23) -> 0.00

Sheet BOUNDARY WALL MEASUREMENT
A1: DETAILED ESTIMATE REPORT FOR P.H.C. CENTER, SUMAN NAGAR, HARIDWAR
A2: DETAILS OF MEASUREMENTS BOUNDARY WALL (47.00 RMT.)
A3: SL. NO. | B3: Particulars Items | C3: Measurements | G3: Quantity or Contents
C4: No. | D4: L. | E4: B. | F4: H.
A5: 1 | B5: 2 | C5: 3 | D5: 4 | E5: 5 | F5: 6
A6: (A) | B6: EARTH WORK
A7: 1 | B7: Earth work in excavation of foundation of structures as per drawing and technical specification, including setting out, construction of shoring and bracing, removal of stumps and other deleterious matter, dressing of sides and bottom and backfilling with approved material. 12-1-1 Ordinary soil
B8: Column footings
B9: F1 | C9: 14 | D9: 1.00 | E9: 0.600 | F9: 0.90 | G9: =C9*D9*E9*F9 -> 7.56
B10: Tie beams
B11: X-X Axis | C11: 1 | D11: 22.00 | E11: 0.50 | F11: 0.60 | G11: =D11*E11*F11 -> 6.60
B12: Y-Y Axis | C12: 1 | D12: 25.00 | E12: 0.50 | F12: 0.60 | G12: =D12*E12*F12 -> 7.50
F13: Total | G13: =G12+G11+G9 -> 21.66 | H13: Cum
A15: 2 | B15: Filling available excavated earth (excluding rock) in trenches, plinth, sides of foundations etc. in layers not exceeding 20cm in depth, consolidating each deposited layer by ramming and watering, lead up to 50 m and lift upto 1.5 m.
C16: 1 | D16: 0.80 | E16: 21.66 | G16: =D16*E16 -> 17.33
F17: Total | G17: 16.37 | H17: Cum
A18: (B) | B18: CONCRETE WORK
A19: 3 | B19: Providing and laying in position cement concrete of specified grade excluding the cost of centering and shuttering - All work up to plinth level 1:4:8 (1 Cement : 4 coarse sand : 8 graded stone aggregate 40 mm nominal size).
B20: Footing
B21: F1 | C21: 14 | D21: 1.00 | E21: 0.600 | F21: 0.10 | G21: =C21*D21*E21*F21 -> 0.84
B22: Tie beams | G22: =C22*D22*E22*F22 -> 0.00
B23: X-X Axis | C23: 1 | D23: 22.00 | E23: 0.50 | F23: 0.10 | G23: 1.10
B24: Y-Y Axis | C24: 1 | D24: 25.00 | E24: 0.50 | F24: 0.10 | G24: 1.25
F25: Total | G25: =SUM(G21:G24) -> 3.19 | H25: Cum
A27: 4 | B27: Providing and laying damp-proof course 40mm thick with cement concrete 1:2:4 (1 cement : 2 coarse sand : 4 graded stone aggregate 12.5mm nominal size).
B28: X-X Axis | C28: 1 | D28: 22.00 | E28: 0.23 | G28: =D28*E28 -> 5.06
B29: Y-Y Axis | C29: 1 | D29: 25.00 | E29: 0.23 | G29: =D29*E29 -> 5.75
F30: Total | G30: =SUM(G28:G29) -> 10.81 | H30: Sqm
A32: (C) | B32: REINFORCED CEMENT CONCRETE WORK
A33: 5 | B33: Providing and laying in position specified grade of reinforced cement concrete excluding the cost of centring, shuttering, finishing and reinforcement - All work upto plinth level
A34: (a) | B34: 1:1.5:3 (1 cement : 1.5 coarse sand (zone-III): 3 graded stone aggregate 20 mm nominal size)
B35: Footing
C36: 14 | D36: 0.90 | E36: 0.600 | F36: 0.20 | G36: =C36*D36*E36*F36 -> 1.51
F37: Total(a) | G37: 1.30 | H37: Cum
A38: (b) | B38: Columns up to plinth level
B39: C1 | C39: 14 | D39: 0.23 | E39: 0.23 | F39: 0.30 | G39: =C39*D39*E39*F39 -> 0.22
F40: Total(b) | G40: 0.19 | H40: Cum
A41: (c) | B41: Tie beams
B42: X-X Axis | C42: 1 | D42: 22.00 | E42: 0.23 | F42: 0.23 | G42: =D42*E42*F42 -> 1.16
B43: Y-Y Axis | C43: 1 | D43: 25.00 | E43: 0.23 | F43: 0.23 | G43: =D43*E43*F43 -> 1.32
F44: Total(c) | G44: =SUM(G42:G43) -> 2.49 | H44: Cum
E45: TOTAL (A+B+C) | G45: =G44+G40+G37 -> 3.98 | H45: Cum
A46: 6 | B46: Reinforced cement concrete work in walls (any thickness), including attached pilasters, buttresses, plinth and string courses, fillets, columns, pillars, piers,abutments, posts and struts etc. upto floor five level excluding cost of centring, shuttering, finishing and reinforcement 1:1.5:3 (1 cement : 1.5 coarse sand : 3 graded stone aggregate 20 mm nominal size)
A47: (a) | B47: Columns above ground
B48: C1 | C48: 14 | D48: 0.23 | E48: 0.23 | F48: 1.50 | G48: =C48*D48*E48*F48 -> 1.11
F49: Total(a) | G49: 1.11 | H49: Cum
A51: 7 | B51: Steel reinforcement for R.C.C. work including straightening, cutting, bending, placing in position and binding all complete upto plinth level. Thermo Mechanically Treated bars of grade Fe-500D or more
B52: Footing @1.0% | F52: =G37 -> 1.30 | G52: =F52*1% -> 0.01 | H52: density of steel 78.5q per cum
B53: Columns @2.5% | F53: =SUM(G49+G40) -> 1.30 | G53: =F53*2.5% -> 0.03
B54: Beams @ 2.0% | F54: =G44 -> 2.49 | G54: =F54*2% -> 0.05
F55: Sub Total | G55: =SUM(G51:G54) -> 0.10
C56: 1 | D56: =G55 -> 0.10 | E56: 78.50 | G56: =D56*E56 -> 7.48
F57: Total | G57: 7.48 | H57: Qtl
F58: Total | G58: 748.00 | H58: kg
A59: 8 | B59: Centring and shuttering including strutting,ropping etc. and removal of form for
A60: (a) | B60: Foundations, footings, bases of columns, etc. for mass concrete.
B61: F1 | C61: 14 | D61: 3.20 | F61: 0.30 | G61: =C61*D61*F61 -> 13.44
F62: Total(a) | G62: 13.44 | H62: Sqm
A64: (b) | B64: Columns, Pillars, Piers, Abutments, Posts and Struts.
B65: Columns
B66: Upto tie bems
B67: F1 | C67: 14 | D67: 1.06 | F67: 0.30 | G67: =C67*D67*F67 -> 4.45
B68: Columns up to roof slab
B69: C1 | C69: 14 | D69: 0.92 | F69: 1.50 | G69: =C69*D69*F69 -> 19.32
F70: Total(b) | G70: =SUM(G67:G69) -> 23.77 | H70: Sqm
A71: (D) | B71: BRICK WORK
A72: 9 | B72: Brick work with common burnt clay F.P.S. (non modular) bricks of class designation 7.5 in foundation and plinth in: Cement mortar 1:6 (1 cement : 6 coarse sand)
B73: Cement mortar 1:6 (1 cement : 6 coarse sand)
B74: X-X Axis | C74: 1 | D74: 22.00 | E74: 0.30 | F74: 0.30 | G74: =C74*D74*E74*F74 -> 1.98
B75: Y-Y Axis | C75: 1 | D75: 25.00 | E75: 0.30 | F75: 0.30 | G75: =C75*D75*E75*F75 -> 2.25
B76: (-) Column | C76: 14 | D76: 0.23 | E76: 0.23 | F76: 0.30 | G76: 0.22
F77: Total | G77: =SUM(G74+G75-0.22) -> 4.01 | H77: Cum
A79: 10 | B79: Brick work with common burnt clay F.P.S. (non modular) bricks of class designation 7.5 in superstructure above plinth level up to floor V level in all shapes and sizes in : Cement mortar 1:6 (1 cement : 6 coarse sand)
B80: Cement mortar 1:6 (1 cement : 6 coarse sand)
B81: X-X Axis | C81: 1 | D81: 22.00 | E81: 0.230 | F81: 1.50 | G81: =C81*D81*E81*F81 -> 7.59
B82: Y-Y Axis | C82: 1 | D82: 25.00 | E82: 0.230 | F82: 1.50 | G82: =C82*D82*E82 -> 5.75
F83: Total | G83: =SUM(G81:G82) -> 13.34 | H83: Cum
B84: Column | C84: 14 | D84: 0.23 | E84: 0.230 | F84: 1.50 | G84: =C84*D84*E84*F84 -> 1.11
F85: Total | G85: 1.11 | H85: (-)
F86: Total | G86: =G83-G85 -> 12.23 | H86: Cum
A89: (E) | B89: FINISHING
A90: 11 | B90: 12 mm cement plaster of mix : 1:6 (1 cement: 6 fine sand)
B91: External walls
B92: X-X Axis | C92: 1 | D92: 22.00 | F92: 1.50 | G92: =C92*D92*F92 -> 33.00
B93: Y-Y Axis | C93: 1 | D93: 25.00 | F93: 1.50 | G93: =C93*D93*F93 -> 37.50
F94: Total | G94: =SUM(G92:G93) -> 70.50 | H94: Sqm
B95: Internal walls (same as External wall) | G95: 48.00
F96: Total | G96: =SUM(G94:G95) -> 118.50 | H96: Sqm

Sheet ABSTRACT OF WATER SUPPLY
A1: DETAILED ESTIMATE REPORT FOR P.H.C. CENTER, SUMAN NAGAR, HARIDWAR
A2: ABSTRACT OF COST - (WATER SUPPLY)
A3: SL.No . | B3: D.S.R 2023 | C3: Description | D3: Quantity | E3: Unit | F3: Rate | G3: Amount
A4: 1 | B4: (18.10.1) | C4: Providing and fixing G.I. pipes complete with G.I. fittings and clamps, including cutting and making good the walls etc. Iinternal work - Exposed on wall
B5: (18.10.1) | C5: 15 mm dia nominal bore | D5: 60.00 | E5: Meter | F5: 0.00 | G5: =D5*F5 -> 0.00
A6: 2 | B6: (18.49.1) | C6: Providing and fixing C.P. brass bib cock of approved quality 15 mm nominial bore | D6: 8 | E6: NOS | F6: 0.00 | G6: =D6*F6 -> 0.00
A7: 3 | B7: 18.48 | C7: Providing and placing on terrace (at all floor levels) polyethylene water storage tank ISI :12701 marked with cover and suitable locking arrangement and making necessary holes for inlet, outlet, and overflow pipes but without fitting and the base support for tank. | D7: 2000.00 | E7: Liter | F7: 0.00 | G7: 0.00
F8: TOTAL | G8: =SUM(G5:G7) -> 0.00

Sheet WATER SUPPLY MEASUREMENT
A1: DETAILED ESTIMATE REPORT FOR P.H.C. CENTER, SUMAN NAGAR, HARIDWAR
A2: WATER SUPPLY
A3: SL. NO. | B3: Particulars Items | C3: Measurements | G3: Quantity or Contents
C4: No. | D4: L. | E4: B. | F4: H.
A5: 1 | B5: 2 | C5: 3 | D5: 4 | E5: 5 | F5: 6 | G5: 7
A6: 1 | B6: Providing and fixing G.I. pipes complete with G.I. fittings and clamps, including cutting and making good the walls etc. Iinternal work - Exposed on wall
B7: 15 mm dia nominal bore
B8: Internal pipe & wet riser to O.H.T
C9: 1 | D9: 60 | G9: 60.00
F10: Total | G10: 60.00 | H10: M
A11: 2 | B11: Providing and fixing C.P. brass bib cock of approved quality 15 mm nominial bore
B12: Ground floor | C12: 8 | G12: 8.00
F13: Total | G13: 8.00 | H13: Nos
A14: 3 | B14: Providing and placing on terrace (at all floor levels) polyethylene water storage tank ISI :12701 marked with cover and suitable locking arrangement and making necessary holes for inlet, outlet, and overflow pipes but without fitting and the base support for tank.
C15: 2 | D15: 1000 | G15: 2000.00
F16: Total | G16: 2000.00 | H16: Lit

Sheet ABSTRACT OF SANITARY WORKE
A1: DETAILED ESTIMATE REPORT FOR P.H.C. CENTER, SUMAN NAGAR, HARIDWAR
A2: ABSTRACT OF COST- (SANITRAY WORKS)
A3: SL.No . | B3: D.S.R 2023 | C3: Description | D3: Quantity | E3: Unit | F3: Rate | G3: Amount
A4: 1 | B4: VOL2 17.2 | C4: Providing and fixing white vitreous china pedestal type water closet (European type W.C. pan) with seat and lid, 10 litre low level white P.V.C. flushing cistern, including flush pipe, with manually controlled device (handle lever), conforming to IS : 7231, with all fittings and fixtures complete, including cutting and making good the walls and floors wherever required W.C. pan with ISI marked white solid plastic seat and lid | D4: 4.00 | E4: Nos | F4: 0.00 | G4: =D4*F4 -> 0.00
A5: 2 | B5: VOL2 17.7.1 | C5: Providing and fixing wash basin with C.I. brackets, 15 mm C.P . brass pillar taps, 32 mm C.P . brass waste of standard pattern, including painting of fittings and brackets, cutting and making good the walls wherever require:White Vitreous China Wash basin size 630x450 mm with a pair of 15 mm C.P . brass pillar taps | D5: 4.00 | E5: Nos | F5: 0.00 | G5: 0.00
A7: 3 | B7: VOL2 17.35 | C7: Providing and fixing soil , waste and vent pipes:
A8: (a) | B8: 17.35.1.1 | C8: 100 mm dia. | D8: 20 | E8: Meter | F8: 0.00 | G8: 0.00
A9: (b) | B9: 17.35.2.1 | C9: 75 mm dia | D9: 16 | E9: Meter | F9: 0.00 | G9: 0.00
F10: TOTAL | G10: =SUM(G4:G9) -> 0.00

Sheet SANITARY WORK MEASUREMENT
A1: DETAILED ESTIMATE REPORT FOR P.H.C. CENTER, SUMAN NAGAR, HARIDWAR
A2: SANITRAY WORKS
A3: SL. NO. | B3: Particulars Items | C3: Measurements | G3: Quantity or Contents
C4: No. | D4: L. | E4: B. | F4: H.
A5: 1 | B5: 2 | C5: 3 | D5: 4 | E5: 5 | F5: 6 | G5: 7
A7: 1 | B7: Providing and fixing water closet squatting pan (Indian type W.C. pan ) with 100 mm sand cast Iron P or S trap, 10 litre low level white P .V .C. flushing cistern, including flush pipe, with manually controlled device (handle lever) conforming to IS : 7231, with all fittings and fixtures complete, including cutting and making good the walls and floors wherever required:White Vitreous china Orissa pattern W.C. pan of size 580x440 mm with integral type foot rests
C8: 4 | G8: 4.00
F9: Total | G9: 4.00 | H9: Nos
A11: 2 | B11: Providing and fixing white vitreous china pedestal type water closet (European type W.C. pan) with seat and lid, 10 litre low level white P.V.C. flushing cistern, including flush pipe, with manually controlled device (handle lever), conforming to IS : 7231, with all fittings and fixtures complete, including cutting and making good the walls and floors wherever required W.C. pan with ISI marked white solid plastic seat and lid
C12: 3 | G12: 3.00
F13: Total | G13: 3.00 | H13: Nos
A14: 3 | B14: Providing and fixing wash basin with C.I. brackets, 15 mm C.P . brass pillar taps, 32 mm C.P . brass waste of standard pattern, including painting of fittings and brackets, cutting and making good the walls wherever require:White Vitreous China Wash basin size 630x450 mm with a pair of 15 mm C.P . brass pillar taps
C15: 4 | G15: 4.00
F16: Total | G16: 4.00 | H16: Nos
A17: 4 | B17: Providing and fixing white vitreous china flat back or wall corner type lipped front urinal basin of 430x260x350 mm and 340x410x265 mm sizes respectively with automatic flushing cistern with standard flush pipe and C.P. brass spreaders with brass unions and G.I clamps complete, including painting of fittings and brackets, cutting and making good the walls and floors wherever required :One urinal basin with 5 litre white P.V.C. automatic flushing cistern
C18: 3 | G18: 3.00
F19: Total | G19: 3.00 | H19: Nos
A21: 5 | B21: Providing and fixing soil , waste and vent pipes:
A22: (a) | B22: 100 mm dia.
B23: ground floor | C23: 1 | D23: 60 | G23: 60.00
F24: Total | G24: 60.00 | H24: M
A25: (b) | B25: 75 mm dia
B26: ground floor | C26: 1 | D26: 40 | G26: 40.00
F27: Total | G27: 40.00 | H27: M
A29: 6 | B29: Providing and fixing M.S. holder-bat clamps of approved design to Sand Cast iron/cast iron (spun) pipe embedded in and including cement concrete blocks 10x10x10 cm of 1:2:4 mix (1 cement : 2 coarse sand : 4 graded stone aggregate 20 mm nominal size), including cost of cutting holes and making good the walls etc. :For 100 mm dia pipe
A30: (a) | B30: 100 mm dia.
B31: ground floor | C31: 15 | G31: 15.00
F32: Total | G32: 15.00 | H32: Nos
A33: (b) | B33: 75 mm
B34: ground floor | C34: 15 | G34: 15.00
F35: Total | G35: 15.00 | H35: Nos
A37: 7 | B37: Providing and fixing bend of required degree with access door, insertion rubber washer 3 mm thick, bolts and nuts complete.
A38: (a) | B38: 100 mm dia.
B39: ground floor | C39: 15 | G39: 15.00
F40: Total | G40: 15.00 | H40: Nos
A41: (b) | B41: 75 mm dia
B42: ground floor | C42: 15 | G42: 15.00
F43: Total | G43: 15.00 | H43: Nos
A45: 8 | B45: Providing and fixing plain bend of required degree.
A46: (a) | B46: Sand cast iron S&S as per IS - 1729
B47: ground floor | C47: 15 | G47: 15.00
F48: Total | G48: 15.00 | H48: Nos
A49: (b) | B49: Sand cast iron S&S as per IS -1729
B50: ground floor | C50: 15 | G50: 15.00
F51: Total | G51: 15.00 | H51: Nos
A53: 9 | B53: Providing and fixing 100 mm sand cast iron S&S heel rest sanitry bend of required degree.
A54: (a) | B54: 100 mm SCI S&S heel rest sanitary bend
B55: W.cs
B56: ground floor | C56: 10 | G56: 10.00
F57: Total | G57: 10.00 | H57: Nos
A58: (b) | B58: 75 mm
B60: ground floor | C60: 10 | G60: 10.00
F61: Total | G61: 10.00 | H61: Nos
A63: 10 | B63: Providing and fixing single equal plain junction of required degree with access door insertion rubber washer 3 mm thick bolts and nuts complete.
A64: (a) | B64: 100x100x100 mm
C65: 10 | G65: 10.00
F66: Total | G66: 10.00 | H66: Nos
A67: (b) | B67: 75x75x75mm
C68: 10 | G68: 10.00
F69: Total | G69: 10.00 | H69: Nos
A71: 11 | B71: Providing and fixing 100 mm sand cast iron s&s terminal guard
A72: (a) | B72: 100 mm SCI sands terminal guard
B73: 100mm | C73: 6 | G73: 6.00
F74: Total | G74: 6.00 | H74: Nos
A76: 12 | B76: Providing and fixing 100 mm sand cast iron S&S collar
A77: (a) | B77: 100 mm SCI sands collar
B78: ground floor | C78: 6 | G78: 6.00
F79: Total | G79: 6.00 | H79: Nos
A80: (b) | B80: 75 mm dia
B81: ground floor | C81: 6 | G81: 6.00
F82: Total | G82: 6.00 | H82: Nos
A84: 13 | B84: Providing and fixing 100 mm M.S stays and clamps for sand cast iron /centrifugally cast (squn) iron pipes of diameter:
B85: 100 mm MS stays and clamps
B86: 100 mm dia. | C86: 7 | G86: 7.00
F87: Total | G87: 7.00 | H87: Nos
A89: 14 | B89: Providing and fixing trap of self cleansing design with screwed down or hinged grating with or without vent arm complete, including cost of cutting and making good the walls and floors:
B90: 100 mm inlet and 75 mm outlet SCI tarp
B91: Wash basin | C91: 5 | G91: 5.00
F92: Total | G92: 5.00 | H92: Nos
B93: 100 mm inlet and 100 mm outlet SCI tarp
B94: For urinials | C94: 3 | G94: 3.00
F95: Total | G95: 3.00 | H95: Nos
